Workbook

Sheet ورقة1
A1: مساعدة فى الاوائل من اجل نتيجة اخر العام
A3: https://www.officena.net/ib/topic/114534-مساعدة-فى-الاوائل-من-اجل-نتيجة-اخر-العام/
A5: هذا العمل مجهود الاستاذ ايهاب حسن فله وافر التحية والتقدير
A7: برجاء المساعدة فى الاوائل حتى يتم تكريم اوائل المدرسة

Sheet شيت
B1: النتيجـة | D1: مسلسل | E1: رقم الجلوس | F1: عدد الطلاب | G1: رقـم اللجنـــة | H1: الفصـل | I1: الحـالــة | J1: الـنوع | K1: الديــانـة | L1: الرقم القومى | M1: تـاريخ الميلاد | N1: السن أول أكتوبر | O1: سري ترم أول | P1: سري ترم ثاني | R1: لغة عربية | V1: لغة إنجليزية | Z1: لغة فرنسية | AD1: حاسب آلي | AP1: اعمال وساطة | AT1: دعاية واعلان | AX1: اقتصاد | BB1: سكرتارية اجنبية | BF1: رياضة مالية | BJ1: سوق اوراق مالية | BN1: محاسبة مالية | BR1: تسويق | BV1: مجموع نصف العام | BW1: مجموع آخر العام | BX1: تربيـة دينية | CB1: مواطنة | CF1: تقديرات ترم أول | CG1: نتيجة أخر العام | CH1: مواد الرسوب | CI1: الترتــيـب | CJ1: عدد مواد الرسوب | CM1: ناجح | CN1: ضعيف | DU1: غائب
F2: =COUNTA(F7:F596) -> 93 | R2: أعمال السـنـة | S2: ترم أول | T2: ترم ثانى | U2: المجموع | V2: أعمال السـنـة | W2: ترم أول | X2: ترم ثانى | Y2: المجموع | Z2: أعمال السـنـة | AA2: ترم أول | AB2: ترم ثانى | AC2: المجموع | AD2: أعمــال السنة | AG2: تـــــرم أول | AJ2: تـــــرم ثانى | AM2: مجموع العملى | AN2: مجموع التحريري | AO2: المجموع | AP2: أعمال السـنـة | AQ2: ترم أول | AR2: ترم ثانى | AS2: المجموع | AT2: أعمال السـنـة | AU2: ترم أول | AV2: ترم ثانى | AW2: المجموع | AX2: أعمال السـنـة | AY2: ترم أول | AZ2: ترم ثانى | BA2: المجموع | BB2: أعمال السـنـة | BC2: ترم أول | BD2: ترم ثانى | BE2: المجموع | BF2: أعمال السـنـة | BG2: ترم أول | BH2: ترم ثانى | BI2: المجموع | BJ2: أعمال السـنـة | BK2: ترم أول | BL2: ترم ثانى | BM2: المجموع | BN2: أعمال السـنـة | BO2: ترم أول | BP2: ترم ثانى | BQ2: المجموع | BR2: أعمال السـنـة | BS2: ترم أول | BT2: ترم ثانى | BU2: المجموع | BX2: أعمال السـنـة | BY2: ترم أول | BZ2: ترم ثانى | CA2: المجموع | CB2: أعمال السـنـة | CC2: ترم أول | CD2: ترم ثانى | CE2: المجموع | CM2: ناجح | CN2: ضعيف | DU2: غائب
F3: إسم الطالب | AD3: عملى | AE3: تحريري | AF3: مجموع | AG3: عملى | AH3: تحريري | AI3: مجموع | AJ3: عملى | AK3: تحريري | AL3: مجموع | CM3: ناجح | CN3: ضعيف | DU3: غائب
N5: يوم/شهر/سنة | R5: 10 | S5: 20 | T5: 20 | U5: 50 | V5: 10 | W5: 20 | X5: 20 | Y5: 50 | Z5: 6 | AA5: 12 | AB5: 12 | AC5: 30 | AD5: 6 | AE5: 4 | AF5: 10 | AG5: 12 | AH5: 8 | AI5: 20 | AJ5: 12 | AK5: 8 | AL5: 20 | AM5: 30 | AN5: 20 | AO5: 50 | AP5: 10 | AQ5: 20 | AR5: 20 | AS5: 50 | AT5: 10 | AU5: 20 | AV5: 20 | AW5: 50 | AX5: 10 | AY5: 20 | AZ5: 20 | BA5: 50 | BB5: 10 | BC5: 20 | BD5: 20 | BE5: 50 | BF5: 10 | BG5: 20 | BH5: 20 | BI5: 50 | BJ5: 10 | BK5: 20 | BL5: 20 | BM5: 50 | BN5: 10 | BO5: 20 | BP5: 20 | BQ5: 50 | BR5: 10 | BS5: 20 | BT5: 20 | BU5: 50 | BV5: =SUM(S5,W5,AA5,AI5,AQ5,AU5,AY5,BC5,BG5,BK5,BO5,BS5) -> 232 | BW5: =SUM(U5,Y5,AC5,AO5,AS5,AW5,BA5,BE5,BI5,BM5,BQ5,BU5) -> 580 | BX5: 4 | BY5: 8 | BZ5: 8 | CA5: 20 | CB5: 4 | CC5: 8 | CD5: 8 | CE5: 20 | CK5: 12 | DU5: 1/2
T6: 5 | U6: 25 | X6: 5 | Y6: 20 | AB6: 3 | AC6: 9 | AJ6: 3 | AK6: 2 | AL6: 5 | AM6: 15 | AN6: 10 | AO6: 25 | AR6: 5 | AS6: 25 | AV6: 5 | AW6: 25 | AZ6: 5 | BA6: 25 | BD6: 5 | BE6: 25 | BH6: 5 | BI6: 20 | BL6: 5 | BM6: 25 | BP6: 5 | BQ6: 25 | BT6: 5 | BU6: 25 | BW6: =SUM(U6,Y6,AC6,AO6,AS6,AW6,BA6,BE6,BI6,BM6,BQ6,BU6) -> 274 | BZ6: 2 | CA6: 10 | CD6: 2 | CE6: 10 | CK6: =R1 -> لغة عربية | CL6: =V1 -> لغة إنجليزية | CM6: =Z1 -> لغة فرنسية | CN6: =AD1 -> حاسب آلي | CO6: =AP1 -> اعمال وساطة | CP6: =AT1 -> دعاية واعلان | CQ6: =AX1 -> اقتصاد | CR6: =BB1 -> سكرتارية اجنبية | CS6: =BF1 -> رياضة مالية | CT6: =BJ1 -> سوق اوراق مالية | CU6: =BN1 -> محاسبة مالية | CV6: =BR1 -> تسويق | CW6: مجموع كلي | CX6: =BX1 -> تربيـة دينية | CY6: =CB1 -> مواطنة | CZ6: حاسب عملي | DA6: حاسب تحريري | DC6: =R1 -> لغة عربية | DD6: =V1 -> لغة إنجليزية | DE6: =Z1 -> لغة فرنسية | DF6: =AD1 -> حاسب آلي | DG6: =AP1 -> اعمال وساطة | DH6: =AT1 -> دعاية واعلان | DI6: =AX1 -> اقتصاد | DJ6: =BB1 -> سكرتارية اجنبية | DK6: =BF1 -> رياضة مالية | DL6: =BJ1 -> سوق اوراق مالية | DM6: =BN1 -> محاسبة مالية | DN6: =BR1 -> تسويق | DO6: مجموع كلي | DP6: =BX1 -> تربيـة دينية | DQ6: =CB1 -> مواطنة | DS6: ربع الدرجة | DU6: 2/2
B7: =CG7 -> راسب | C7: =CI7 ->  | D7: =IF(E7="","",ROW()-9) -> -2 | E7: 501 | F7: طالبة تسويق 1 | I7: مستجد | J7: أنثي | K7: مسلم | L7: 30601181403428 | M7: =IF(L7="","",DATE(LEFT(L7,1)+17&MID(L7,2,2),MID(L7,4,2),MID(L7,6,2))) -> 2006-01-18 | N7: =IF([1]الشيت!M7="","",CONCATENATE(DATEDIF([1]الشيت!M7,[1]البداية!$M$20,"md")," - ",DATEDIF([1]الشيت!M7,[1]البداية!$M$20,"ym")," - ",DATEDIF([1]الشيت!M7,[1]البداية!$M$20,"y"))) ->  | O7: 566 | R7: 8 | S7: 12 | T7: 9.5 | U7: =IF(AND($B$1="",R7="غ",S7="غ",T7="غ"),"غائب",SUM(T7,S7,R7)) -> 29.5 | V7: 8.5 | W7: 13.5 | X7: 14.5 | Y7: =IF(AND($B$1="",V7="غ",W7="غ",X7="غ"),"غائب",SUM(X7,W7,V7)) -> 36.5 | Z7: 5.5 | AA7: 3.6 | AB7: 8.4 | AC7: =IF(AND($B$1="",Z7="غ",AA7="غ",AB7="غ"),"غائب",SUM(AB7,AA7,Z7)) -> 17.5 | AD7: 4.5 | AE7: 3 | AF7: =IF(AND($B$1="",AD7="غ",AE7="غ"),"غائب",SUM(AD7:AE7)) -> 7.5 | AG7: 8 | AH7: 4 | AI7: =IF(AND($B$1="",AG7="غ",AH7="غ"),"غائب",SUM(AG7:AH7)) -> 12 | AJ7: 9 | AK7: 3.5 | AL7: =IF(AND($B$1="",AJ7="غ",AK7="غ"),"غائب",SUM(AJ7:AK7)) -> 12.5 | AM7: =IF(AND($B$1="",AJ7="غ",AG7="غ",AD7="غ"),"غائب",SUM(AJ7,AG7,AD7)) -> 21.5 | AN7: =IF(AND($B$1="",AK7="غ",AH7="غ",AE7="غ"),"غائب",SUM(AE7,AH7,AK7)) -> 10.5 | AO7: =IF(AND($B$1="",AM7="غائب",AN7="غائب"),"غائب",SUM(AM7:AN7)) -> 32 | AP7: 8 | AQ7: 13 | AR7: 15 | AS7: =IF(AND($B$1="",AP7="غ",AQ7="غ",AR7="غ"),"غائب",SUM(AR7,AQ7,AP7)) -> 36 | AT7: 9 | AU7: 16 | AV7: 17 | AW7: =IF(AND($B$1="",AT7="غ",AU7="غ",AV7="غ"),"غائب",SUM(AV7,AU7,AT7)) -> 42 | AX7: 9 | AY7: 14 | AZ7: 12 | BA7: =IF(AND($B$1="",AX7="غ",AY7="غ",AZ7="غ"),"غائب",SUM(AZ7,AY7,AX7)) -> 35 | BB7: 9 | BC7: 15 | BD7: 9 | BE7: =IF(AND($B$1="",BB7="غ",BC7="غ",BD7="غ"),"غائب",SUM(BD7,BC7,BB7)) -> 33 | BF7: 9.5 | BG7: 8.5 | BH7: 15.5 | BI7: =IF(AND($B$1="",BF7="غ",BG7="غ",BH7="غ"),"غائب",SUM(BH7,BG7,BF7)) -> 33.5 | BJ7: 9 | BK7: 8 | BL7: 17 | BM7: =IF(AND($B$1="",BJ7="غ",BK7="غ",BL7="غ"),"غائب",SUM(BL7,BK7,BJ7)) -> 34 | BN7: 9 | BO7: 10 | BP7: 12.5 | BQ7: =IF(AND($B$1="",BN7="غ",BO7="غ",BP7="غ"),"غائب",SUM(BP7,BO7,BN7)) -> 31.5 | BR7: 9 | BS7: 15 | BT7: 13 | BU7: =IF(AND($B$1="",BR7="غ",BS7="غ",BT7="غ"),"غائب",SUM(BT7,BS7,BR7)) -> 37 | BV7: =IF(AND($B$1="",S7="غ",W7="غ",AA7="غ",AG7="غ",AH7="غ",AQ7="غ",AU7="غ",AY7="غ",BC7="غ",BG7="غ",BK7="غ",BO7="غ",BS7="غ",BY7="غ",CC7="غ"),"غائب",SUM(S7,W7,AA7,AG7,AH7,AQ7,AU7,AY7,BC7,BG7,BK7,BO7,BS7)) -> 140.6 | BW7: =IF(AND($B$1="",U7="غائب",Y7="غائب",AC7="غائب",AO7="غائب",AS7="غائب",AW7="غائب",BA7="غائب",BE7="غائب",BI7="غائب",BM7="غائب",BQ7="غائب",BU7="غائب",CA7="غائب",CE7="غائب"),"غائب",SUM(BU7,BQ7,BM7,BI7,BE7,BA7,AW7,AS7,AO7,AC7,Y7,U7)) -> 397.5 | BX7: 4 | BY7: 6 | BZ7: 6.5 | CA7: =IF(AND($B$1="",BX7="غ",BY7="غ",BZ7="غ"),"غائب",SUM(BZ7,BY7,BX7)) -> 16.5 | CB7: 3.5 | CC7: 4.5 | CD7: 7 | CE7: =IF(AND($B$1="",CB7="غ",CC7="غ",CD7="غ"),"غائب",SUM(CD7,CC7,CB7)) -> 15 | CF7: =IF(OR($F7="",BV$4=""),"",IF(BV7="غائب","غائب",IF(BV7/BV$8>=0.9,"ممتاز",IF(BV7/BV$8>=0.8,"جيد جدا",IF(BV7/BV$8>=0.6,"جيد ",IF(BV7/BV$8>=0.5,"مقبول ",IF(BV7<BV$8,"ضعيف"))))))) ->  | CG7: =IF($F7="","",IF(AND(CJ7>=3,I7="معيد"),"مفصول",IF(OR(CJ7=1,CJ7=2),"دور ثان",IF(CJ7>=3,"راسب",IF(CJ7=0,"ناجح"))))) -> راسب | CH7: =IF(F7="","",IF(CJ7=0,RANK($BW7,$BW$10:$BW$599)+COUNTIF(BW7:BW$10,BW7)-1,IF(CJ7>=$CK$8,"جميع المواد",CONCATENATE(DC7,DD7,DE7,DF7,DG7,DH7,DI7,DJ7,DK7,DL7,DM7,DN7,DO7,DP7,DQ7)))) -> 000(حاسب نظرى) 000000000 | CI7: =IF(F7="","",IF(CJ7=0,RANK($BW7,$BW$10:$BW$599)+COUNTIF(BW7:BW$10,BW7)-"1","")) ->  | CJ7: =IF($F7="","",IF(AND(COUNTBLANK(DC7:DN7)=12,COUNTBLANK(DP7:DQ7)<2),1,IF(AND(COUNTBLANK(DC7:DN7)<12,COUNTBLANK(DP7:DQ7)<2),12-COUNTBLANK(DC7:DN7),IF(AND(COUNTBLANK(DC7:DN7)<12,COUNTBLANK(DP7:DQ7)>0),12-COUNTBLANK(DC7:DN7),0)))) -> 11 | CK7: =IF($F7="","",IF(OR(U7<$U$9,U7="غائب",T7<$T$9,T7="غ"),"1","0")) -> 1 | CL7: =IF($F7="","",IF(OR(Y7<$Y$9,Y7="غائب",X7<$X$9,X7="غ"),"1","0")) -> 1 | CM7: =IF($F7="","",IF(OR(AC7<$AC$9,AC7="غائب",AB7<$AB$9,AB7="غ"),"1","0")) -> 1 | CN7: =IF($F7="","",IF(OR(AN7<$AN$9,AN7="غائب",AM7<$AM$9,AM7="غ",AK7<$AK$9,AK7="غ",AJ7<$AJ$9,AJ7="غ",),"1","0")) -> 1 | CO7: =IF($F7="","",IF(OR(AS7<$AS$9,AS7="غائب",AR7<$AR$9,AR7="غ"),"1","0")) -> 0 | CP7: =IF($F7="","",IF(OR(AW7<$AW$9,AW7="غائب",AV7<$AV$9,AV7="غ"),"1","0")) -> 1 | CQ7: =IF($F7="","",IF(OR(BA7<$BA$9,BA7="غائب",AZ7<$AZ$9,AZ7="غ"),"1","0")) -> 1 | CR7: =IF($F7="","",IF(OR(BE7<$BE$9,BE7="غائب",BD7<$BD$9,BD7="غ"),"1","0")) -> 1 | CS7: =IF($F7="","",IF(OR(BI7<$BI$9,BI7="غائب",BH7<$BH$9,BH7="غ"),"1","0")) -> 1 | CT7: =IF($F7="","",IF(OR(BM7<$BM$9,BM7="غائب",BL7<$BL$9,BL7="غ"),"1","0")) -> 1 | CU7: =IF($F7="","",IF(OR(BQ7<$BQ$9,BQ7="غائب",BP7<$BP$9,BP7="غ"),"1","0")) -> 1 | CV7: =IF($F7="","",IF(OR(BU7<$BU$9,BU7="غائب",BT7<$BT$9,BT7="غ"),"1","0")) -> 1 | CW7: =IF($F7="","",IF(OR(BW7<$BW$9,BW7="غائب"),"1","0")) -> 1 | CX7: =IF($F7="","",IF(OR(CA7<$CA$9,CA7="غائب",BZ7<$BZ$9,BZ7="غ"),"1","0")) -> 1 | CY7: =IF($F7="","",IF(OR(CE7<$CE$9,CE7="غائب",CD7<$CD$9,CD7="غ"),"1","0")) -> 0 | DC7: =IF($F7="","",IF(OR(U7<$U$9,U7="غائب",T7<$T$9,T7="غ"),$CK$9,"")) -> 0 | DD7: =IF($F7="","",IF(OR(Y7<$Y$9,Y7="غائب",X7<$X$9,X7="غ"),$CL$9,"")) -> 0 | DE7: =IF($F7="","",IF(OR(AC7<$AC$9,AC7="غائب",AB7<$AB$9,AB7="غ"),$CM$9,"")) -> 0 | DF7: =IF($F7="","",IF(AND(OR(AN7="غائب",AN7<$AN$9),OR(AM7="غائب",AM7<$AM$9)),$CN$9,IF(OR(AM7="غائب",AM7<$AM$9,AJ7="غ",AJ7<$AJ$9),"(حاسب عملي) ",IF(OR(AN7="غائب",AN7<$AN$9,AK7="غ",AK7<$AK$9),"(حاسب نظرى) ","")))) -> (حاسب نظرى) | DG7: =IF($F7="","",IF(OR(AS7<$AS$9,AS7="غائب",AR7<$AR$9,AR7="غ"),$CO$9,"")) ->  | DH7: =IF($F7="","",IF(OR(AW7<$AW$9,AW7="غائب",AV7<$AV$9,AV7="غ"),$CP$9,"")) -> 0 | DI7: =IF($F7="","",IF(OR(BA7<$BA$9,BA7="غائب",AZ7<$AZ$9,AZ7="غ"),$CQ$9,"")) -> 0 | DJ7: =IF($F7="","",IF(OR(BE7<$BE$9,BE7="غائب",BD7<$BD$9,BD7="غ"),$CR$9,"")) -> 0 | DK7: =IF($F7="","",IF(OR(BI7<$BI$9,BI7="غائب",BH7<$BH$9,BH7="غ"),$CS$9,"")) -> 0 | DL7: =IF($F7="","",IF(OR(BM7<$BM$9,BM7="غائب",BL7<$BL$9,BL7="غ"),$CT$9,"")) -> 0 | DM7: =IF($F7="","",IF(OR(BQ7<$BQ$9,BQ7="غائب",BP7<$BP$9,BP7="غ"),$CU$9,"")) -> 0 | DN7: =IF($F7="","",IF(OR(BU7<$BU$9,BU7="غائب",BT7<$BT$9,BT7="غ"),$CV$9,"")) -> 0 | DO7: =IF($F7="","",IF(OR(BW7<$BW$9,BW7="غائب"),$CW$9,"")) -> 0 | DP7: =IF($F7="","",IF(OR(CA7<$CA$9,CA7="غائب",BZ7<$BZ$9,BZ7="غ"),$CX$9,"")) -> 0 | DQ7: =IF($F7="","",IF(OR(CE7<$CE$9,CE7="غائب",CD7<$CD$9,CD7="غ"),$CY$9,"")) ->  | DS7: =IF(CG7="دور ثان",IF(OR(T7<$T$9,T7="غ"),$R$4&" ","")&IF(OR(X7<$X$9,X7="غ"),$V$4&" ","")&IF(OR(AB7<$AB$9, AB7="غ"),$Z$4&" ","")&IF(OR(AJ7<$AJ$9, AJ7="غ"),$CZ$9&" ","")&IF(OR(AK7<$AK$9, AK7="غ"),$DA$9&" ","")&IF(OR(AR7<$AR$9, AR7="غ"),$AP$4&" ","")&IF(OR(AV7<$AV$9, AV7="غ"),$AT$4&" ","")&IF(OR(AZ7<$AZ$9, AZ7="غ"),$AX$4&" ","")&IF(OR(BD7<$BD$9, BD7="غ"),$BB$4&" ","")&IF(OR(BH7<$BH$9, BH7="غ"),$BF$4&" ","")&IF(OR(BL7<$BL$9, BL7="غ"),$BJ$4&" ","")&IF(OR(BP7<$BP$9, BP7="غ"),$BN$4&" ","")&IF(OR(BT7<$BT$9, BT7="غ"),$BR$4&" ",""),"") ->  | DU7: 3/2
B8: راسب | D8: -1 | E8: 502 | F8: طالبة تسويق 2 | I8: مستجد | J8: أنثي | K8: مسلم | L8: 30301011403926 | M8: 2003-01-01 | N8: =IF([1]الشيت!M8="","",CONCATENATE(DATEDIF([1]الشيت!M8,[1]البداية!$M$20,"md")," - ",DATEDIF([1]الشيت!M8,[1]البداية!$M$20,"ym")," - ",DATEDIF([1]الشيت!M8,[1]البداية!$M$20,"y"))) ->  | O8: 567 | R8: 8 | S8: 9 | T8: 9.5 | U8: 26.5 | V8: 8.5 | W8: 11.5 | X8: 13 | Y8: 33 | Z8: 5.5 | AA8: 4 | AB8: 7.6 | AC8: 17.1 | AD8: 4.5 | AE8: 3 | AF8: 7.5 | AG8: 9 | AH8: 3.5 | AI8: 12.5 | AJ8: 7 | AK8: 3.5 | AL8: 10.5 | AM8: 20.5 | AN8: 10 | AO8: =IF(AND($A$1="",AM8="غائب",AN8="غائب"),"غائب",SUM(AM8:AN8)) -> 30.5 | AP8: 8 | AQ8: 11 | AR8: 11.5 | AS8: 30.5 | AT8: 9 | AU8: 14 | AV8: 17 | AW8: 40 | AX8: 9 | AY8: 11 | AZ8: 10 | BA8: 30 | BB8: 9 | BC8: 12 | BD8: 7.5 | BE8: 28.5 | BF8: 9.5 | BG8: 8.5 | BH8: 13.5 | BI8: 31.5 | BJ8: 9 | BK8: 13 | BL8: 16 | BM8: 38 | BN8: 9.5 | BO8: 5 | BP8: 10.5 | BQ8: 25 | BR8: 9 | BS8: 12 | BT8: 11 | BU8: 32 | BV8: 123.5 | BW8: 362.6 | BX8: 4 | BY8: 5 | BZ8: 6 | CA8: 15 | CB8: 3.5 | CC8: 4 | CD8: 7 | CE8: 14.5 | CG8: راسب | CH8: =IF(F8="","",IF(CJ8=0,RANK($BW8,$BW$10:$BW$599)+COUNTIF(BW8:BW$10,BW8)-1,IF(CJ8>=$CK$8,"جميع المواد",CONCATENATE(DC8,DD8,DE8,DF8,DG8,DH8,DI8,DJ8,DK8,DL8,DM8,DN8,DO8,DP8,DQ8)))) -> 00000000000000 | CI8: =IF(F8="","",IF(CJ8=0,RANK($BW8,$BW$10:$BW$599)+COUNTIF(BW8:BW$10,BW8)-"1","")) ->  | CJ8: 12 | CK8: 1 | CL8: 1 | CM8: 1 | CN8: 1 | CO8: 1 | CP8: 1 | CQ8: 1 | CR8: 1 | CS8: 1 | CT8: 1 | CU8: 1 | CV8: 1 | CW8: 1 | CX8: 1 | CY8: 0 | DC8: 0 | DD8: 0 | DE8: 0 | DF8: 0 | DG8: 0 | DH8: 0 | DI8: 0 | DJ8: 0 | DK8: 0 | DL8: 0 | DM8: 0 | DN8: 0 | DO8: 0 | DP8: 0 | DS8: =IF(CG8="دور ثان",IF(OR(T8<$T$9,T8="غ"),$R$4&" ","")&IF(OR(X8<$X$9,X8="غ"),$V$4&" ","")&IF(OR(AB8<$AB$9, AB8="غ"),$Z$4&" ","")&IF(OR(AJ8<$AJ$9, AJ8="غ"),$CZ$9&" ","")&IF(OR(AK8<$AK$9, AK8="غ"),$DA$9&" ","")&IF(OR(AR8<$AR$9, AR8="غ"),$AP$4&" ","")&IF(OR(AV8<$AV$9, AV8="غ"),$AT$4&" ","")&IF(OR(AZ8<$AZ$9, AZ8="غ"),$AX$4&" ","")&IF(OR(BD8<$BD$9, BD8="غ"),$BB$4&" ","")&IF(OR(BH8<$BH$9, BH8="غ"),$BF$4&" ","")&IF(OR(BL8<$BL$9, BL8="غ"),$BJ$4&" ","")&IF(OR(BP8<$BP$9, BP8="غ"),$BN$4&" ","")&IF(OR(BT8<$BT$9, BT8="غ"),$BR$4&" ",""),"") ->  | DU8: 4/2
B9: ناجح | D9: 0 | E9: 503 | F9: طالبة تسويق 3 | I9: مستجد | J9: أنثي | K9: مسلم | L9: 30509241403321 | M9: 2005-09-24 | N9: =IF([1]الشيت!M9="","",CONCATENATE(DATEDIF([1]الشيت!M9,[1]البداية!$M$20,"md")," - ",DATEDIF([1]الشيت!M9,[1]البداية!$M$20,"ym")," - ",DATEDIF([1]الشيت!M9,[1]البداية!$M$20,"y"))) ->  | O9: 568 | R9: 8 | S9: 13.5 | T9: 12 | U9: 33.5 | V9: 8.5 | W9: 14.5 | X9: 14 | Y9: 37 | Z9: 5.5 | AA9: 4 | AB9: 8.4 | AC9: 17.9 | AD9: 4.5 | AE9: 3 | AF9: 7.5 | AG9: 8 | AH9: 5.5 | AI9: 13.5 | AJ9: 9 | AK9: 4.5 | AL9: 13.5 | AM9: 21.5 | AN9: 13 | AO9: 34.5 | AP9: 8 | AQ9: 13 | AR9: 12 | AS9: 33 | AT9: 9 | AU9: 19 | AV9: 19 | AW9: 47 | AX9: 9 | AY9: 14 | AZ9: 15 | BA9: 38 | BB9: 9 | BC9: 13 | BD9: 13 | BE9: 35 | BF9: 9.5 | BG9: 18.5 | BH9: 17.5 | BI9: 45.5 | BJ9: 9 | BK9: 10 | BL9: 17 | BM9: 36 | BN9: 9 | BO9: 14.5 | BP9: 16.5 | BQ9: 40 | BR9: 9 | BS9: 13 | BT9: 14 | BU9: 36 | BV9: 160.5 | BW9: 433.4 | BX9: 4 | BY9: 4.5 | BZ9: 7 | CA9: 15.5 | CB9: 3.5 | CC9: 4 | CD9: 7 | CE9: 14.5 | CG9: ناجح | CH9: =IF(F9="","",IF(CJ9=0,RANK($BW9,$BW$10:$BW$599)+COUNTIF(BW9:BW$10,BW9)-1,IF(CJ9>=$CK$8,"جميع المواد",CONCATENATE(DC9,DD9,DE9,DF9,DG9,DH9,DI9,DJ9,DK9,DL9,DM9,DN9,DO9,DP9,DQ9)))) ->  | CI9: =IF(F9="","",IF(CJ9=0,RANK($BW9,$BW$10:$BW$599)+COUNTIF(BW9:BW$10,BW9)-"1","")) ->  | CJ9: 0 | CK9: 0 | CL9: 0 | CM9: 0 | CN9: 0 | CO9: 0 | CP9: 0 | CQ9: 0 | CR9: 0 | CS9: 0 | CT9: 0 | CU9: 0 | CV9: 0 | CW9: 0 | CX9: 0 | CY9: 0 | DU9: 5/2
B10: راسب | D10: 1 | E10: 504 | F10: طالبة تسويق 4 | I10: مستجد | J10: أنثي | K10: مسلم | L10: 30507281401264 | M10: 2005-07-28 | N10: =IF([1]الشيت!M10="","",CONCATENATE(DATEDIF([1]الشيت!M10,[1]البداية!$M$20,"md")," - ",DATEDIF([1]الشيت!M10,[1]البداية!$M$20,"ym")," - ",DATEDIF([1]الشيت!M10,[1]البداية!$M$20,"y"))) -> 13 - 8 - 12 | O10: 569 | R10: 8 | S10: 14 | T10: 14.5 | U10: 36.5 | V10: 8.5 | W10: 14.5 | X10: 15 | Y10: 38 | Z10: 5.5 | AA10: 4.4 | AB10: 7.2 | AC10: 17.1 | AD10: 5 | AE10: 3 | AF10: 8 | AG10: 7 | AH10: 6.5 | AI10: 13.5 | AJ10: 8 | AK10: 5.5 | AL10: 13.5 | AM10: 20 | AN10: 15 | AO10: 35 | AP10: 8 | AQ10: 14 | AR10: 15 | AS10: 37 | AT10: 9 | AU10: 19.5 | AV10: 17 | AW10: 45.5 | AX10: 9 | AY10: 14 | AZ10: 16 | BA10: 39 | BB10: 9 | BC10: 13 | BD10: 11.5 | BE10: 33.5 | BF10: 9.5 | BG10: 19.5 | BH10: 15.5 | BI10: 44.5 | BJ10: 8.5 | BK10: 13 | BL10: 16 | BM10: 37.5 | BN10: 9 | BO10: 15 | BP10: 16 | BQ10: 40 | BR10: 9 | BS10: 13 | BT10: 17 | BU10: 39 | BV10: 167.4 | BW10: 442.6 | BX10: 4 | BY10: 5 | BZ10: 6 | CA10: 15 | CB10: 3.5 | CC10: 4 | CD10: 7 | CE10: 14.5 | CG10: راسب | CH10: =IF(F10="","",IF(CJ10=0,RANK($BW10,$BW$10:$BW$599)+COUNTIF(BW$10:BW10,BW10)-1,IF(CJ10>=$CK$8,"جميع المواد",CONCATENATE(DC10,DD10,DE10,DF10,DG10,DH10,DI10,DJ10,DK10,DL10,DM10,DN10,DO10,DP10,DQ10)))) -> 0(حاسب عملي) 000000 | CI10: =IF(F10="","",IF(CJ10=0,RANK($BW10,$BW$10:$BW$599)+COUNTIF(BW$10:BW10,BW10)-"1","")) ->  | CJ10: 7 | CK10: 0 | CL10: 0 | CM10: 1 | CN10: 1 | CO10: 0 | CP10: 1 | CQ10: 0 | CR10: 1 | CS10: 1 | CT10: 1 | CU10: 1 | CV10: 0 | CW10: 0 | CX10: 1 | CY10: 0 | DE10: 0 | DF10: (حاسب عملي) | DH10: 0 | DJ10: 0 | DK10: 0 | DL10: 0 | DM10: 0 | DP10: 0 | DU10: 6/2
B11: راسب | D11: 2 | E11: 505 | F11: طالبة تسويق 5 | I11: مستجد | J11: أنثي | K11: مسلم | L11: 30511091401184 | M11: 2005-11-09 | N11: =IF([1]الشيت!M11="","",CONCATENATE(DATEDIF([1]الشيت!M11,[1]البداية!$M$20,"md")," - ",DATEDIF([1]الشيت!M11,[1]البداية!$M$20,"ym")," - ",DATEDIF([1]الشيت!M11,[1]البداية!$M$20,"y"))) -> 0 - 9 - 15 | O11: 570 | R11: 8 | S11: 9 | T11: 9 | U11: 26 | V11: 8.5 | W11: 13 | X11: 11.5 | Y11: 33 | Z11: 5.5 | AA11: 4.4 | AB11: 7.6 | AC11: 17.5 | AD11: 5 | AE11: 3 | AF11: 8 | AG11: 7 | AH11: 4 | AI11: 11 | AJ11: 8 | AK11: 5.5 | AL11: 13.5 | AM11: 20 | AN11: 12.5 | AO11: 32.5 | AP11: 8 | AQ11: 12 | AR11: 16 | AS11: 36 | AT11: 9 | AU11: 15 | AV11: 18 | AW11: 42 | AX11: 9 | AY11: 10 | AZ11: 13 | BA11: 32 | BB11: 9 | BC11: 5 | BD11: 8.5 | BE11: 22.5 | BF11: 9.5 | BG11: 8 | BH11: 17.5 | BI11: 35 | BJ11: 9 | BK11: 12 | BL11: 17 | BM11: 38 | BN11: 9.5 | BO11: 3.5 | BP11: 12 | BQ11: 25 | BR11: 9 | BS11: 11 | BT11: 11 | BU11: 31 | BV11: 113.9 | BW11: 370.5 | BX11: 4 | BY11: 3.5 | BZ11: 6.5 | CA11: 14 | CB11: 3.5 | CC11: 4 | CD11: 6 | CE11: 13.5 | CG11: راسب | CH11: =IF(F11="","",IF(CJ11=0,RANK($BW11,$BW$10:$BW$599)+COUNTIF(BW$10:BW11,BW11)-1,IF(CJ11>=$CK$8,"جميع المواد",CONCATENATE(DC11,DD11,DE11,DF11,DG11,DH11,DI11,DJ11,DK11,DL11,DM11,DN11,DO11,DP11,DQ11)))) -> 0000000000000 | CI11: =IF(F11="","",IF(CJ11=0,RANK($BW11,$BW$10:$BW$599)+COUNTIF(BW$10:BW11,BW11)-"1","")) ->  | CJ11: 10 | CK11: 1 | CL11: 1 | CM11: 1 | CN11: 1 | CO11: 0 | CP11: 1 | CQ11: 1 | CR11: 1 | CS11: 1 | CT11: 0 | CU11: 1 | CV11: 1 | CW11: 1 | CX11: 1 | CY11: 1 | DC11: 0 | DD11: 0 | DE11: 0 | DF11: 0 | DH11: 0 | DI11: 0 | DJ11: 0 | DK11: 0 | DM11: 0 | DN11: 0 | DO11: 0 | DP11: 0 | DQ11: 0 | DU11: 7/2
B12: راسب | D12: 3 | E12: 506 | F12: طالبة تسويق 6 | I12: مستجد | J12: أنثي | K12: مسلم | L12: 30401011411826 | M12: 2004-01-01 | N12: =IF([1]الشيت!M12="","",CONCATENATE(DATEDIF([1]الشيت!M12,[1]البداية!$M$20,"md")," - ",DATEDIF([1]الشيت!M12,[1]البداية!$M$20,"ym")," - ",DATEDIF([1]الشيت!M12,[1]البداية!$M$20,"y"))) -> 7 - 0 - 13 | O12: 571 | R12: 8 | S12: 8.5 | T12: 8.5 | U12: 25 | V12: 8.5 | W12: 11 | X12: 12 | Y12: 31.5 | Z12: 5.5 | AA12: 4.4 | AB12: 7.6 | AC12: 17.5 | AD12: 5 | AE12: 3 | AF12: 8 | AG12: 8 | AH12: 4 | AI12: 12 | AJ12: 8 | AK12: 4.5 | AL12: 12.5 | AM12: 21 | AN12: 11.5 | AO12: 32.5 | AP12: 9 | AQ12: 11.5 | AR12: 15 | AS12: 35.5 | AT12: 9 | AU12: 14.5 | AV12: 18.5 | AW12: 42 | AX12: 9 | AY12: 14 | AZ12: 13 | BA12: 36 | BB12: 9 | BC12: 5.5 | BD12: 5.5 | BE12: 20 | BF12: 9.5 | BG12: 9 | BH12: 14 | BI12: 32.5 | BJ12: 9 | BK12: 10.5 | BL12: 17 | BM12: 36.5 | BN12: 9.5 | BO12: 5.5 | BP12: 1.5 | BQ12: 16.5 | BR12: 9 | BS12: 15 | BT12: 13 | BU12: 37 | BV12: 121.4 | BW12: 362.5 | BX12: 4 | BY12: 5 | BZ12: 6 | CA12: 15 | CB12: 3.5 | CC12: 5 | CD12: 6 | CE12: 14.5 | CG12: راسب | CH12: =IF(F12="","",IF(CJ12=0,RANK($BW12,$BW$10:$BW$599)+COUNTIF(BW$10:BW12,BW12)-1,IF(CJ12>=$CK$8,"جميع المواد",CONCATENATE(DC12,DD12,DE12,DF12,DG12,DH12,DI12,DJ12,DK12,DL12,DM12,DN12,DO12,DP12,DQ12)))) -> 0000000000000 | CI12: =IF(F12="","",IF(CJ12=0,RANK($BW12,$BW$10:$BW$599)+COUNTIF(BW$10:BW12,BW12)-"1","")) ->  | CJ12: 10 | CK12: 1 | CL12: 1 | CM12: 1 | CN12: 1 | CO12: 0 | CP12: 1 | CQ12: 1 | CR12: 1 | CS12: 1 | CT12: 0 | CU12: 1 | CV12: 1 | CW12: 1 | CX12: 1 | CY12: 1 | DC12: 0 | DD12: 0 | DE12: 0 | DF12: 0 | DH12: 0 | DI12: 0 | DJ12: 0 | DK12: 0 | DM12: 0 | DN12: 0 | DO12: 0 | DP12: 0 | DQ12: 0 | DU12: 8/2
B13: راسب | D13: 4 | E13: 507 | F13: طالبة تسويق 7 | I13: مستجد | J13: أنثي | K13: مسلم | L13: 30510251402569 | M13: 2005-10-25 | N13: =IF([1]الشيت!M13="","",CONCATENATE(DATEDIF([1]الشيت!M13,[1]البداية!$M$20,"md")," - ",DATEDIF([1]الشيت!M13,[1]البداية!$M$20,"ym")," - ",DATEDIF([1]الشيت!M13,[1]البداية!$M$20,"y"))) -> 3 - 2 - 13 | O13: 572 | R13: 8 | S13: 8 | T13: 9 | U13: 25 | V13: 8.5 | W13: 12.5 | X13: 12 | Y13: 33 | Z13: 5.5 | AA13: 4.4 | AB13: 7.6 | AC13: 17.5 | AD13: 4.5 | AE13: 3 | AF13: 7.5 | AG13: 8 | AH13: 5 | AI13: 13 | AJ13: 7 | AK13: 3.5 | AL13: 10.5 | AM13: 19.5 | AN13: 11.5 | AO13: 31 | AP13: 8 | AQ13: 7 | AR13: 12 | AS13: 27 | AT13: 9 | AU13: 14.5 | AV13: 18 | AW13: 41.5 | AX13: 9 | AY13: 11 | AZ13: 13 | BA13: 33 | BB13: 9 | BC13: 7.5 | BD13: 8.5 | BE13: 25 | BF13: 9.5 | BG13: 13.5 | BH13: 14 | BI13: 37 | BJ13: 8.5 | BK13: 9 | BL13: 17 | BM13: 34.5 | BN13: 9 | BO13: 8 | BP13: 2.5 | BQ13: 19.5 | BR13: 9 | BS13: 15 | BT13: 13 | BU13: 37 | BV13: 123.4 | BW13: 361 | BX13: 4 | BY13: 3 | BZ13: 7 | CA13: 14 | CB13: 3.5 | CC13: 4 | CD13: 5 | CE13: 12.5 | CG13: راسب | CH13: =IF(F13="","",IF(CJ13=0,RANK($BW13,$BW$10:$BW$599)+COUNTIF(BW$10:BW13,BW13)-1,IF(CJ13>=$CK$8,"جميع المواد",CONCATENATE(DC13,DD13,DE13,DF13,DG13,DH13,DI13,DJ13,DK13,DL13,DM13,DN13,DO13,DP13,DQ13)))) -> 000000000000000 | CI13: =IF(F13="","",IF(CJ13=0,RANK($BW13,$BW$10:$BW$599)+COUNTIF(BW$10:BW13,BW13)-"1","")) ->  | CJ13: 12 | CK13: 1 | CL13: 1 | CM13: 1 | CN13: 1 | CO13: 1 | CP13: 1 | CQ13: 1 | CR13: 1 | CS13: 1 | CT13: 1 | CU13: 1 | CV13: 1 | CW13: 1 | CX13: 1 | CY13: 1 | DC13: 0 | DD13: 0 | DE13: 0 | DF13: 0 | DG13: 0 | DH13: 0 | DI13: 0 | DJ13: 0 | DK13: 0 | DL13: 0 | DM13: 0 | DN13: 0 | DO13: 0 | DP13: 0 | DQ13: 0 | DU13: 9/2
B14: راسب | D14: 5 | E14: 508 | F14: طالبة تسويق 8 | I14: مستجد | J14: أنثي | K14: مسلم | L14: 30509051401187 | M14: 2005-09-05 | N14: =IF([1]الشيت!M14="","",CONCATENATE(DATEDIF([1]الشيت!M14,[1]البداية!$M$20,"md")," - ",DATEDIF([1]الشيت!M14,[1]البداية!$M$20,"ym")," - ",DATEDIF([1]الشيت!M14,[1]البداية!$M$20,"y"))) -> 22 - 10 - 12 | O14: 573 | R14: 8 | S14: 11.5 | T14: 9.5 | U14: 29 | V14: 8.5 | W14: 14 | X14: 14.5 | Y14: 37 | Z14: 5.5 | AA14: 4.4 | AB14: 7.6 | AC14: 17.5 | AD14: 4.5 | AE14: 3 | AF14: 7.5 | AG14: 9 | AH14: 6 | AI14: 15 | AJ14: 9 | AK14: 3 | AL14: 12 | AM14: 22.5 | AN14: 12 | AO14: 34.5 | AP14: 8 | AQ14: 11.5 | AR14: 14 | AS14: 33.5 | AT14: 9 | AU14: 18 | AV14: 18 | AW14: 45 | AX14: 9 | AY14: 14 | AZ14: 14 | BA14: 37 | BB14: 9 | BC14: 7.5 | BD14: 11 | BE14: 27.5 | BF14: 9.5 | BG14: 11.5 | BH14: 16.5 | BI14: 37.5 | BJ14: 8.5 | BK14: 12 | BL14: 17 | BM14: 37.5 | BN14: 9 | BO14: 10.5 | BP14: 16.5 | BQ14: 36 | BR14: 9 | BS14: 15 | BT14: 12 | BU14: 36 | BV14: 144.9 | BW14: 408 | BX14: 4 | BY14: 4.5 | BZ14: 6.5 | CA14: 15 | CB14: 3.5 | CC14: 4 | CD14: 8 | CE14: 15.5 | CG14: راسب | CH14: =IF(F14="","",IF(CJ14=0,RANK($BW14,$BW$10:$BW$599)+COUNTIF(BW$10:BW14,BW14)-1,IF(CJ14>=$CK$8,"جميع المواد",CONCATENATE(DC14,DD14,DE14,DF14,DG14,DH14,DI14,DJ14,DK14,DL14,DM14,DN14,DO14,DP14,DQ14)))) -> 00(حاسب نظرى) 00000000 | CI14: =IF(F14="","",IF(CJ14=0,RANK($BW14,$BW$10:$BW$599)+COUNTIF(BW$10:BW14,BW14)-"1","")) ->  | CJ14: 9 | CK14: 1 | CL14: 0 | CM14: 1 | CN14: 1 | CO14: 0 | CP14: 1 | CQ14: 1 | CR14: 1 | CS14: 1 | CT14: 0 | CU14: 1 | CV14: 1 | CW14: 1 | CX14: 1 | CY14: 0 | DC14: 0 | DE14: 0 | DF14: (حاسب نظرى) | DH14: 0 | DI14: 0 | DJ14: 0 | DK14: 0 | DM14: 0 | DN14: 0 | DO14: 0 | DP14: 0 | DU14: 10/2
B15: راسب | D15: 6 | E15: 509 | F15: طالبة تسويق 9 | I15: مستجد | J15: أنثي | K15: مسلم | L15: 30601231400646 | M15: 2006-01-23 | N15: =IF([1]الشيت!M15="","",CONCATENATE(DATEDIF([1]الشيت!M15,[1]البداية!$M$20,"md")," - ",DATEDIF([1]الشيت!M15,[1]البداية!$M$20,"ym")," - ",DATEDIF([1]الشيت!M15,[1]البداية!$M$20,"y"))) -> 0 - 9 - 14 | O15: 574 | R15: 8 | S15: 6.5 | T15: 10.5 | U15: 25 | V15: 6 | W15: 12 | X15: 11.5 | Y15: 29.5 | Z15: 5.5 | AA15: 4.8 | AB15: 7.6 | AC15: 17.9 | AD15: 4.5 | AE15: 3 | AF15: 7.5 | AG15: 8 | AH15: 6 | AI15: 14 | AJ15: 8 | AK15: 3 | AL15: 11 | AM15: 20.5 | AN15: 12 | AO15: 32.5 | AP15: 8 | AQ15: 15 | AR15: 14 | AS15: 37 | AT15: 9 | AU15: 14 | AV15: 18 | AW15: 41 | AX15: 9 | AY15: 12 | AZ15: 15 | BA15: 36 | BB15: 9 | BC15: 7.5 | BD15: 9.5 | BE15: 26 | BF15: 9.5 | BG15: 15.5 | BH15: 16 | BI15: 41 | BJ15: 8.5 | BK15: 10 | BL15: 17 | BM15: 35.5 | BN15: 9 | BO15: 7.5 | BP15: 8.5 | BQ15: 25 | BR15: 9 | BS15: 13 | BT15: 17 | BU15: 39 | BV15: 131.8 | BW15: 385.4 | BX15: 4 | BY15: 4 | BZ15: 5.5 | CA15: 13.5 | CB15: 3.5 | CC15: 3 | CD15: 7 | CE15: 13.5 | CG15: راسب | CH15: =IF(F15="","",IF(CJ15=0,RANK($BW15,$BW$10:$BW$599)+COUNTIF(BW$10:BW15,BW15)-1,IF(CJ15>=$CK$8,"جميع المواد",CONCATENATE(DC15,DD15,DE15,DF15,DG15,DH15,DI15,DJ15,DK15,DL15,DM15,DN15,DO15,DP15,DQ15)))) -> 0000000000000 | CI15: =IF(F15="","",IF(CJ15=0,RANK($BW15,$BW$10:$BW$599)+COUNTIF(BW$10:BW15,BW15)-"1","")) ->  | CJ15: 10 | CK15: 1 | CL15: 1 | CM15: 1 | CN15: 1 | CO15: 0 | CP15: 1 | CQ15: 1 | CR15: 1 | CS15: 1 | CT15: 1 | CU15: 1 | CV15: 0 | CW15: 1 | CX15: 1 | CY15: 1 | DC15: 0 | DD15: 0 | DE15: 0 | DF15: 0 | DH15: 0 | DI15: 0 | DJ15: 0 | DK15: 0 | DL15: 0 | DM15: 0 | DO15: 0 | DP15: 0 | DQ15: 0 | DU15: منازل
B16: راسب | D16: 7 | E16: 510 | F16: طالبة تسويق 10 | I16: مستجد | J16: أنثي | K16: مسلم | L16: 30310011401442 | M16: 2003-10-01 | N16: =IF([1]الشيت!M16="","",CONCATENATE(DATEDIF([1]الشيت!M16,[1]البداية!$M$20,"md")," - ",DATEDIF([1]الشيت!M16,[1]البداية!$M$20,"ym")," - ",DATEDIF([1]الشيت!M16,[1]البداية!$M$20,"y"))) -> 6 - 11 - 12 | O16: 575 | R16: 8 | S16: 7 | T16: 10.5 | U16: 25.5 | V16: 6 | W16: 11.5 | X16: 12 | Y16: 29.5 | Z16: 5.5 | AA16: 4 | AB16: 7.6 | AC16: 17.1 | AD16: 5 | AE16: 3 | AF16: 8 | AG16: 7 | AH16: 4.5 | AI16: 11.5 | AJ16: 9 | AK16: 3.5 | AL16: 12.5 | AM16: 21 | AN16: 11 | AO16: 32 | AP16: 8.5 | AQ16: 9 | AR16: 16 | AS16: 33.5 | AT16: 9 | AU16: 15.5 | AV16: 18 | AW16: 42.5 | AX16: 9 | AY16: 9 | AZ16: 15 | BA16: 33 | BB16: 9 | BC16: 8 | BD16: 10 | BE16: 27 | BF16: 9.5 | BG16: 12.5 | BH16: 13.5 | BI16: 35.5 | BJ16: 9 | BK16: 10 | BL16: 17 | BM16: 36 | BN16: 9 | BO16: 7 | BP16: 9.5 | BQ16: 25.5 | BR16: 9 | BS16: 13 | BT16: 12 | BU16: 34 | BV16: 118 | BW16: 371.1 | BX16: 4 | BY16: 4 | BZ16: 6.5 | CA16: 14.5 | CB16: 3.5 | CC16: 4 | CD16: 7 | CE16: 14.5 | CG16: راسب | CH16: =IF(F16="","",IF(CJ16=0,RANK($BW16,$BW$10:$BW$599)+COUNTIF(BW$10:BW16,BW16)-1,IF(CJ16>=$CK$8,"جميع المواد",CONCATENATE(DC16,DD16,DE16,DF16,DG16,DH16,DI16,DJ16,DK16,DL16,DM16,DN16,DO16,DP16,DQ16)))) -> 000000000000 | CI16: =IF(F16="","",IF(CJ16=0,RANK($BW16,$BW$10:$BW$599)+COUNTIF(BW$10:BW16,BW16)-"1","")) ->  | CJ16: 10 | CK16: 1 | CL16: 1 | CM16: 1 | CN16: 1 | CO16: 0 | CP16: 1 | CQ16: 1 | CR16: 1 | CS16: 1 | CT16: 0 | CU16: 1 | CV16: 1 | CW16: 1 | CX16: 1 | CY16: 0 | DC16: 0 | DD16: 0 | DE16: 0 | DF16: 0 | DH16: 0 | DI16: 0 | DJ16: 0 | DK16: 0 | DM16: 0 | DN16: 0 | DO16: 0 | DP16: 0
B17: راسب | D17: 8 | E17: 511 | F17: طالبة تسويق 11 | I17: مستجد | J17: أنثي | K17: مسلم | L17: 30403031401544 | M17: 2004-03-03 | N17: =IF([1]الشيت!M17="","",CONCATENATE(DATEDIF([1]الشيت!M17,[1]البداية!$M$20,"md")," - ",DATEDIF([1]الشيت!M17,[1]البداية!$M$20,"ym")," - ",DATEDIF([1]الشيت!M17,[1]البداية!$M$20,"y"))) -> 26 - 0 - 13 | O17: 576 | R17: 8 | S17: 11 | T17: 11 | U17: 30 | V17: 7.5 | W17: 11.5 | X17: 14.5 | Y17: 33.5 | Z17: 5.5 | AA17: 4.4 | AB17: 8.4 | AC17: 18.3 | AD17: 4.5 | AE17: 3 | AF17: 7.5 | AG17: 9 | AH17: 5.5 | AI17: 14.5 | AJ17: 8 | AK17: 4 | AL17: 12 | AM17: 21.5 | AN17: 12.5 | AO17: 34 | AP17: 8 | AQ17: 12 | AR17: 16 | AS17: 36 | AT17: 9 | AU17: 17.5 | AV17: 19 | AW17: 45.5 | AX17: 9 | AY17: 13 | AZ17: 15 | BA17: 37 | BB17: 9 | BC17: 14 | BD17: 11.5 | BE17: 34.5 | BF17: 9.5 | BG17: 12 | BH17: 16.5 | BI17: 38 | BJ17: 9 | BK17: 12 | BL17: 17 | BM17: 38 | BN17: 9 | BO17: 10.5 | BP17: 11 | BQ17: 30.5 | BR17: 9 | BS17: 15 | BT17: 14 | BU17: 38 | BV17: 147.4 | BW17: 413.3 | BX17: 4 | BY17: 5 | BZ17: 7 | CA17: 16 | CB17: 3.5 | CC17: 4 | CD17: 7 | CE17: 14.5 | CG17: راسب | CH17: =IF(F17="","",IF(CJ17=0,RANK($BW17,$BW$10:$BW$599)+COUNTIF(BW$10:BW17,BW17)-1,IF(CJ17>=$CK$8,"جميع المواد",CONCATENATE(DC17,DD17,DE17,DF17,DG17,DH17,DI17,DJ17,DK17,DL17,DM17,DN17,DO17,DP17,DQ17)))) -> 00(حاسب عملي) 000000 | CI17: =IF(F17="","",IF(CJ17=0,RANK($BW17,$BW$10:$BW$599)+COUNTIF(BW$10:BW17,BW17)-"1","")) ->  | CJ17: 8 | CK17: 1 | CL17: 1 | CM17: 0 | CN17: 1 | CO17: 0 | CP17: 1 | CQ17: 1 | CR17: 1 | CS17: 1 | CT17: 0 | CU17: 1 | CV17: 0 | CW17: 1 | CX17: 0 | CY17: 0 | DC17: 0 | DD17: 0 | DF17: (حاسب عملي) | DH17: 0 | DI17: 0 | DJ17: 0 | DK17: 0 | DM17: 0 | DO17: 0
B18: راسب | D18: 9 | E18: 512 | F18: طالبة تسويق 12 | I18: مستجد | J18: أنثي | K18: مسلم | L18: 30501011417845 | M18: 2005-01-01 | N18: =IF([1]الشيت!M18="","",CONCATENATE(DATEDIF([1]الشيت!M18,[1]البداية!$M$20,"md")," - ",DATEDIF([1]الشيت!M18,[1]البداية!$M$20,"ym")," - ",DATEDIF([1]الشيت!M18,[1]البداية!$M$20,"y"))) -> 8 - 8 - 12 | O18: 577 | R18: 8 | S18: 15 | T18: 12 | U18: 35 | V18: 8 | W18: 11 | X18: 14 | Y18: 33 | Z18: 5.5 | AA18: 4 | AB18: 7.6 | AC18: 17.1 | AD18: 4.5 | AE18: 3 | AF18: 7.5 | AG18: 7 | AH18: 6.5 | AI18: 13.5 | AJ18: 8 | AK18: 3 | AL18: 11 | AM18: 19.5 | AN18: 12.5 | AO18: 32 | AP18: 8 | AQ18: 14 | AR18: 16 | AS18: 38 | AT18: 9 | AU18: 18.5 | AV18: 19 | AW18: 46.5 | AX18: 9 | AY18: 14 | AZ18: 13 | BA18: 36 | BB18: 9 | BC18: 14 | BD18: 11 | BE18: 34 | BF18: 9.5 | BG18: 14.5 | BH18: 16.5 | BI18: 40.5 | BJ18: 9 | BK18: 12 | BL18: 17 | BM18: 38 | BN18: 9 | BO18: 13 | BP18: 14 | BQ18: 36 | BR18: 9 | BS18: 13 | BT18: 11 | BU18: 33 | BV18: 156.5 | BW18: 419.1 | BX18: 4 | BY18: 7 | BZ18: 7 | CA18: 18 | CB18: 3.5 | CC18: 3 | CD18: 7 | CE18: 13.5 | CG18: راسب | CH18: =IF(F18="","",IF(CJ18=0,RANK($BW18,$BW$10:$BW$599)+COUNTIF(BW$10:BW18,BW18)-1,IF(CJ18>=$CK$8,"جميع المواد",CONCATENATE(DC18,DD18,DE18,DF18,DG18,DH18,DI18,DJ18,DK18,DL18,DM18,DN18,DO18,DP18,DQ18)))) -> 00000000000 | CI18: =IF(F18="","",IF(CJ18=0,RANK($BW18,$BW$10:$BW$599)+COUNTIF(BW$10:BW18,BW18)-"1","")) ->  | CJ18: 9 | CK18: 0 | CL18: 1 | CM18: 1 | CN18: 1 | CO18: 0 | CP18: 1 | CQ18: 1 | CR18: 1 | CS18: 1 | CT18: 0 | CU18: 1 | CV18: 1 | CW18: 1 | CX18: 0 | CY18: 1 | DD18: 0 | DE18: 0 | DF18: 0 | DH18: 0 | DI18: 0 | DJ18: 0 | DK18: 0 | DM18: 0 | DN18: 0 | DO18: 0 | DQ18: 0
B19: راسب | D19: 10 | E19: 513 | F19: طالبة تسويق 13 | I19: مستجد | J19: أنثي | K19: مسلم | L19: 30507161400809 | M19: 2005-07-16 | N19: =IF([1]الشيت!M19="","",CONCATENATE(DATEDIF([1]الشيت!M19,[1]البداية!$M$20,"md")," - ",DATEDIF([1]الشيت!M19,[1]البداية!$M$20,"ym")," - ",DATEDIF([1]الشيت!M19,[1]البداية!$M$20,"y"))) -> 0 - 0 - 15 | O19: 578 | R19: 8 | S19: 13.5 | T19: 11 | U19: 32.5 | V19: 6.5 | W19: 11 | X19: 14 | Y19: 31.5 | Z19: 5.5 | AA19: 4.4 | AB19: 7.6 | AC19: 17.5 | AD19: 4.5 | AE19: 3 | AF19: 7.5 | AG19: 9 | AH19: 5.5 | AI19: 14.5 | AJ19: 8 | AK19: 3.5 | AL19: 11.5 | AM19: 21.5 | AN19: 12 | AO19: 33.5 | AP19: 8 | AQ19: 14 | AR19: 15 | AS19: 37 | AT19: 9 | AU19: 19.5 | AV19: 19 | AW19: 47.5 | AX19: 9 | AY19: 15 | AZ19: 13 | BA19: 37 | BB19: 9 | BC19: 14 | BD19: 9 | BE19: 32 | BF19: 9.5 | BG19: 15 | BH19: 15 | BI19: 39.5 | BJ19: 9 | BK19: 13 | BL19: 18 | BM19: 40 | BN19: 9 | BO19: 7.5 | BP19: 13.5 | BQ19: 30 | BR19: 9 | BS19: 14 | BT19: 15 | BU19: 38 | BV19: 155.4 | BW19: 416 | BX19: 4 | BY19: 5.5 | BZ19: 6.5 | CA19: 16 | CB19: 3.5 | CC19: 3 | CD19: 6 | CE19: 12.5 | CG19: راسب | CH19: =IF(F19="","",IF(CJ19=0,RANK($BW19,$BW$10:$BW$599)+COUNTIF(BW$10:BW19,BW19)-1,IF(CJ19>=$CK$8,"جميع المواد",CONCATENATE(DC19,DD19,DE19,DF19,DG19,DH19,DI19,DJ19,DK19,DL19,DM19,DN19,DO19,DP19,DQ19)))) -> 000(حاسب عملي) 0000000 | CI19: =IF(F19="","",IF(CJ19=0,RANK($BW19,$BW$10:$BW$599)+COUNTIF(BW$10:BW19,BW19)-"1","")) ->  | CJ19: 8 | CK19: 1 | CL19: 1 | CM19: 1 | CN19: 1 | CO19: 0 | CP19: 0 | CQ19: 1 | CR19: 1 | CS19: 1 | CT19: 0 | CU19: 1 | CV19: 0 | CW19: 1 | CX19: 1 | CY19: 1 | DC19: 0 | DD19: 0 | DE19: 0 | DF19: (حاسب عملي) | DI19: 0 | DJ19: 0 | DK19: 0 | DM19: 0 | DO19: 0 | DP19: 0 | DQ19: 0
B20: راسب | D20: 11 | E20: 514 | F20: طالبة تسويق 14 | I20: مستجد | J20: أنثي | K20: مسلم | L20: 30506111400089 | M20: 2005-06-11 | N20: =IF([1]الشيت!M20="","",CONCATENATE(DATEDIF([1]الشيت!M20,[1]البداية!$M$20,"md")," - ",DATEDIF([1]الشيت!M20,[1]البداية!$M$20,"ym")," - ",DATEDIF([1]الشيت!M20,[1]البداية!$M$20,"y"))) -> 28 - 6 - 14 | O20: 579 | R20: 8 | S20: 9 | T20: 14 | U20: 31 | V20: 6.5 | W20: 14 | X20: 14.5 | Y20: 35 | Z20: 5.5 | AA20: 4.4 | AB20: 7.6 | AC20: 17.5 | AD20: 5 | AE20: 3 | AF20: 8 | AG20: 8 | AH20: 4.5 | AI20: 12.5 | AJ20: 7 | AK20: 5 | AL20: 12 | AM20: 20 | AN20: 12.5 | AO20: 32.5 | AP20: 8 | AQ20: 16 | AR20: 16 | AS20: 40 | AT20: 9 | AU20: 18.5 | AV20: 20 | AW20: 47.5 | AX20: 9 | AY20: 16 | AZ20: 17 | BA20: 42 | BB20: 9 | BC20: 12 | BD20: 13.5 | BE20: 34.5 | BF20: 9.5 | BG20: 13.5 | BH20: 16.5 | BI20: 39.5 | BJ20: 9 | BK20: 13.5 | BL20: 17 | BM20: 39.5 | BN20: 9 | BO20: 11 | BP20: 15.5 | BQ20: 35.5 | BR20: 9 | BS20: 17 | BT20: 16 | BU20: 42 | BV20: 157.4 | BW20: 436.5 | BX20: 4 | BY20: 5.5 | BZ20: 6 | CA20: 15.5 | CB20: 3.5 | CC20: 4.5 | CD20: 7 | CE20: 15 | CG20: راسب | CH20: =IF(F20="","",IF(CJ20=0,RANK($BW20,$BW$10:$BW$599)+COUNTIF(BW$10:BW20,BW20)-1,IF(CJ20>=$CK$8,"جميع المواد",CONCATENATE(DC20,DD20,DE20,DF20,DG20,DH20,DI20,DJ20,DK20,DL20,DM20,DN20,DO20,DP20,DQ20)))) -> 00000000 | CI20: =IF(F20="","",IF(CJ20=0,RANK($BW20,$BW$10:$BW$599)+COUNTIF(BW$10:BW20,BW20)-"1","")) ->  | CJ20: 7 | CK20: 1 | CL20: 1 | CM20: 1 | CN20: 1 | CO20: 0 | CP20: 0 | CQ20: 0 | CR20: 1 | CS20: 1 | CT20: 0 | CU20: 1 | CV20: 0 | CW20: 0 | CX20: 1 | CY20: 0 | DC20: 0 | DD20: 0 | DE20: 0 | DF20: 0 | DJ20: 0 | DK20: 0 | DM20: 0 | DP20: 0
B21: راسب | D21: 12 | E21: 515 | F21: طالبة تسويق 15 | I21: مستجد | J21: أنثي | K21: مسلم | L21: 30503281400785 | M21: 2005-03-28 | N21: =IF([1]الشيت!M21="","",CONCATENATE(DATEDIF([1]الشيت!M21,[1]البداية!$M$20,"md")," - ",DATEDIF([1]الشيت!M21,[1]البداية!$M$20,"ym")," - ",DATEDIF([1]الشيت!M21,[1]البداية!$M$20,"y"))) -> 0 - 9 - 13 | O21: 580 | R21: 8 | S21: 8.5 | T21: 8.5 | U21: 25 | V21: 8 | W21: 10.5 | X21: 12.5 | Y21: 31 | Z21: 5.5 | AA21: 4.8 | AB21: 7.6 | AC21: 17.9 | AD21: 4.5 | AE21: 3 | AF21: 7.5 | AG21: 7 | AH21: 4 | AI21: 11 | AJ21: 9 | AK21: غ | AL21: 9 | AM21: 20.5 | AN21: 7 | AO21: 27.5 | AP21: 8 | AQ21: 13 | AR21: 13 | AS21: 34 | AT21: 9 | AU21: 13 | AV21: 18 | AW21: 40 | AX21: 9 | AY21: 10 | AZ21: 11 | BA21: 30 | BB21: 9 | BC21: 8 | BD21: 10 | BE21: 27 | BF21: 9.5 | BG21: 11 | BH21: 16.5 | BI21: 37 | BJ21: 9 | BK21: 8.5 | BL21: 17 | BM21: 34.5 | BN21: 9.5 | BO21: 1.5 | BP21: 4.5 | BQ21: 15.5 | BR21: 9 | BS21: 15 | BT21: 14 | BU21: 38 | BV21: 114.8 | BW21: 357.4 | BX21: 4 | BY21: 4 | BZ21: 5.5 | CA21: 13.5 | CB21: 3.5 | CC21: صفر | CD21: 6.5 | CE21: 10 | CG21: راسب | CH21: =IF(F21="","",IF(CJ21=0,RANK($BW21,$BW$10:$BW$599)+COUNTIF(BW$10:BW21,BW21)-1,IF(CJ21>=$CK$8,"جميع المواد",CONCATENATE(DC21,DD21,DE21,DF21,DG21,DH21,DI21,DJ21,DK21,DL21,DM21,DN21,DO21,DP21,DQ21)))) -> 0000000000000 | CI21: =IF(F21="","",IF(CJ21=0,RANK($BW21,$BW$10:$BW$599)+COUNTIF(BW$10:BW21,BW21)-"1","")) ->  | CJ21: 10 | CK21: 1 | CL21: 1 | CM21: 1 | CN21: 1 | CO21: 0 | CP21: 1 | CQ21: 1 | CR21: 1 | CS21: 1 | CT21: 1 | CU21: 1 | CV21: 0 | CW21: 1 | CX21: 1 | CY21: 1 | DC21: 0 | DD21: 0 | DE21: 0 | DF21: 0 | DH21: 0 | DI21: 0 | DJ21: 0 | DK21: 0 | DL21: 0 | DM21: 0 | DO21: 0 | DP21: 0 | DQ21: 0
B22: راسب | D22: 13 | E22: 516 | F22: طالبة تسويق 16 | I22: مستجد | J22: أنثي | K22: مسلم | L22: 30304291400543 | M22: 2003-04-29 | N22: =IF([1]الشيت!M22="","",CONCATENATE(DATEDIF([1]الشيت!M22,[1]البداية!$M$20,"md")," - ",DATEDIF([1]الشيت!M22,[1]البداية!$M$20,"ym")," - ",DATEDIF([1]الشيت!M22,[1]البداية!$M$20,"y"))) -> 15 - 2 - 13 | O22: 581 | R22: 8 | S22: 10.5 | T22: 11 | U22: 29.5 | V22: 6.5 | W22: 11 | X22: 14.5 | Y22: 32 | Z22: 5.5 | AA22: 4.8 | AB22: 7.6 | AC22: 17.9 | AD22: 4.5 | AE22: 3 | AF22: 7.5 | AG22: 8 | AH22: 5 | AI22: 13 | AJ22: 8 | AK22: 4.5 | AL22: 12.5 | AM22: 20.5 | AN22: 12.5 | AO22: 33 | AP22: 8 | AQ22: 14.5 | AR22: 14 | AS22: 36.5 | AT22: 9 | AU22: 18.5 | AV22: 19 | AW22: 46.5 | AX22: 9 | AY22: 15 | AZ22: 14 | BA22: 38 | BB22: 9 | BC22: 11 | BD22: 9 | BE22: 29 | BF22: 9.5 | BG22: 11.5 | BH22: 17.5 | BI22: 38.5 | BJ22: 9 | BK22: 9.5 | BL22: 17 | BM22: 35.5 | BN22: 9.5 | BO22: 6.5 | BP22: 9 | BQ22: 25 | BR22: 9 | BS22: 14 | BT22: 12 | BU22: 35 | BV22: 139.8 | BW22: 396.4 | BX22: 4 | BY22: 4.5 | BZ22: 6.5 | CA22: 15 | CB22: 3.5 | CC22: 4 | CD22: 7 | CE22: 14.5 | CG22: راسب | CH22: =IF(F22="","",IF(CJ22=0,RANK($BW22,$BW$10:$BW$599)+COUNTIF(BW$10:BW22,BW22)-1,IF(CJ22>=$CK$8,"جميع المواد",CONCATENATE(DC22,DD22,DE22,DF22,DG22,DH22,DI22,DJ22,DK22,DL22,DM22,DN22,DO22,DP22,DQ22)))) -> 0000000000000 | CI22: =IF(F22="","",IF(CJ22=0,RANK($BW22,$BW$10:$BW$599)+COUNTIF(BW$10:BW22,BW22)-"1","")) ->  | CJ22: 11 | CK22: 1 | CL22: 1 | CM22: 1 | CN22: 1 | CO22: 0 | CP22: 1 | CQ22: 1 | CR22: 1 | CS22: 1 | CT22: 1 | CU22: 1 | CV22: 1 | CW22: 1 | CX22: 1 | CY22: 0 | DC22: 0 | DD22: 0 | DE22: 0 | DF22: 0 | DH22: 0 | DI22: 0 | DJ22: 0 | DK22: 0 | DL22: 0 | DM22: 0 | DN22: 0 | DO22: 0 | DP22: 0
B23: راسب | D23: 14 | E23: 517 | F23: طالبة تسويق 17 | I23: مستجد | J23: أنثي | K23: مسلم | L23: 30311081401829 | M23: 2003-11-08 | N23: =IF([1]الشيت!M23="","",CONCATENATE(DATEDIF([1]الشيت!M23,[1]البداية!$M$20,"md")," - ",DATEDIF([1]الشيت!M23,[1]البداية!$M$20,"ym")," - ",DATEDIF([1]الشيت!M23,[1]البداية!$M$20,"y"))) -> 20 - 3 - 13 | O23: 582 | R23: 8 | S23: 8 | T23: 9 | U23: 25 | V23: 8.5 | W23: 11.5 | X23: 13 | Y23: 33 | Z23: 5.5 | AA23: 4.4 | AB23: 7.6 | AC23: 17.5 | AD23: 5 | AE23: 3 | AF23: 8 | AG23: 6 | AH23: 6 | AI23: 12 | AJ23: 9 | AK23: 4 | AL23: 13 | AM23: 20 | AN23: 13 | AO23: 33 | AP23: 8 | AQ23: 17 | AR23: 12 | AS23: 37 | AT23: 9 | AU23: 14 | AV23: 19 | AW23: 42 | AX23: 9 | AY23: 14 | AZ23: 14 | BA23: 37 | BB23: 9 | BC23: 8 | BD23: 9 | BE23: 26 | BF23: 9.5 | BG23: 13 | BH23: 17.5 | BI23: 40 | BJ23: 9 | BK23: 11.5 | BL23: 17 | BM23: 37.5 | BN23: 9.5 | BO23: 5 | BP23: 10.5 | BQ23: 25 | BR23: 9 | BS23: 14 | BT23: 15 | BU23: 38 | BV23: 132.4 | BW23: 391 | BX23: 4 | BY23: 5 | BZ23: 7 | CA23: 16 | CB23: 3.5 | CC23: 4 | CD23: 7 | CE23: 14.5 | CG23: راسب | CH23: =IF(F23="","",IF(CJ23=0,RANK($BW23,$BW$10:$BW$599)+COUNTIF(BW$10:BW23,BW23)-1,IF(CJ23>=$CK$8,"جميع المواد",CONCATENATE(DC23,DD23,DE23,DF23,DG23,DH23,DI23,DJ23,DK23,DL23,DM23,DN23,DO23,DP23,DQ23)))) -> 000(حاسب عملي) 000000 | CI23: =IF(F23="","",IF(CJ23=0,RANK($BW23,$BW$10:$BW$599)+COUNTIF(BW$10:BW23,BW23)-"1","")) ->  | CJ23: 9 | CK23: 1 | CL23: 1 | CM23: 1 | CN23: 1 | CO23: 0 | CP23: 1 | CQ23: 1 | CR23: 1 | CS23: 1 | CT23: 0 | CU23: 1 | CV23: 0 | CW23: 1 | CX23: 0 | CY23: 0 | DC23: 0 | DD23: 0 | DE23: 0 | DF23: (حاسب عملي) | DH23: 0 | DI23: 0 | DJ23: 0 | DK23: 0 | DM23: 0 | DO23: 0
B24: راسب | D24: 15 | E24: 518 | F24: طالبة تسويق 18 | I24: مستجد | J24: أنثي | K24: مسلم | L24: 30509261400086 | M24: 2005-09-26 | N24: =IF([1]الشيت!M24="","",CONCATENATE(DATEDIF([1]الشيت!M24,[1]البداية!$M$20,"md")," - ",DATEDIF([1]الشيت!M24,[1]البداية!$M$20,"ym")," - ",DATEDIF([1]الشيت!M24,[1]البداية!$M$20,"y"))) -> 3 - 6 - 13 | O24: 583 | R24: 8 | S24: 17 | T24: 13 | U24: 38 | V24: 9.5 | W24: 15 | X24: 16 | Y24: 40.5 | Z24: 5.5 | AA24: 5.2 | AB24: 8.4 | AC24: 19.1 | AD24: 5 | AE24: 3 | AF24: 8 | AG24: 9 | AH24: 6.5 | AI24: 15.5 | AJ24: 8 | AK24: 4.5 | AL24: 12.5 | AM24: 22 | AN24: 14 | AO24: 36 | AP24: 8 | AQ24: 17.5 | AR24: 15 | AS24: 40.5 | AT24: 9 | AU24: 18 | AV24: 20 | AW24: 47 | AX24: 9 | AY24: 18 | AZ24: 15 | BA24: 42 | BB24: 9 | BC24: 18 | BD24: 9.5 | BE24: 36.5 | BF24: 9.5 | BG24: 14.5 | BH24: 17.5 | BI24: 41.5 | BJ24: 9 | BK24: 12 | BL24: 17 | BM24: 38 | BN24: 9 | BO24: 10.5 | BP24: 9.5 | BQ24: 29 | BR24: 9 | BS24: 17 | BT24: 18 | BU24: 44 | BV24: 178.2 | BW24: 452.1 | BX24: 4 | BY24: 5.5 | BZ24: 7 | CA24: 16.5 | CB24: 3.5 | CC24: 6 | CD24: 7 | CE24: 16.5 | CG24: راسب | CH24: =IF(F24="","",IF(CJ24=0,RANK($BW24,$BW$10:$BW$599)+COUNTIF(BW$10:BW24,BW24)-1,IF(CJ24>=$CK$8,"جميع المواد",CONCATENATE(DC24,DD24,DE24,DF24,DG24,DH24,DI24,DJ24,DK24,DL24,DM24,DN24,DO24,DP24,DQ24)))) -> (حاسب عملي) 000 | CI24: =IF(F24="","",IF(CJ24=0,RANK($BW24,$BW$10:$BW$599)+COUNTIF(BW$10:BW24,BW24)-"1","")) ->  | CJ24: 4 | CK24: 0 | CL24: 0 | CM24: 0 | CN24: 1 | CO24: 0 | CP24: 0 | CQ24: 0 | CR24: 1 | CS24: 1 | CT24: 0 | CU24: 1 | CV24: 0 | CW24: 0 | CX24: 0 | CY24: 0 | DF24: (حاسب عملي) | DJ24: 0 | DK24: 0 | DM24: 0
B25: راسب | D25: 16 | E25: 519 | F25: طالبة تسويق 19 | I25: مستجد | J25: أنثي | K25: مسلم | L25: 30512041400809 | M25: 2005-12-04 | N25: =IF([1]الشيت!M25="","",CONCATENATE(DATEDIF([1]الشيت!M25,[1]البداية!$M$20,"md")," - ",DATEDIF([1]الشيت!M25,[1]البداية!$M$20,"ym")," - ",DATEDIF([1]الشيت!M25,[1]البداية!$M$20,"y"))) -> 2 - 5 - 15 | O25: 584 | R25: 8 | S25: 11.5 | T25: 10 | U25: 29.5 | V25: 8.5 | W25: 13.5 | X25: 14.5 | Y25: 36.5 | Z25: 5.5 | AA25: 4.4 | AB25: 7.6 | AC25: 17.5 | AD25: 4.5 | AE25: 3 | AF25: 7.5 | AG25: 8 | AH25: 6.5 | AI25: 14.5 | AJ25: 8 | AK25: 3.5 | AL25: 11.5 | AM25: 20.5 | AN25: 13 | AO25: 33.5 | AP25: 8 | AQ25: 17.5 | AR25: 13 | AS25: 38.5 | AT25: 9 | AU25: 17 | AV25: 18 | AW25: 44 | AX25: 9 | AY25: 14 | AZ25: 14 | BA25: 37 | BB25: 9 | BC25: 10 | BD25: 10 | BE25: 29 | BF25: 9.5 | BG25: 14.5 | BH25: 17 | BI25: 41 | BJ25: 9 | BK25: 12.5 | BL25: 17 | BM25: 38.5 | BN25: 9 | BO25: 12 | BP25: 9.5 | BQ25: 30.5 | BR25: 9 | BS25: 17 | BT25: 16 | BU25: 42 | BV25: 158.4 | BW25: 417.5 | BX25: 4 | BY25: 5.5 | BZ25: 5.5 | CA25: 15 | CB25: 3.5 | CC25: 6 | CD25: 7 | CE25: 16.5 | CG25: راسب | CH25: =IF(F25="","",IF(CJ25=0,RANK($BW25,$BW$10:$BW$599)+COUNTIF(BW$10:BW25,BW25)-1,IF(CJ25>=$CK$8,"جميع المواد",CONCATENATE(DC25,DD25,DE25,DF25,DG25,DH25,DI25,DJ25,DK25,DL25,DM25,DN25,DO25,DP25,DQ25)))) -> 000(حاسب عملي) 0000000 | CI25: =IF(F25="","",IF(CJ25=0,RANK($BW25,$BW$10:$BW$599)+COUNTIF(BW$10:BW25,BW25)-"1","")) ->  | CJ25: 9 | CK25: 1 | CL25: 1 | CM25: 1 | CN25: 1 | CO25: 0 | CP25: 1 | CQ25: 1 | CR25: 1 | CS25: 1 | CT25: 0 | CU25: 1 | CV25: 0 | CW25: 1 | CX25: 1 | CY25: 0 | DC25: 0 | DD25: 0 | DE25: 0 | DF25: (حاسب عملي) | DH25: 0 | DI25: 0 | DJ25: 0 | DK25: 0 | DM25: 0 | DO25: 0 | DP25: 0
B26: راسب | D26: 17 | E26: 520 | F26: طالبة تسويق 20 | I26: مستجد | J26: أنثي | K26: مسلم | L26: 30508151401404 | M26: 2005-08-15 | N26: =IF([1]الشيت!M26="","",CONCATENATE(DATEDIF([1]الشيت!M26,[1]البداية!$M$20,"md")," - ",DATEDIF([1]الشيت!M26,[1]البداية!$M$20,"ym")," - ",DATEDIF([1]الشيت!M26,[1]البداية!$M$20,"y"))) -> 23 - 10 - 14 | O26: 585 | R26: 8 | S26: 16.5 | T26: 15 | U26: 39.5 | V26: 8.5 | W26: 13 | X26: 15.5 | Y26: 37 | Z26: 5.5 | AA26: 5.6 | AB26: 8.4 | AC26: 19.5 | AD26: 4.5 | AE26: 3 | AF26: 7.5 | AG26: 9 | AH26: 4.5 | AI26: 13.5 | AJ26: 9 | AK26: 6.5 | AL26: 15.5 | AM26: 22.5 | AN26: 14 | AO26: 36.5 | AP26: 8 | AQ26: 13 | AR26: 17 | AS26: 38 | AT26: 9 | AU26: 10.5 | AV26: 19 | AW26: 38.5 | AX26: 9 | AY26: 13 | AZ26: 17 | BA26: 39 | BB26: 9 | BC26: 13 | BD26: 11.5 | BE26: 33.5 | BF26: 9.5 | BG26: 19.5 | BH26: 19.5 | BI26: 48.5 | BJ26: 9 | BK26: 7 | BL26: 18 | BM26: 34 | BN26: 9 | BO26: 17.5 | BP26: 13.5 | BQ26: 40 | BR26: 9 | BS26: 18.5 | BT26: 14 | BU26: 41.5 | BV26: 160.6 | BW26: 445.5 | BX26: 4 | BY26: 6 | BZ26: 5.5 | CA26: 15.5 | CB26: 3.5 | CC26: 6 | CD26: 5 | CE26: 14.5 | CG26: راسب | CH26: =IF(F26="","",IF(CJ26=0,RANK($BW26,$BW$10:$BW$599)+COUNTIF(BW$10:BW26,BW26)-1,IF(CJ26>=$CK$8,"جميع المواد",CONCATENATE(DC26,DD26,DE26,DF26,DG26,DH26,DI26,DJ26,DK26,DL26,DM26,DN26,DO26,DP26,DQ26)))) -> 000000 | CI26: =IF(F26="","",IF(CJ26=0,RANK($BW26,$BW$10:$BW$599)+COUNTIF(BW$10:BW26,BW26)-"1","")) ->  | CJ26: 4 | CK26: 0 | CL26: 0 | CM26: 0 | CN26: 0 | CO26: 0 | CP26: 1 | CQ26: 0 | CR26: 1 | CS26: 0 | CT26: 1 | CU26: 1 | CV26: 0 | CW26: 0 | CX26: 1 | CY26: 1 | DH26: 0 | DJ26: 0 | DL26: 0 | DM26: 0 | DP26: 0 | DQ26: 0
B27: راسب | D27: 18 | E27: 521 | F27: طالبة تسويق 21 | I27: مستجد | J27: أنثي | K27: مسلم | L27: 30504031401464 | M27: 2005-04-03 | N27: =IF([1]الشيت!M27="","",CONCATENATE(DATEDIF([1]الشيت!M27,[1]البداية!$M$20,"md")," - ",DATEDIF([1]الشيت!M27,[1]البداية!$M$20,"ym")," - ",DATEDIF([1]الشيت!M27,[1]البداية!$M$20,"y"))) -> 5 - 0 - 13 | O27: 586 | R27: 8 | S27: 14.5 | T27: 15 | U27: 37.5 | V27: 8 | W27: 13.5 | X27: 15 | Y27: 36.5 | Z27: 5.5 | AA27: 6.8 | AB27: 8.4 | AC27: 20.7 | AD27: 4.5 | AE27: 3 | AF27: 7.5 | AG27: 8 | AH27: 4.5 | AI27: 12.5 | AJ27: 9 | AK27: 6.5 | AL27: 15.5 | AM27: 21.5 | AN27: 14 | AO27: 35.5 | AP27: 8 | AQ27: 12 | AR27: 18 | AS27: 38 | AT27: 9 | AU27: 13.5 | AV27: 19 | AW27: 41.5 | AX27: 9 | AY27: 12 | AZ27: 17 | BA27: 38 | BB27: 9 | BC27: 13 | BD27: 10 | BE27: 32 | BF27: 9.5 | BG27: 15 | BH27: 16.5 | BI27: 41 | BJ27: 9 | BK27: 8 | BL27: 18 | BM27: 35 | BN27: 9 | BO27: 15 | BP27: 12.5 | BQ27: 36.5 | BR27: 9 | BS27: 18.5 | BT27: 14 | BU27: 41.5 | BV27: 154.3 | BW27: 433.7 | BX27: 4 | BY27: 6.5 | BZ27: 7 | CA27: 17.5 | CB27: 3.5 | CC27: 6 | CD27: 6 | CE27: 15.5 | CG27: راسب | CH27: =IF(F27="","",IF(CJ27=0,RANK($BW27,$BW$10:$BW$599)+COUNTIF(BW$10:BW27,BW27)-1,IF(CJ27>=$CK$8,"جميع المواد",CONCATENATE(DC27,DD27,DE27,DF27,DG27,DH27,DI27,DJ27,DK27,DL27,DM27,DN27,DO27,DP27,DQ27)))) -> 0000000 | CI27: =IF(F27="","",IF(CJ27=0,RANK($BW27,$BW$10:$BW$599)+COUNTIF(BW$10:BW27,BW27)-"1","")) ->  | CJ27: 6 | CK27: 0 | CL27: 1 | CM27: 0 | CN27: 0 | CO27: 0 | CP27: 1 | CQ27: 0 | CR27: 1 | CS27: 1 | CT27: 1 | CU27: 1 | CV27: 0 | CW27: 0 | CX27: 0 | CY27: 1 | DD27: 0 | DH27: 0 | DJ27: 0 | DK27: 0 | DL27: 0 | DM27: 0 | DQ27: 0
B28: راسب | D28: 19 | E28: 522 | F28: طالبة تسويق 22 | I28: مستجد | J28: أنثي | K28: مسلم | L28: 30412251400165 | M28: 2004-12-25 | N28: =IF([1]الشيت!M28="","",CONCATENATE(DATEDIF([1]الشيت!M28,[1]البداية!$M$20,"md")," - ",DATEDIF([1]الشيت!M28,[1]البداية!$M$20,"ym")," - ",DATEDIF([1]الشيت!M28,[1]البداية!$M$20,"y"))) -> 27 - 9 - 12 | O28: 587 | R28: 8 | S28: 10.5 | T28: 13 | U28: 31.5 | V28: 8 | W28: 11.5 | X28: 14 | Y28: 33.5 | Z28: 5.5 | AA28: 6 | AB28: 7.6 | AC28: 19.1 | AD28: 5 | AE28: 3 | AF28: 8 | AG28: 9 | AH28: 4 | AI28: 13 | AJ28: 9 | AK28: 6.5 | AL28: 15.5 | AM28: 23 | AN28: 13.5 | AO28: 36.5 | AP28: 8 | AQ28: 12 | AR28: 18 | AS28: 38 | AT28: 9 | AU28: 8.5 | AV28: 19 | AW28: 36.5 | AX28: 9 | AY28: 9 | AZ28: 16 | BA28: 34 | BB28: 9 | BC28: 12 | BD28: 10 | BE28: 31 | BF28: 9.5 | BG28: 1 | BH28: 14.5 | BI28: 25 | BJ28: 9 | BK28: 8 | BL28: 19 | BM28: 36 | BN28: 9 | BO28: 10 | BP28: 10.5 | BQ28: 29.5 | BR28: 9 | BS28: 10 | BT28: 15 | BU28: 34 | BV28: 111.5 | BW28: 384.6 | BX28: 4 | BY28: 6 | BZ28: 7 | CA28: 17 | CB28: 3.5 | CC28: 5 | CD28: 7 | CE28: 15.5 | CG28: راسب | CH28: =IF(F28="","",IF(CJ28=0,RANK($BW28,$BW$10:$BW$599)+COUNTIF(BW$10:BW28,BW28)-1,IF(CJ28>=$CK$8,"جميع المواد",CONCATENATE(DC28,DD28,DE28,DF28,DG28,DH28,DI28,DJ28,DK28,DL28,DM28,DN28,DO28,DP28,DQ28)))) -> 0000000000 | CI28: =IF(F28="","",IF(CJ28=0,RANK($BW28,$BW$10:$BW$599)+COUNTIF(BW$10:BW28,BW28)-"1","")) ->  | CJ28: 9 | CK28: 1 | CL28: 1 | CM28: 1 | CN28: 0 | CO28: 0 | CP28: 1 | CQ28: 1 | CR28: 1 | CS28: 1 | CT28: 0 | CU28: 1 | CV28: 1 | CW28: 1 | CX28: 0 | CY28: 0 | DC28: 0 | DD28: 0 | DE28: 0 | DH28: 0 | DI28: 0 | DJ28: 0 | DK28: 0 | DM28: 0 | DN28: 0 | DO28: 0
B29: راسب | D29: 20 | E29: 523 | F29: طالبة تسويق 23 | I29: مستجد | J29: أنثي | K29: مسلم | L29: 30504041401268 | M29: 2005-04-04 | N29: =IF([1]الشيت!M29="","",CONCATENATE(DATEDIF([1]الشيت!M29,[1]البداية!$M$20,"md")," - ",DATEDIF([1]الشيت!M29,[1]البداية!$M$20,"ym")," - ",DATEDIF([1]الشيت!M29,[1]البداية!$M$20,"y"))) -> 16 - 1 - 13 | O29: 588 | R29: 8 | S29: 5.5 | T29: 11.5 | U29: 25 | V29: 6 | W29: 10.5 | X29: 12.5 | Y29: 29 | Z29: 5.5 | AA29: 6.4 | AB29: 7.6 | AC29: 19.5 | AD29: 4.5 | AE29: 3 | AF29: 7.5 | AG29: 8 | AH29: 3 | AI29: 11 | AJ29: 8 | AK29: 5.5 | AL29: 13.5 | AM29: 20.5 | AN29: 11.5 | AO29: 32 | AP29: 8 | AQ29: 12 | AR29: 16 | AS29: 36 | AT29: 9.5 | AU29: 8.5 | AV29: 18 | AW29: 36 | AX29: 9 | AY29: 9 | AZ29: 13 | BA29: 31 | BB29: 9 | BC29: 12 | BD29: 10 | BE29: 31 | BF29: 9.5 | BG29: 12.5 | BH29: 16.5 | BI29: 38.5 | BJ29: 9 | BK29: 6 | BL29: 19 | BM29: 34 | BN29: 9 | BO29: 12 | BP29: 11.5 | BQ29: 32.5 | BR29: 9 | BS29: 11 | BT29: 15 | BU29: 35 | BV29: 116.4 | BW29: 379.5 | BX29: 4 | BY29: 5 | BZ29: 5.5 | CA29: 14.5 | CB29: 3.5 | CC29: 4 | CD29: 7 | CE29: 14.5 | CG29: راسب | CH29: =IF(F29="","",IF(CJ29=0,RANK($BW29,$BW$10:$BW$599)+COUNTIF(BW$10:BW29,BW29)-1,IF(CJ29>=$CK$8,"جميع المواد",CONCATENATE(DC29,DD29,DE29,DF29,DG29,DH29,DI29,DJ29,DK29,DL29,DM29,DN29,DO29,DP29,DQ29)))) -> 0000000000000 | CI29: =IF(F29="","",IF(CJ29=0,RANK($BW29,$BW$10:$BW$599)+COUNTIF(BW$10:BW29,BW29)-"1","")) ->  | CJ29: 11 | CK29: 1 | CL29: 1 | CM29: 1 | CN29: 1 | CO29: 0 | CP29: 1 | CQ29: 1 | CR29: 1 | CS29: 1 | CT29: 1 | CU29: 1 | CV29: 1 | CW29: 1 | CX29: 1 | CY29: 0 | DC29: 0 | DD29: 0 | DE29: 0 | DF29: 0 | DH29: 0 | DI29: 0 | DJ29: 0 | DK29: 0 | DL29: 0 | DM29: 0 | DN29: 0 | DO29: 0 | DP29: 0
B30: راسب | D30: 21 | E30: 524 | F30: طالبة تسويق 24 | I30: مستجد | J30: أنثي | K30: مسلم | L30: 30504161401768 | M30: 2005-04-16 | N30: =IF([1]الشيت!M30="","",CONCATENATE(DATEDIF([1]الشيت!M30,[1]البداية!$M$20,"md")," - ",DATEDIF([1]الشيت!M30,[1]البداية!$M$20,"ym")," - ",DATEDIF([1]الشيت!M30,[1]البداية!$M$20,"y"))) -> 28 - 5 - 13 | O30: 589 | R30: 8 | S30: 8.5 | T30: 11 | U30: 27.5 | V30: 8 | W30: 5.5 | X30: 12 | Y30: 25.5 | Z30: 5.5 | AA30: 3.6 | AB30: 8.4 | AC30: 17.5 | AD30: 4.5 | AE30: 3 | AF30: 7.5 | AG30: 8 | AH30: 4 | AI30: 12 | AJ30: 9 | AK30: 6.5 | AL30: 15.5 | AM30: 21.5 | AN30: 13.5 | AO30: 35 | AP30: 8 | AQ30: 8 | AR30: 16 | AS30: 32 | AT30: 9.5 | AU30: 6 | AV30: 18 | AW30: 33.5 | AX30: 9 | AY30: 10 | AZ30: 13 | BA30: 32 | BB30: 9 | BC30: 8 | BD30: 7.5 | BE30: 24.5 | BF30: 9.5 | BG30: 0.5 | BH30: 11.5 | BI30: 21.5 | BJ30: 9 | BK30: 5 | BL30: 16 | BM30: 30 | BN30: 9.5 | BO30: 6.5 | BP30: 1.5 | BQ30: 17.5 | BR30: 9 | BS30: 8 | BT30: 12 | BU30: 29 | BV30: 81.6 | BW30: 325.5 | BX30: 4 | BY30: 4.5 | BZ30: 6.5 | CA30: 15 | CB30: 3.5 | CC30: 4 | CD30: 7 | CE30: 14.5 | CG30: راسب | CH30: =IF(F30="","",IF(CJ30=0,RANK($BW30,$BW$10:$BW$599)+COUNTIF(BW$10:BW30,BW30)-1,IF(CJ30>=$CK$8,"جميع المواد",CONCATENATE(DC30,DD30,DE30,DF30,DG30,DH30,DI30,DJ30,DK30,DL30,DM30,DN30,DO30,DP30,DQ30)))) -> 0000000000000 | CI30: =IF(F30="","",IF(CJ30=0,RANK($BW30,$BW$10:$BW$599)+COUNTIF(BW$10:BW30,BW30)-"1","")) ->  | CJ30: 11 | CK30: 1 | CL30: 1 | CM30: 1 | CN30: 0 | CO30: 1 | CP30: 1 | CQ30: 1 | CR30: 1 | CS30: 1 | CT30: 1 | CU30: 1 | CV30: 1 | CW30: 1 | CX30: 1 | CY30: 0 | DC30: 0 | DD30: 0 | DE30: 0 | DG30: 0 | DH30: 0 | DI30: 0 | DJ30: 0 | DK30: 0 | DL30: 0 | DM30: 0 | DN30: 0 | DO30: 0 | DP30: 0
B31: راسب | D31: 22 | E31: 525 | F31: طالبة تسويق 25 | I31: مستجد | J31: أنثي | K31: مسلم | L31: 30501281401088 | M31: 2005-01-28 | N31: =IF([1]الشيت!M31="","",CONCATENATE(DATEDIF([1]الشيت!M31,[1]البداية!$M$20,"md")," - ",DATEDIF([1]الشيت!M31,[1]البداية!$M$20,"ym")," - ",DATEDIF([1]الشيت!M31,[1]البداية!$M$20,"y"))) -> 6 - 9 - 13 | O31: 590 | R31: 8 | S31: 6 | T31: 9 | U31: 23 | V31: 8 | W31: 7.5 | X31: 10 | Y31: 25.5 | Z31: 5.5 | AA31: 4.8 | AB31: 7.6 | AC31: 17.9 | AD31: 4.5 | AE31: 3 | AF31: 7.5 | AG31: 7 | AH31: 2 | AI31: 9 | AJ31: 8 | AK31: 6.5 | AL31: 14.5 | AM31: 19.5 | AN31: 11.5 | AO31: 31 | AP31: 8 | AQ31: 8.5 | AR31: 17 | AS31: 33.5 | AT31: 9.5 | AU31: 7 | AV31: 16 | AW31: 32.5 | AX31: 9 | AY31: 7 | AZ31: 15 | BA31: 31 | BB31: 9 | BC31: 12 | BD31: 7 | BE31: 28 | BF31: 9.5 | BG31: صفر | BH31: 15.5 | BI31: 25 | BJ31: 9 | BK31: 5 | BL31: 18 | BM31: 32 | BN31: 9.5 | BO31: 3.5 | BP31: 6.5 | BQ31: 19.5 | BR31: 9 | BS31: 12 | BT31: 13 | BU31: 34 | BV31: 82.3 | BW31: 332.9 | BX31: 4 | BY31: 5 | BZ31: 6.5 | CA31: 15.5 | CB31: 3.5 | CC31: 6 | CD31: 6 | CE31: 15.5 | CG31: راسب | CH31: =IF(F31="","",IF(CJ31=0,RANK($BW31,$BW$10:$BW$599)+COUNTIF(BW$10:BW31,BW31)-1,IF(CJ31>=$CK$8,"جميع المواد",CONCATENATE(DC31,DD31,DE31,DF31,DG31,DH31,DI31,DJ31,DK31,DL31,DM31,DN31,DO31,DP31,DQ31)))) -> 00000000000000 | CI31: =IF(F31="","",IF(CJ31=0,RANK($BW31,$BW$10:$BW$599)+COUNTIF(BW$10:BW31,BW31)-"1","")) ->  | CJ31: 11 | CK31: 1 | CL31: 1 | CM31: 1 | CN31: 1 | CO31: 0 | CP31: 1 | CQ31: 1 | CR31: 1 | CS31: 1 | CT31: 1 | CU31: 1 | CV31: 1 | CW31: 1 | CX31: 1 | CY31: 1 | DC31: 0 | DD31: 0 | DE31: 0 | DF31: 0 | DH31: 0 | DI31: 0 | DJ31: 0 | DK31: 0 | DL31: 0 | DM31: 0 | DN31: 0 | DO31: 0 | DP31: 0 | DQ31: 0
B32: راسب | D32: 23 | E32: 526 | F32: طالبة تسويق 26 | I32: مستجد | J32: أنثي | K32: مسلم | L32: 30512121400923 | M32: 2005-12-12 | N32: =IF([1]الشيت!M32="","",CONCATENATE(DATEDIF([1]الشيت!M32,[1]البداية!$M$20,"md")," - ",DATEDIF([1]الشيت!M32,[1]البداية!$M$20,"ym")," - ",DATEDIF([1]الشيت!M32,[1]البداية!$M$20,"y"))) -> 27 - 5 - 13 | O32: 591 | R32: 8 | S32: 13 | T32: 14.5 | U32: 35.5 | V32: 6.5 | W32: 11 | X32: 14 | Y32: 31.5 | Z32: 5.5 | AA32: 5.6 | AB32: 7.6 | AC32: 18.7 | AD32: 4.5 | AE32: 3 | AF32: 7.5 | AG32: 8 | AH32: 3 | AI32: 11 | AJ32: 8 | AK32: 6.5 | AL32: 14.5 | AM32: 20.5 | AN32: 12.5 | AO32: 33 | AP32: 8 | AQ32: 11 | AR32: 18 | AS32: 37 | AT32: 9.5 | AU32: 4.5 | AV32: 18 | AW32: 32 | AX32: 9 | AY32: 9 | AZ32: 17 | BA32: 35 | BB32: 9 | BC32: 17 | BD32: 8 | BE32: 34 | BF32: 9.5 | BG32: 14 | BH32: 15.5 | BI32: 39 | BJ32: 9 | BK32: 6 | BL32: 18 | BM32: 33 | BN32: 9 | BO32: 13.5 | BP32: 12.5 | BQ32: 35 | BR32: 9 | BS32: 13 | BT32: 15 | BU32: 37 | BV32: 128.6 | BW32: 400.7 | BX32: 4 | BY32: 5 | BZ32: 7 | CA32: 16 | CB32: 3.5 | CC32: 6 | CD32: 7 | CE32: 16.5 | CG32: راسب | CH32: =IF(F32="","",IF(CJ32=0,RANK($BW32,$BW$10:$BW$599)+COUNTIF(BW$10:BW32,BW32)-1,IF(CJ32>=$CK$8,"جميع المواد",CONCATENATE(DC32,DD32,DE32,DF32,DG32,DH32,DI32,DJ32,DK32,DL32,DM32,DN32,DO32,DP32,DQ32)))) -> 0000000000 | CI32: =IF(F32="","",IF(CJ32=0,RANK($BW32,$BW$10:$BW$599)+COUNTIF(BW$10:BW32,BW32)-"1","")) ->  | CJ32: 9 | CK32: 0 | CL32: 1 | CM32: 1 | CN32: 1 | CO32: 0 | CP32: 1 | CQ32: 1 | CR32: 1 | CS32: 1 | CT32: 1 | CU32: 1 | CV32: 0 | CW32: 1 | CX32: 0 | CY32: 0 | DD32: 0 | DE32: 0 | DF32: 0 | DH32: 0 | DI32: 0 | DJ32: 0 | DK32: 0 | DL32: 0 | DM32: 0 | DO32: 0
B33: راسب | D33: 24 | E33: 527 | F33: طالبة تسويق 27 | I33: مستجد | J33: أنثي | K33: مسلم | L33: 30508011402486 | M33: 2005-08-01 | N33: =IF([1]الشيت!M33="","",CONCATENATE(DATEDIF([1]الشيت!M33,[1]البداية!$M$20,"md")," - ",DATEDIF([1]الشيت!M33,[1]البداية!$M$20,"ym")," - ",DATEDIF([1]الشيت!M33,[1]البداية!$M$20,"y"))) -> 15 - 5 - 13 | O33: 592 | R33: 8 | S33: 11.5 | T33: غ | U33: 19.5 | V33: 8.5 | W33: 11 | X33: غ | Y33: 19.5 | Z33: 5.5 | AA33: 4.8 | AB33: غ | AC33: 10.3 | AD33: 5 | AE33: 3 | AF33: 8 | AG33: 8 | AH33: 3 | AI33: 11 | AJ33: غ | AK33: غ | AL33: 0 | AM33: 13 | AN33: 6 | AO33: 19 | AP33: 8.5 | AQ33: 3 | AR33: غ | AS33: 11.5 | AT33: 9 | AU33: 9.5 | AV33: غ | AW33: 18.5 | AX33: 9 | AY33: 11 | AZ33: غ | BA33: 20 | BB33: 9 | BC33: 10 | BD33: غ | BE33: 19 | BF33: 9.5 | BG33: 6 | BH33: غ | BI33: 15.5 | BJ33: 9 | BK33: 7 | BL33: غ | BM33: 16 | BN33: 9.5 | BO33: 5.5 | BP33: غ | BQ33: 15 | BR33: 9 | BS33: 13 | BT33: غ | BU33: 22 | BV33: 103.3 | BW33: 205.8 | BX33: 4 | BY33: 6.5 | BZ33: غ | CA33: 10.5 | CB33: 3.5 | CC33: 5 | CD33: غ | CE33: 8.5 | CG33: راسب | CH33: =IF(F33="","",IF(CJ33=0,RANK($BW33,$BW$10:$BW$599)+COUNTIF(BW$10:BW33,BW33)-1,IF(CJ33>=$CK$8,"جميع المواد",CONCATENATE(DC33,DD33,DE33,DF33,DG33,DH33,DI33,DJ33,DK33,DL33,DM33,DN33,DO33,DP33,DQ33)))) -> 000000000000000 | CI33: =IF(F33="","",IF(CJ33=0,RANK($BW33,$BW$10:$BW$599)+COUNTIF(BW$10:BW33,BW33)-"1","")) ->  | CJ33: 12 | CK33: 1 | CL33: 1 | CM33: 1 | CN33: 1 | CO33: 1 | CP33: 1 | CQ33: 1 | CR33: 1 | CS33: 1 | CT33: 1 | CU33: 1 | CV33: 1 | CW33: 1 | CX33: 1 | CY33: 1 | DC33: 0 | DD33: 0 | DE33: 0 | DF33: 0 | DG33: 0 | DH33: 0 | DI33: 0 | DJ33: 0 | DK33: 0 | DL33: 0 | DM33: 0 | DN33: 0 | DO33: 0 | DP33: 0 | DQ33: 0
B34: راسب | D34: 25 | E34: 528 | F34: طالبة تسويق 28 | I34: مستجد | J34: أنثي | K34: مسلم | L34: 30510311400145 | M34: 2005-10-31 | N34: =IF([1]الشيت!M34="","",CONCATENATE(DATEDIF([1]الشيت!M34,[1]البداية!$M$20,"md")," - ",DATEDIF([1]الشيت!M34,[1]البداية!$M$20,"ym")," - ",DATEDIF([1]الشيت!M34,[1]البداية!$M$20,"y"))) -> 3 - 8 - 13 | O34: 593 | R34: 8 | S34: 15 | T34: 15.5 | U34: 38.5 | V34: 9 | W34: 13 | X34: 15 | Y34: 37 | Z34: 5.5 | AA34: 5.2 | AB34: 6.8 | AC34: 17.5 | AD34: 5 | AE34: 3 | AF34: 8 | AG34: 8 | AH34: 2 | AI34: 10 | AJ34: 9 | AK34: 6.5 | AL34: 15.5 | AM34: 22 | AN34: 11.5 | AO34: 33.5 | AP34: 8 | AQ34: 10.5 | AR34: 18 | AS34: 36.5 | AT34: 9.5 | AU34: 7.5 | AV34: 19 | AW34: 36 | AX34: 9 | AY34: 10 | AZ34: 15 | BA34: 34 | BB34: 9 | BC34: 16 | BD34: 15.5 | BE34: 40.5 | BF34: 9.5 | BG34: 18.5 | BH34: 16.5 | BI34: 44.5 | BJ34: 8.5 | BK34: 7 | BL34: 18 | BM34: 33.5 | BN34: 9 | BO34: 14 | BP34: 14.5 | BQ34: 37.5 | BR34: 9 | BS34: 14 | BT34: 13 | BU34: 36 | BV34: 140.7 | BW34: 425 | BX34: 4 | BY34: 7 | BZ34: 7 | CA34: 18 | CB34: 3.5 | CC34: 6 | CD34: 6 | CE34: 15.5 | CG34: راسب | CH34: =IF(F34="","",IF(CJ34=0,RANK($BW34,$BW$10:$BW$599)+COUNTIF(BW$10:BW34,BW34)-1,IF(CJ34>=$CK$8,"جميع المواد",CONCATENATE(DC34,DD34,DE34,DF34,DG34,DH34,DI34,DJ34,DK34,DL34,DM34,DN34,DO34,DP34,DQ34)))) -> 0(حاسب نظرى) 00000000 | CI34: =IF(F34="","",IF(CJ34=0,RANK($BW34,$BW$10:$BW$599)+COUNTIF(BW$10:BW34,BW34)-"1","")) ->  | CJ34: 8 | CK34: 0 | CL34: 0 | CM34: 1 | CN34: 1 | CO34: 0 | CP34: 1 | CQ34: 1 | CR34: 0 | CS34: 1 | CT34: 1 | CU34: 1 | CV34: 1 | CW34: 1 | CX34: 0 | CY34: 1 | DE34: 0 | DF34: (حاسب نظرى) | DH34: 0 | DI34: 0 | DK34: 0 | DL34: 0 | DM34: 0 | DN34: 0 | DO34: 0 | DQ34: 0
B35: راسب | D35: 26 | E35: 529 | F35: طالبة تسويق 29 | I35: مستجد | J35: أنثي | K35: مسلم | L35: 30402231400864 | M35: 2004-02-23 | N35: =IF([1]الشيت!M35="","",CONCATENATE(DATEDIF([1]الشيت!M35,[1]البداية!$M$20,"md")," - ",DATEDIF([1]الشيت!M35,[1]البداية!$M$20,"ym")," - ",DATEDIF([1]الشيت!M35,[1]البداية!$M$20,"y"))) -> 19 - 9 - 12 | O35: 538 | R35: 8 | S35: 13.5 | T35: 11.5 | U35: 33 | V35: 8.5 | W35: 12 | X35: 14 | Y35: 34.5 | Z35: 4.5 | AA35: 4.4 | AB35: 7.6 | AC35: 16.5 | AD35: 5 | AE35: 3 | AF35: 8 | AG35: 9 | AH35: 3.5 | AI35: 12.5 | AJ35: 8 | AK35: 5 | AL35: 13 | AM35: 22 | AN35: 11.5 | AO35: 33.5 | AP35: 8 | AQ35: 9 | AR35: 13 | AS35: 30 | AT35: 9 | AU35: 11.5 | AV35: 19 | AW35: 39.5 | AX35: 9 | AY35: 10 | AZ35: 15 | BA35: 34 | BB35: 9 | BC35: 11 | BD35: 6 | BE35: 26 | BF35: 9.5 | BG35: 19.5 | BH35: 14.5 | BI35: 43.5 | BJ35: 9 | BK35: 6 | BL35: 17 | BM35: 32 | BN35: 9 | BO35: 11.5 | BP35: 12 | BQ35: 32.5 | BR35: 9 | BS35: 13 | BT35: 14 | BU35: 36 | BV35: 133.9 | BW35: 391 | BX35: 4 | BY35: 6 | BZ35: 7 | CA35: 17 | CB35: 3.5 | CC35: 3 | CD35: 6 | CE35: 12.5 | CG35: راسب | CH35: =IF(F35="","",IF(CJ35=0,RANK($BW35,$BW$10:$BW$599)+COUNTIF(BW$10:BW35,BW35)-1,IF(CJ35>=$CK$8,"جميع المواد",CONCATENATE(DC35,DD35,DE35,DF35,DG35,DH35,DI35,DJ35,DK35,DL35,DM35,DN35,DO35,DP35,DQ35)))) -> 000(حاسب عملي) 000000000 | CI35: =IF(F35="","",IF(CJ35=0,RANK($BW35,$BW$10:$BW$599)+COUNTIF(BW$10:BW35,BW35)-"1","")) ->  | CJ35: 11 | CK35: 1 | CL35: 1 | CM35: 1 | CN35: 1 | CO35: 1 | CP35: 1 | CQ35: 1 | CR35: 1 | CS35: 1 | CT35: 1 | CU35: 1 | CV35: 0 | CW35: 1 | CX35: 0 | CY35: 1 | DC35: 0 | DD35: 0 | DE35: 0 | DF35: (حاسب عملي) | DG35: 0 | DH35: 0 | DI35: 0 | DJ35: 0 | DK35: 0 | DL35: 0 | DM35: 0 | DO35: 0 | DQ35: 0
B36: راسب | D36: 27 | E36: 530 | F36: طالبة تسويق 30 | I36: مستجد | J36: أنثي | K36: مسلم | L36: 30307161400389 | M36: 2003-07-16 | N36: =IF([1]الشيت!M36="","",CONCATENATE(DATEDIF([1]الشيت!M36,[1]البداية!$M$20,"md")," - ",DATEDIF([1]الشيت!M36,[1]البداية!$M$20,"ym")," - ",DATEDIF([1]الشيت!M36,[1]البداية!$M$20,"y"))) -> 0 - 2 - 13 | O36: 539 | R36: 8 | S36: 8 | T36: 11.5 | U36: 27.5 | V36: 8.5 | W36: 10.5 | X36: 12 | Y36: 31 | Z36: 5.5 | AA36: 5.6 | AB36: 8 | AC36: 19.1 | AD36: 5 | AE36: 3 | AF36: 8 | AG36: 7 | AH36: 3 | AI36: 10 | AJ36: 9 | AK36: 5 | AL36: 14 | AM36: 21 | AN36: 11 | AO36: 32 | AP36: 8.5 | AQ36: 5 | AR36: 17 | AS36: 30.5 | AT36: 9.5 | AU36: 5.5 | AV36: 18 | AW36: 33 | AX36: 9 | AY36: 4 | AZ36: 12 | BA36: 25 | BB36: 9 | BC36: 6 | BD36: 8.5 | BE36: 23.5 | BF36: 9.5 | BG36: صفر | BH36: 15.5 | BI36: 25 | BJ36: 9 | BK36: 9 | BL36: 18 | BM36: 36 | BN36: 9.5 | BO36: 3.5 | BP36: 12 | BQ36: 25 | BR36: 9.5 | BS36: 6 | BT36: 13 | BU36: 28.5 | BV36: 73.1 | BW36: 336.1 | BX36: 4 | BY36: 6.5 | BZ36: 6.5 | CA36: 17 | CB36: 3.5 | CC36: 3 | CD36: 7 | CE36: 13.5 | CG36: راسب | CH36: =IF(F36="","",IF(CJ36=0,RANK($BW36,$BW$10:$BW$599)+COUNTIF(BW$10:BW36,BW36)-1,IF(CJ36>=$CK$8,"جميع المواد",CONCATENATE(DC36,DD36,DE36,DF36,DG36,DH36,DI36,DJ36,DK36,DL36,DM36,DN36,DO36,DP36,DQ36)))) -> 00000000000000 | CI36: =IF(F36="","",IF(CJ36=0,RANK($BW36,$BW$10:$BW$599)+COUNTIF(BW$10:BW36,BW36)-"1","")) ->  | CJ36: 11 | CK36: 1 | CL36: 1 | CM36: 1 | CN36: 1 | CO36: 1 | CP36: 1 | CQ36: 1 | CR36: 1 | CS36: 1 | CT36: 0 | CU36: 1 | CV36: 1 | CW36: 1 | CX36: 1 | CY36: 1 | DC36: 0 | DD36: 0 | DE36: 0 | DF36: 0 | DG36: 0 | DH36: 0 | DI36: 0 | DJ36: 0 | DK36: 0 | DM36: 0 | DN36: 0 | DO36: 0 | DP36: 0 | DQ36: 0
B37: راسب | D37: 28 | E37: 531 | F37: طالبة تسويق 31 | I37: مستجد | J37: أنثي | K37: مسلم | L37: 30512011404044 | M37: 2005-12-01 | N37: =IF([1]الشيت!M37="","",CONCATENATE(DATEDIF([1]الشيت!M37,[1]البداية!$M$20,"md")," - ",DATEDIF([1]الشيت!M37,[1]البداية!$M$20,"ym")," - ",DATEDIF([1]الشيت!M37,[1]البداية!$M$20,"y"))) -> 0 - 11 - 12 | O37: 540 | R37: 8 | S37: 17 | T37: 16 | U37: 41 | V37: 9 | W37: 12.5 | X37: 16 | Y37: 37.5 | Z37: 5.5 | AA37: 7.2 | AB37: 7.6 | AC37: 20.3 | AD37: 5 | AE37: 3 | AF37: 8 | AG37: 8 | AH37: 2 | AI37: 10 | AJ37: 8 | AK37: 6 | AL37: 14 | AM37: 21 | AN37: 11 | AO37: 32 | AP37: 8.5 | AQ37: 12 | AR37: 18 | AS37: 38.5 | AT37: 9 | AU37: 14 | AV37: 19 | AW37: 42 | AX37: 9 | AY37: 16 | AZ37: 17 | BA37: 42 | BB37: 9 | BC37: 12.5 | BD37: 10.5 | BE37: 32 | BF37: 9.5 | BG37: 4.5 | BH37: 14.5 | BI37: 28.5 | BJ37: 9 | BK37: 10 | BL37: 18 | BM37: 37 | BN37: 9 | BO37: 8.5 | BP37: 11.5 | BQ37: 29 | BR37: 9 | BS37: 18 | BT37: 15 | BU37: 42 | BV37: 142.2 | BW37: 421.8 | BX37: 4 | BY37: 7 | BZ37: 6.5 | CA37: 17.5 | CB37: 3.5 | CC37: 6 | CD37: 7 | CE37: 16.5 | CG37: راسب | CH37: =IF(F37="","",IF(CJ37=0,RANK($BW37,$BW$10:$BW$599)+COUNTIF(BW$10:BW37,BW37)-1,IF(CJ37>=$CK$8,"جميع المواد",CONCATENATE(DC37,DD37,DE37,DF37,DG37,DH37,DI37,DJ37,DK37,DL37,DM37,DN37,DO37,DP37,DQ37)))) -> 00000000 | CI37: =IF(F37="","",IF(CJ37=0,RANK($BW37,$BW$10:$BW$599)+COUNTIF(BW$10:BW37,BW37)-"1","")) ->  | CJ37: 6 | CK37: 0 | CL37: 0 | CM37: 1 | CN37: 1 | CO37: 0 | CP37: 1 | CQ37: 0 | CR37: 1 | CS37: 1 | CT37: 0 | CU37: 1 | CV37: 0 | CW37: 1 | CX37: 1 | CY37: 0 | DE37: 0 | DF37: 0 | DH37: 0 | DJ37: 0 | DK37: 0 | DM37: 0 | DO37: 0 | DP37: 0
B38: راسب | D38: 29 | E38: 532 | F38: طالبة تسويق 32 | I38: مستجد | J38: أنثي | K38: مسلم | L38: 30509181400921 | M38: 2005-09-18 | N38: =IF([1]الشيت!M38="","",CONCATENATE(DATEDIF([1]الشيت!M38,[1]البداية!$M$20,"md")," - ",DATEDIF([1]الشيت!M38,[1]البداية!$M$20,"ym")," - ",DATEDIF([1]الشيت!M38,[1]البداية!$M$20,"y"))) -> 8 - 7 - 14 | O38: 541 | R38: 8 | S38: 12 | T38: 10.5 | U38: 30.5 | V38: 9 | W38: 13 | X38: 15 | Y38: 37 | Z38: 5.5 | AA38: 6 | AB38: 7.6 | AC38: 19.1 | AD38: 5 | AE38: 3 | AF38: 8 | AG38: 9 | AH38: 3.5 | AI38: 12.5 | AJ38: 8 | AK38: 6 | AL38: 14 | AM38: 22 | AN38: 12.5 | AO38: 34.5 | AP38: 8 | AQ38: 10.5 | AR38: 17 | AS38: 35.5 | AT38: 9 | AU38: 9.5 | AV38: 19 | AW38: 37.5 | AX38: 9 | AY38: 7 | AZ38: 18 | BA38: 34 | BB38: 9 | BC38: 17 | BD38: 8.5 | BE38: 34.5 | BF38: 9.5 | BG38: 10 | BH38: 11 | BI38: 30.5 | BJ38: 9 | BK38: 7 | BL38: 18 | BM38: 34 | BN38: 9 | BO38: 12 | BP38: 13.5 | BQ38: 34.5 | BR38: 9 | BS38: 13 | BT38: 14 | BU38: 36 | BV38: 129.5 | BW38: 397.6 | BX38: 4 | BY38: 4.5 | BZ38: 6.5 | CA38: 15 | CB38: 3.5 | CC38: 5 | CD38: 7 | CE38: 15.5 | CG38: راسب | CH38: =IF(F38="","",IF(CJ38=0,RANK($BW38,$BW$10:$BW$599)+COUNTIF(BW$10:BW38,BW38)-1,IF(CJ38>=$CK$8,"جميع المواد",CONCATENATE(DC38,DD38,DE38,DF38,DG38,DH38,DI38,DJ38,DK38,DL38,DM38,DN38,DO38,DP38,DQ38)))) -> 00(حاسب عملي) 00000000 | CI38: =IF(F38="","",IF(CJ38=0,RANK($BW38,$BW$10:$BW$599)+COUNTIF(BW$10:BW38,BW38)-"1","")) ->  | CJ38: 9 | CK38: 1 | CL38: 0 | CM38: 1 | CN38: 1 | CO38: 0 | CP38: 1 | CQ38: 1 | CR38: 1 | CS38: 1 | CT38: 1 | CU38: 1 | CV38: 0 | CW38: 1 | CX38: 1 | CY38: 0 | DC38: 0 | DE38: 0 | DF38: (حاسب عملي) | DH38: 0 | DI38: 0 | DJ38: 0 | DK38: 0 | DL38: 0 | DM38: 0 | DO38: 0 | DP38: 0
B39: راسب | D39: 30 | E39: 533 | F39: طالبة تسويق 33 | I39: مستجد | J39: أنثي | K39: مسلم | L39: 30601081400049 | M39: 2006-01-08 | N39: =IF([1]الشيت!M39="","",CONCATENATE(DATEDIF([1]الشيت!M39,[1]البداية!$M$20,"md")," - ",DATEDIF([1]الشيت!M39,[1]البداية!$M$20,"ym")," - ",DATEDIF([1]الشيت!M39,[1]البداية!$M$20,"y"))) -> 15 - 2 - 15 | O39: 542 | R39: 8 | S39: 13.5 | T39: 16.5 | U39: 38 | V39: 8 | W39: 13 | X39: 15 | Y39: 36 | Z39: 5.5 | AA39: 6 | AB39: 8.4 | AC39: 19.9 | AD39: 5 | AE39: 3 | AF39: 8 | AG39: 7 | AH39: 2.5 | AI39: 9.5 | AJ39: 9 | AK39: 6 | AL39: 15 | AM39: 21 | AN39: 11.5 | AO39: 32.5 | AP39: 8 | AQ39: 9 | AR39: 18 | AS39: 35 | AT39: 9.5 | AU39: 7.5 | AV39: 19 | AW39: 36 | AX39: 9 | AY39: 10 | AZ39: 17 | BA39: 36 | BB39: 9 | BC39: 11 | BD39: 9 | BE39: 29 | BF39: 9.5 | BG39: 9 | BH39: 11 | BI39: 29.5 | BJ39: 9 | BK39: 8 | BL39: 19 | BM39: 36 | BN39: 9 | BO39: 7.5 | BP39: 13.5 | BQ39: 30 | BR39: 9 | BS39: 12 | BT39: 13 | BU39: 34 | BV39: 116 | BW39: 391.9 | BX39: 4 | BY39: 6 | BZ39: 6.5 | CA39: 16.5 | CB39: 3.5 | CC39: 5 | CD39: 6 | CE39: 14.5 | CG39: راسب | CH39: =IF(F39="","",IF(CJ39=0,RANK($BW39,$BW$10:$BW$599)+COUNTIF(BW$10:BW39,BW39)-1,IF(CJ39>=$CK$8,"جميع المواد",CONCATENATE(DC39,DD39,DE39,DF39,DG39,DH39,DI39,DJ39,DK39,DL39,DM39,DN39,DO39,DP39,DQ39)))) -> 00000000000 | CI39: =IF(F39="","",IF(CJ39=0,RANK($BW39,$BW$10:$BW$599)+COUNTIF(BW$10:BW39,BW39)-"1","")) ->  | CJ39: 8 | CK39: 0 | CL39: 1 | CM39: 0 | CN39: 1 | CO39: 0 | CP39: 1 | CQ39: 1 | CR39: 1 | CS39: 1 | CT39: 0 | CU39: 1 | CV39: 1 | CW39: 1 | CX39: 1 | CY39: 1 | DD39: 0 | DF39: 0 | DH39: 0 | DI39: 0 | DJ39: 0 | DK39: 0 | DM39: 0 | DN39: 0 | DO39: 0 | DP39: 0 | DQ39: 0
B40: راسب | D40: 31 | E40: 534 | F40: طالبة تسويق 34 | I40: مستجد | J40: أنثي | K40: مسلم | L40: 30507251402266 | M40: 2005-07-25 | N40: =IF([1]الشيت!M40="","",CONCATENATE(DATEDIF([1]الشيت!M40,[1]البداية!$M$20,"md")," - ",DATEDIF([1]الشيت!M40,[1]البداية!$M$20,"ym")," - ",DATEDIF([1]الشيت!M40,[1]البداية!$M$20,"y"))) -> 0 - 10 - 12 | O40: 543 | R40: 8 | S40: 14.5 | T40: 14.5 | U40: 37 | V40: 6 | W40: 13 | X40: 14.5 | Y40: 33.5 | Z40: 5.5 | AA40: 6.4 | AB40: 8.4 | AC40: 20.3 | AD40: 5 | AE40: 3 | AF40: 8 | AG40: 8 | AH40: 3 | AI40: 11 | AJ40: 8 | AK40: 6 | AL40: 14 | AM40: 21 | AN40: 12 | AO40: 33 | AP40: 8 | AQ40: 12 | AR40: 18 | AS40: 38 | AT40: 9 | AU40: 11.5 | AV40: 18.5 | AW40: 39 | AX40: 9 | AY40: 11 | AZ40: 17 | BA40: 37 | BB40: 9 | BC40: 14 | BD40: 10 | BE40: 33 | BF40: 9.5 | BG40: 3 | BH40: 15 | BI40: 27.5 | BJ40: 9 | BK40: 9 | BL40: 18 | BM40: 36 | BN40: 9 | BO40: 9 | BP40: 14 | BQ40: 32 | BR40: 9 | BS40: 13 | BT40: 15 | BU40: 37 | BV40: 127.4 | BW40: 403.3 | BX40: 4 | BY40: 7 | BZ40: 6.5 | CA40: 17.5 | CB40: 3.5 | CC40: 5 | CD40: 5 | CE40: 13.5 | CG40: راسب | CH40: =IF(F40="","",IF(CJ40=0,RANK($BW40,$BW$10:$BW$599)+COUNTIF(BW$10:BW40,BW40)-1,IF(CJ40>=$CK$8,"جميع المواد",CONCATENATE(DC40,DD40,DE40,DF40,DG40,DH40,DI40,DJ40,DK40,DL40,DM40,DN40,DO40,DP40,DQ40)))) -> 0000000000 | CI40: =IF(F40="","",IF(CJ40=0,RANK($BW40,$BW$10:$BW$599)+COUNTIF(BW$10:BW40,BW40)-"1","")) ->  | CJ40: 7 | CK40: 0 | CL40: 1 | CM40: 0 | CN40: 1 | CO40: 0 | CP40: 1 | CQ40: 1 | CR40: 1 | CS40: 1 | CT40: 0 | CU40: 1 | CV40: 0 | CW40: 1 | CX40: 1 | CY40: 1 | DD40: 0 | DF40: 0 | DH40: 0 | DI40: 0 | DJ40: 0 | DK40: 0 | DM40: 0 | DO40: 0 | DP40: 0 | DQ40: 0
B41: راسب | D41: 32 | E41: 535 | F41: طالبة تسويق 35 | I41: مستجد | J41: أنثي | K41: مسلم | L41: 30507251402304 | M41: 2005-07-25 | N41: =IF([1]الشيت!M41="","",CONCATENATE(DATEDIF([1]الشيت!M41,[1]البداية!$M$20,"md")," - ",DATEDIF([1]الشيت!M41,[1]البداية!$M$20,"ym")," - ",DATEDIF([1]الشيت!M41,[1]البداية!$M$20,"y"))) -> 13 - 0 - 13 | O41: 544 | R41: 8 | S41: 8 | T41: 12 | U41: 28 | V41: 7.5 | W41: 8.5 | X41: 12.5 | Y41: 28.5 | Z41: 5.5 | AA41: 5.6 | AB41: 8 | AC41: 19.1 | AD41: 4.5 | AE41: 3 | AF41: 7.5 | AG41: 8 | AH41: 2.5 | AI41: 10.5 | AJ41: 7 | AK41: 4.5 | AL41: 11.5 | AM41: 19.5 | AN41: 10 | AO41: 29.5 | AP41: 8 | AQ41: 7 | AR41: 17 | AS41: 32 | AT41: 9.5 | AU41: 7.5 | AV41: 17 | AW41: 34 | AX41: 9 | AY41: 6 | AZ41: 15 | BA41: 30 | BB41: 9 | BC41: 7 | BD41: 8 | BE41: 24 | BF41: 9.5 | BG41: 2 | BH41: 13.5 | BI41: 25 | BJ41: 9 | BK41: 7 | BL41: 15 | BM41: 31 | BN41: 9.5 | BO41: 2 | BP41: 13.5 | BQ41: 25 | BR41: 9.5 | BS41: 4 | BT41: 14 | BU41: 27.5 | BV41: 75.1 | BW41: 333.6 | BX41: 4 | BY41: 5.5 | BZ41: 4.5 | CA41: 14 | CB41: 3.5 | CC41: 6 | CD41: 7 | CE41: 16.5 | CG41: راسب | CH41: =IF(F41="","",IF(CJ41=0,RANK($BW41,$BW$10:$BW$599)+COUNTIF(BW$10:BW41,BW41)-1,IF(CJ41>=$CK$8,"جميع المواد",CONCATENATE(DC41,DD41,DE41,DF41,DG41,DH41,DI41,DJ41,DK41,DL41,DM41,DN41,DO41,DP41,DQ41)))) -> 00000000000000 | CI41: =IF(F41="","",IF(CJ41=0,RANK($BW41,$BW$10:$BW$599)+COUNTIF(BW$10:BW41,BW41)-"1","")) ->  | CJ41: 12 | CK41: 1 | CL41: 1 | CM41: 1 | CN41: 1 | CO41: 1 | CP41: 1 | CQ41: 1 | CR41: 1 | CS41: 1 | CT41: 1 | CU41: 1 | CV41: 1 | CW41: 1 | CX41: 1 | CY41: 0 | DC41: 0 | DD41: 0 | DE41: 0 | DF41: 0 | DG41: 0 | DH41: 0 | DI41: 0 | DJ41: 0 | DK41: 0 | DL41: 0 | DM41: 0 | DN41: 0 | DO41: 0 | DP41: 0
B42: راسب | D42: 33 | E42: 536 | F42: طالبة تسويق 36 | I42: مستجد | J42: أنثي | K42: مسلم | L42: 30504061400942 | M42: 2005-04-06 | N42: =IF([1]الشيت!M42="","",CONCATENATE(DATEDIF([1]الشيت!M42,[1]البداية!$M$20,"md")," - ",DATEDIF([1]الشيت!M42,[1]البداية!$M$20,"ym")," - ",DATEDIF([1]الشيت!M42,[1]البداية!$M$20,"y"))) -> 23 - 8 - 12 | O42: 545 | R42: 8 | S42: 16 | T42: 17.5 | U42: 41.5 | V42: 8 | W42: 15 | X42: 15 | Y42: 38 | Z42: 5.5 | AA42: 5.6 | AB42: 8.4 | AC42: 19.5 | AD42: 5 | AE42: 3 | AF42: 8 | AG42: 8 | AH42: 5 | AI42: 13 | AJ42: 8 | AK42: 6 | AL42: 14 | AM42: 21 | AN42: 14 | AO42: 35 | AP42: 8 | AQ42: 14 | AR42: 19 | AS42: 41 | AT42: 9 | AU42: 18.5 | AV42: 20 | AW42: 47.5 | AX42: 9 | AY42: 16 | AZ42: 17 | BA42: 42 | BB42: 9 | BC42: 19 | BD42: 17 | BE42: 45 | BF42: 9.5 | BG42: 17.5 | BH42: 18 | BI42: 45 | BJ42: 9 | BK42: 11 | BL42: 18 | BM42: 38 | BN42: 9 | BO42: 17 | BP42: 16.5 | BQ42: 42.5 | BR42: 9 | BS42: 20 | BT42: 13 | BU42: 42 | BV42: 182.6 | BW42: 477 | BX42: 4 | BY42: 7.5 | BZ42: 7 | CA42: 18.5 | CB42: 3.5 | CC42: 6 | CD42: 7 | CE42: 16.5 | CG42: راسب | CH42: =IF(F42="","",IF(CJ42=0,RANK($BW42,$BW$10:$BW$599)+COUNTIF(BW$10:BW42,BW42)-1,IF(CJ42>=$CK$8,"جميع المواد",CONCATENATE(DC42,DD42,DE42,DF42,DG42,DH42,DI42,DJ42,DK42,DL42,DM42,DN42,DO42,DP42,DQ42)))) -> (حاسب عملي) 00 | CI42: =IF(F42="","",IF(CJ42=0,RANK($BW42,$BW$10:$BW$599)+COUNTIF(BW$10:BW42,BW42)-"1","")) ->  | CJ42: 3 | CK42: 0 | CL42: 0 | CM42: 0 | CN42: 1 | CO42: 0 | CP42: 0 | CQ42: 0 | CR42: 0 | CS42: 1 | CT42: 0 | CU42: 0 | CV42: 1 | CW42: 0 | CX42: 0 | CY42: 0 | DF42: (حاسب عملي) | DK42: 0 | DN42: 0
B43: راسب | D43: 34 | E43: 537 | F43: طالبة تسويق 37 | I43: مستجد | J43: أنثي | K43: مسلم | L43: 30601151400645 | M43: 2006-01-15 | N43: =IF([1]الشيت!M43="","",CONCATENATE(DATEDIF([1]الشيت!M43,[1]البداية!$M$20,"md")," - ",DATEDIF([1]الشيت!M43,[1]البداية!$M$20,"ym")," - ",DATEDIF([1]الشيت!M43,[1]البداية!$M$20,"y"))) -> 6 - 2 - 13 | O43: 546 | R43: 8 | S43: 15 | T43: 15.5 | U43: 38.5 | V43: 7 | W43: 11 | X43: 14.5 | Y43: 32.5 | Z43: 5.5 | AA43: 4.4 | AB43: 8.4 | AC43: 18.3 | AD43: 5 | AE43: 3 | AF43: 8 | AG43: 8 | AH43: 4 | AI43: 12 | AJ43: 8 | AK43: 6 | AL43: 14 | AM43: 21 | AN43: 13 | AO43: 34 | AP43: 8 | AQ43: 13.5 | AR43: 17 | AS43: 38.5 | AT43: 9.5 | AU43: 8.5 | AV43: 16 | AW43: 34 | AX43: 9 | AY43: 7 | AZ43: 15 | BA43: 31 | BB43: 9 | BC43: 15 | BD43: 9.5 | BE43: 33.5 | BF43: 9.5 | BG43: 11.5 | BH43: 15 | BI43: 36 | BJ43: 9 | BK43: 4 | BL43: 17 | BM43: 30 | BN43: 9 | BO43: 12.5 | BP43: 10.5 | BQ43: 32 | BR43: 9 | BS43: 10 | BT43: 13 | BU43: 32 | BV43: 124.4 | BW43: 390.3 | BX43: 4 | BY43: 7.5 | BZ43: 6.5 | CA43: 18 | CB43: 3.5 | CC43: 3 | CD43: 7 | CE43: 13.5 | CG43: راسب | CH43: =IF(F43="","",IF(CJ43=0,RANK($BW43,$BW$10:$BW$599)+COUNTIF(BW$10:BW43,BW43)-1,IF(CJ43>=$CK$8,"جميع المواد",CONCATENATE(DC43,DD43,DE43,DF43,DG43,DH43,DI43,DJ43,DK43,DL43,DM43,DN43,DO43,DP43,DQ43)))) -> 0(حاسب عملي) 0000000000 | CI43: =IF(F43="","",IF(CJ43=0,RANK($BW43,$BW$10:$BW$599)+COUNTIF(BW$10:BW43,BW43)-"1","")) ->  | CJ43: 9 | CK43: 0 | CL43: 1 | CM43: 0 | CN43: 1 | CO43: 0 | CP43: 1 | CQ43: 1 | CR43: 1 | CS43: 1 | CT43: 1 | CU43: 1 | CV43: 1 | CW43: 1 | CX43: 1 | CY43: 1 | DD43: 0 | DF43: (حاسب عملي) | DH43: 0 | DI43: 0 | DJ43: 0 | DK43: 0 | DL43: 0 | DM43: 0 | DN43: 0 | DO43: 0 | DP43: 0 | DQ43: 0
B44: راسب | D44: 35 | E44: 538 | F44: طالبة تسويق 38 | I44: مستجد | J44: أنثي | K44: مسلم | L44: 30506071401109 | M44: 2005-06-07 | N44: =IF([1]الشيت!M44="","",CONCATENATE(DATEDIF([1]الشيت!M44,[1]البداية!$M$20,"md")," - ",DATEDIF([1]الشيت!M44,[1]البداية!$M$20,"ym")," - ",DATEDIF([1]الشيت!M44,[1]البداية!$M$20,"y"))) -> 6 - 2 - 13 | O44: 547 | R44: 8 | S44: 6.5 | T44: 10.5 | U44: 25 | V44: 8 | W44: 12 | X44: 13 | Y44: 33 | Z44: 5.5 | AA44: 5.2 | AB44: 7.6 | AC44: 18.3 | AD44: 5 | AE44: 3 | AF44: 8 | AG44: 8 | AH44: 2 | AI44: 10 | AJ44: 9 | AK44: 6 | AL44: 15 | AM44: 22 | AN44: 11 | AO44: 33 | AP44: 8 | AQ44: 9 | AR44: 18 | AS44: 35 | AT44: 9 | AU44: 10 | AV44: 19 | AW44: 38 | AX44: 9 | AY44: 8 | AZ44: 15 | BA44: 32 | BB44: 9 | BC44: 6 | BD44: 9 | BE44: 24 | BF44: 9.5 | BG44: 3 | BH44: 15 | BI44: 27.5 | BJ44: 9 | BK44: 7 | BL44: 16 | BM44: 32 | BN44: 9 | BO44: 6 | BP44: 10 | BQ44: 25 | BR44: 9 | BS44: 9 | BT44: 13 | BU44: 31 | BV44: 91.7 | BW44: 353.8 | BX44: 4 | BY44: 4 | BZ44: 6.5 | CA44: 14.5 | CB44: 3.5 | CC44: 3 | CD44: 7 | CE44: 13.5 | CG44: راسب | CH44: =IF(F44="","",IF(CJ44=0,RANK($BW44,$BW$10:$BW$599)+COUNTIF(BW$10:BW44,BW44)-1,IF(CJ44>=$CK$8,"جميع المواد",CONCATENATE(DC44,DD44,DE44,DF44,DG44,DH44,DI44,DJ44,DK44,DL44,DM44,DN44,DO44,DP44,DQ44)))) -> 000(حاسب نظرى) 0000000000 | CI44: =IF(F44="","",IF(CJ44=0,RANK($BW44,$BW$10:$BW$599)+COUNTIF(BW$10:BW44,BW44)-"1","")) ->  | CJ44: 11 | CK44: 1 | CL44: 1 | CM44: 1 | CN44: 1 | CO44: 0 | CP44: 1 | CQ44: 1 | CR44: 1 | CS44: 1 | CT44: 1 | CU44: 1 | CV44: 1 | CW44: 1 | CX44: 1 | CY44: 1 | DC44: 0 | DD44: 0 | DE44: 0 | DF44: (حاسب نظرى) | DH44: 0 | DI44: 0 | DJ44: 0 | DK44: 0 | DL44: 0 | DM44: 0 | DN44: 0 | DO44: 0 | DP44: 0 | DQ44: 0
B45: راسب | D45: 36 | E45: 539 | F45: طالبة تسويق 39 | I45: مستجد | J45: أنثي | K45: مسلم | L45: 30506173200124 | M45: 2005-06-17 | N45: =IF([1]الشيت!M45="","",CONCATENATE(DATEDIF([1]الشيت!M45,[1]البداية!$M$20,"md")," - ",DATEDIF([1]الشيت!M45,[1]البداية!$M$20,"ym")," - ",DATEDIF([1]الشيت!M45,[1]البداية!$M$20,"y"))) -> 25 - 5 - 13 | O45: 548 | R45: 8 | S45: 14 | T45: 17 | U45: 39 | V45: 9.5 | W45: 12.5 | X45: 17 | Y45: 39 | Z45: 5.5 | AA45: 4 | AB45: 8.4 | AC45: 17.9 | AD45: 5 | AE45: 3 | AF45: 8 | AG45: 8 | AH45: 2.5 | AI45: 10.5 | AJ45: 8 | AK45: 4.5 | AL45: 12.5 | AM45: 21 | AN45: 10 | AO45: 31 | AP45: 8 | AQ45: 13 | AR45: 15 | AS45: 36 | AT45: 9 | AU45: 12 | AV45: 16 | AW45: 37 | AX45: 9 | AY45: 16 | AZ45: 19 | BA45: 44 | BB45: 9 | BC45: 11 | BD45: 11.5 | BE45: 31.5 | BF45: 9.5 | BG45: 18 | BH45: 19 | BI45: 46.5 | BJ45: 9 | BK45: 12.5 | BL45: 16 | BM45: 37.5 | BN45: 9 | BO45: 9.5 | BP45: 14.5 | BQ45: 33 | BR45: 9 | BS45: 19 | BT45: 15 | BU45: 43 | BV45: 152 | BW45: 435.4 | BX45: 4 | BY45: 6 | BZ45: 6.5 | CA45: 16.5 | CB45: 3.5 | CC45: 5.5 | CD45: 6 | CE45: 15 | CG45: راسب | CH45: =IF(F45="","",IF(CJ45=0,RANK($BW45,$BW$10:$BW$599)+COUNTIF(BW$10:BW45,BW45)-1,IF(CJ45>=$CK$8,"جميع المواد",CONCATENATE(DC45,DD45,DE45,DF45,DG45,DH45,DI45,DJ45,DK45,DL45,DM45,DN45,DO45,DP45,DQ45)))) -> 0000000 | CI45: =IF(F45="","",IF(CJ45=0,RANK($BW45,$BW$10:$BW$599)+COUNTIF(BW$10:BW45,BW45)-"1","")) ->  | CJ45: 5 | CK45: 0 | CL45: 0 | CM45: 0 | CN45: 1 | CO45: 0 | CP45: 1 | CQ45: 0 | CR45: 1 | CS45: 0 | CT45: 1 | CU45: 1 | CV45: 0 | CW45: 0 | CX45: 1 | CY45: 1 | DF45: 0 | DH45: 0 | DJ45: 0 | DL45: 0 | DM45: 0 | DP45: 0 | DQ45: 0
B46: راسب | D46: 37 | E46: 540 | F46: طالبة تسويق 40 | I46: مستجد | J46: أنثي | K46: مسلم | L46: 30601101400105 | M46: 2006-01-10 | N46: =IF([1]الشيت!M46="","",CONCATENATE(DATEDIF([1]الشيت!M46,[1]البداية!$M$20,"md")," - ",DATEDIF([1]الشيت!M46,[1]البداية!$M$20,"ym")," - ",DATEDIF([1]الشيت!M46,[1]البداية!$M$20,"y"))) -> 16 - 8 - 12 | O46: 549 | R46: 8 | S46: 14 | T46: 16 | U46: 38 | V46: 8.5 | W46: 13 | X46: 17 | Y46: 38.5 | Z46: 5.5 | AA46: 4 | AB46: 8.4 | AC46: 17.9 | AD46: 5 | AE46: 3 | AF46: 8 | AG46: 9 | AH46: 4 | AI46: 13 | AJ46: 8 | AK46: 4 | AL46: 12 | AM46: 22 | AN46: 11 | AO46: 33 | AP46: 8 | AQ46: 11.5 | AR46: 15 | AS46: 34.5 | AT46: 9 | AU46: 12 | AV46: 16 | AW46: 37 | AX46: 9 | AY46: 14 | AZ46: 19 | BA46: 42 | BB46: 9 | BC46: 12 | BD46: 11 | BE46: 32 | BF46: 9.5 | BG46: 18 | BH46: 19 | BI46: 46.5 | BJ46: 8.5 | BK46: 12.5 | BL46: 16 | BM46: 37 | BN46: 9 | BO46: 9.5 | BP46: 13 | BQ46: 31.5 | BR46: 9 | BS46: 16 | BT46: 15 | BU46: 40 | BV46: 149.5 | BW46: 427.9 | BX46: 4 | BY46: 6 | BZ46: 6 | CA46: 16 | CB46: 3.5 | CC46: 5.5 | CD46: 6 | CE46: 15 | CG46: راسب | CH46: =IF(F46="","",IF(CJ46=0,RANK($BW46,$BW$10:$BW$599)+COUNTIF(BW$10:BW46,BW46)-1,IF(CJ46>=$CK$8,"جميع المواد",CONCATENATE(DC46,DD46,DE46,DF46,DG46,DH46,DI46,DJ46,DK46,DL46,DM46,DN46,DO46,DP46,DQ46)))) -> (حاسب عملي) 0000000 | CI46: =IF(F46="","",IF(CJ46=0,RANK($BW46,$BW$10:$BW$599)+COUNTIF(BW$10:BW46,BW46)-"1","")) ->  | CJ46: 5 | CK46: 0 | CL46: 0 | CM46: 0 | CN46: 1 | CO46: 0 | CP46: 1 | CQ46: 0 | CR46: 1 | CS46: 0 | CT46: 1 | CU46: 1 | CV46: 0 | CW46: 1 | CX46: 1 | CY46: 1 | DF46: (حاسب عملي) | DH46: 0 | DJ46: 0 | DL46: 0 | DM46: 0 | DO46: 0 | DP46: 0 | DQ46: 0
B47: راسب | D47: 38 | E47: 541 | F47: طالبة تسويق 41 | I47: مستجد | J47: أنثي | K47: مسلم | L47: 30306101402467 | M47: 2003-06-10 | N47: =IF([1]الشيت!M47="","",CONCATENATE(DATEDIF([1]الشيت!M47,[1]البداية!$M$20,"md")," - ",DATEDIF([1]الشيت!M47,[1]البداية!$M$20,"ym")," - ",DATEDIF([1]الشيت!M47,[1]البداية!$M$20,"y"))) -> 24 - 3 - 13 | O47: 550 | R47: 8 | S47: 11.5 | T47: 16 | U47: 35.5 | V47: 9.5 | W47: 11.5 | X47: 17 | Y47: 38 | Z47: 5.5 | AA47: 4 | AB47: 8.8 | AC47: 18.3 | AD47: 4.5 | AE47: 3 | AF47: 7.5 | AG47: 7 | AH47: 4 | AI47: 11 | AJ47: 7 | AK47: 5.5 | AL47: 12.5 | AM47: 18.5 | AN47: 12.5 | AO47: 31 | AP47: 7 | AQ47: 11 | AR47: 7 | AS47: 25 | AT47: 9.5 | AU47: 6 | AV47: 16 | AW47: 31.5 | AX47: 9 | AY47: 12 | AZ47: 8 | BA47: 29 | BB47: 9 | BC47: 9 | BD47: 13 | BE47: 31 | BF47: 9.5 | BG47: 19.5 | BH47: 19.5 | BI47: 48.5 | BJ47: 9 | BK47: 12 | BL47: 13 | BM47: 34 | BN47: 9 | BO47: 12 | BP47: 13 | BQ47: 34 | BR47: 9 | BS47: 14.5 | BT47: 13 | BU47: 36.5 | BV47: 134 | BW47: 392.3 | BX47: 4 | BY47: 5 | BZ47: 6 | CA47: 15 | CB47: 3.5 | CC47: 4.5 | CD47: 5 | CE47: 13 | CG47: راسب | CH47: =IF(F47="","",IF(CJ47=0,RANK($BW47,$BW$10:$BW$599)+COUNTIF(BW$10:BW47,BW47)-1,IF(CJ47>=$CK$8,"جميع المواد",CONCATENATE(DC47,DD47,DE47,DF47,DG47,DH47,DI47,DJ47,DK47,DL47,DM47,DN47,DO47,DP47,DQ47)))) -> 00000000000 | CI47: =IF(F47="","",IF(CJ47=0,RANK($BW47,$BW$10:$BW$599)+COUNTIF(BW$10:BW47,BW47)-"1","")) ->  | CJ47: 8 | CK47: 0 | CL47: 0 | CM47: 0 | CN47: 1 | CO47: 1 | CP47: 1 | CQ47: 1 | CR47: 1 | CS47: 0 | CT47: 1 | CU47: 1 | CV47: 1 | CW47: 1 | CX47: 1 | CY47: 1 | DF47: 0 | DG47: 0 | DH47: 0 | DI47: 0 | DJ47: 0 | DL47: 0 | DM47: 0 | DN47: 0 | DO47: 0 | DP47: 0 | DQ47: 0
B48: راسب | D48: 39 | E48: 542 | F48: طالبة تسويق 42 | I48: مستجد | J48: أنثي | K48: مسلم | L48: 30603011401725 | M48: 2006-03-01 | N48: =IF([1]الشيت!M48="","",CONCATENATE(DATEDIF([1]الشيت!M48,[1]البداية!$M$20,"md")," - ",DATEDIF([1]الشيت!M48,[1]البداية!$M$20,"ym")," - ",DATEDIF([1]الشيت!M48,[1]البداية!$M$20,"y"))) -> 14 - 3 - 13 | O48: 551 | R48: 8 | S48: 13 | T48: 16 | U48: 37 | V48: 8.5 | W48: 8 | X48: غ | Y48: 16.5 | Z48: 5.5 | AA48: 5.2 | AB48: 9.6 | AC48: 20.3 | AD48: 4.5 | AE48: 3 | AF48: 7.5 | AG48: 7 | AH48: 3.5 | AI48: 10.5 | AJ48: 8 | AK48: 5 | AL48: 13 | AM48: 19.5 | AN48: 11.5 | AO48: 31 | AP48: 7 | AQ48: 10.5 | AR48: 8 | AS48: 25.5 | AT48: 9.5 | AU48: 7.5 | AV48: 16.5 | AW48: 33.5 | AX48: 9 | AY48: 11 | AZ48: غ | BA48: 20 | BB48: 9 | BC48: 4 | BD48: 9 | BE48: 22 | BF48: 9.5 | BG48: 18.5 | BH48: غ | BI48: 28 | BJ48: 9 | BK48: 12 | BL48: 14 | BM48: 35 | BN48: 9 | BO48: 8.5 | BP48: 11 | BQ48: 28.5 | BR48: 9 | BS48: 15 | BT48: 15 | BU48: 39 | BV48: 123.7 | BW48: 336.3 | BX48: 4 | BY48: 6 | BZ48: 7 | CA48: 17 | CB48: 3.5 | CC48: 4.5 | CD48: غ | CE48: 8 | CG48: راسب | CH48: =IF(F48="","",IF(CJ48=0,RANK($BW48,$BW$10:$BW$599)+COUNTIF(BW$10:BW48,BW48)-1,IF(CJ48>=$CK$8,"جميع المواد",CONCATENATE(DC48,DD48,DE48,DF48,DG48,DH48,DI48,DJ48,DK48,DL48,DM48,DN48,DO48,DP48,DQ48)))) -> 00000000000 | CI48: =IF(F48="","",IF(CJ48=0,RANK($BW48,$BW$10:$BW$599)+COUNTIF(BW$10:BW48,BW48)-"1","")) ->  | CJ48: 9 | CK48: 0 | CL48: 1 | CM48: 0 | CN48: 1 | CO48: 1 | CP48: 1 | CQ48: 1 | CR48: 1 | CS48: 1 | CT48: 1 | CU48: 1 | CV48: 0 | CW48: 1 | CX48: 0 | CY48: 1 | DD48: 0 | DF48: 0 | DG48: 0 | DH48: 0 | DI48: 0 | DJ48: 0 | DK48: 0 | DL48: 0 | DM48: 0 | DO48: 0 | DQ48: 0
B49: راسب | D49: 40 | E49: 543 | F49: طالبة تسويق 43 | I49: مستجد | J49: أنثي | K49: مسلم | L49: 30509041401065 | M49: 2005-09-04 | N49: =IF([1]الشيت!M49="","",CONCATENATE(DATEDIF([1]الشيت!M49,[1]البداية!$M$20,"md")," - ",DATEDIF([1]الشيت!M49,[1]البداية!$M$20,"ym")," - ",DATEDIF([1]الشيت!M49,[1]البداية!$M$20,"y"))) -> 21 - 8 - 12 | O49: 552 | R49: 8 | S49: 14.5 | T49: 17 | U49: 39.5 | V49: 8.5 | W49: 11 | X49: 17 | Y49: 36.5 | Z49: 4.5 | AA49: 4.4 | AB49: 9.6 | AC49: 18.5 | AD49: 4.5 | AE49: 3 | AF49: 7.5 | AG49: 9 | AH49: 3 | AI49: 12 | AJ49: 8 | AK49: 5.5 | AL49: 13.5 | AM49: 21.5 | AN49: 11.5 | AO49: 33 | AP49: 7 | AQ49: 12 | AR49: 12 | AS49: 31 | AT49: 9 | AU49: 9.5 | AV49: 16 | AW49: 34.5 | AX49: 9 | AY49: 12 | AZ49: 13 | BA49: 34 | BB49: 9 | BC49: 7 | BD49: 7.5 | BE49: 23.5 | BF49: 10 | BG49: 17.5 | BH49: 19.5 | BI49: 47 | BJ49: 9 | BK49: 8 | BL49: 15 | BM49: 32 | BN49: 9 | BO49: 10 | BP49: 10.5 | BQ49: 29.5 | BR49: 9 | BS49: 14.5 | BT49: 14 | BU49: 37.5 | BV49: 132.4 | BW49: 396.5 | BX49: 4 | BY49: 5.5 | BZ49: 5.5 | CA49: 15 | CB49: 3.5 | CC49: 4.5 | CD49: 6 | CE49: 14 | CG49: راسب | CH49: =IF(F49="","",IF(CJ49=0,RANK($BW49,$BW$10:$BW$599)+COUNTIF(BW$10:BW49,BW49)-1,IF(CJ49>=$CK$8,"جميع المواد",CONCATENATE(DC49,DD49,DE49,DF49,DG49,DH49,DI49,DJ49,DK49,DL49,DM49,DN49,DO49,DP49,DQ49)))) -> 0(حاسب عملي) 000000000 | CI49: =IF(F49="","",IF(CJ49=0,RANK($BW49,$BW$10:$BW$599)+COUNTIF(BW$10:BW49,BW49)-"1","")) ->  | CJ49: 8 | CK49: 0 | CL49: 1 | CM49: 0 | CN49: 1 | CO49: 1 | CP49: 1 | CQ49: 1 | CR49: 1 | CS49: 0 | CT49: 1 | CU49: 1 | CV49: 0 | CW49: 1 | CX49: 1 | CY49: 1 | DD49: 0 | DF49: (حاسب عملي) | DG49: 0 | DH49: 0 | DI49: 0 | DJ49: 0 | DL49: 0 | DM49: 0 | DO49: 0 | DP49: 0 | DQ49: 0
B50: راسب | D50: 41 | E50: 544 | F50: طالبة تسويق 44 | I50: مستجد | J50: أنثي | K50: مسلم | L50: 30501011404107 | M50: 2005-01-01 | N50: =IF([1]الشيت!M50="","",CONCATENATE(DATEDIF([1]الشيت!M50,[1]البداية!$M$20,"md")," - ",DATEDIF([1]الشيت!M50,[1]البداية!$M$20,"ym")," - ",DATEDIF([1]الشيت!M50,[1]البداية!$M$20,"y"))) -> 21 - 3 - 15 | O50: 553 | R50: 8 | S50: 12 | T50: 15.5 | U50: 35.5 | V50: 8.5 | W50: 13 | X50: 17 | Y50: 38.5 | Z50: 5.5 | AA50: 4.8 | AB50: 9.2 | AC50: 19.5 | AD50: 4.5 | AE50: 3 | AF50: 7.5 | AG50: 9 | AH50: 4 | AI50: 13 | AJ50: 9 | AK50: 5 | AL50: 14 | AM50: 22.5 | AN50: 12 | AO50: 34.5 | AP50: 7 | AQ50: 10 | AR50: 11 | AS50: 28 | AT50: 9 | AU50: 11 | AV50: 15.5 | AW50: 35.5 | AX50: 9 | AY50: 13 | AZ50: 10 | BA50: 32 | BB50: 9 | BC50: 6 | BD50: 8.5 | BE50: 23.5 | BF50: 10 | BG50: 16.5 | BH50: 19.5 | BI50: 46 | BJ50: 9 | BK50: 8 | BL50: 15 | BM50: 32 | BN50: 9 | BO50: 6.5 | BP50: 12.5 | BQ50: 28 | BR50: 9 | BS50: 14 | BT50: 15 | BU50: 38 | BV50: 127.8 | BW50: 391 | BX50: 4 | BY50: 5 | BZ50: 6 | CA50: 15 | CB50: 3.5 | CC50: 4.5 | CD50: 5 | CE50: 13 | CG50: راسب | CH50: =IF(F50="","",IF(CJ50=0,RANK($BW50,$BW$10:$BW$599)+COUNTIF(BW$10:BW50,BW50)-1,IF(CJ50>=$CK$8,"جميع المواد",CONCATENATE(DC50,DD50,DE50,DF50,DG50,DH50,DI50,DJ50,DK50,DL50,DM50,DN50,DO50,DP50,DQ50)))) -> (حاسب نظرى) 000000000 | CI50: =IF(F50="","",IF(CJ50=0,RANK($BW50,$BW$10:$BW$599)+COUNTIF(BW$10:BW50,BW50)-"1","")) ->  | CJ50: 7 | CK50: 0 | CL50: 0 | CM50: 0 | CN50: 1 | CO50: 1 | CP50: 1 | CQ50: 1 | CR50: 1 | CS50: 0 | CT50: 1 | CU50: 1 | CV50: 0 | CW50: 1 | CX50: 1 | CY50: 1 | DF50: (حاسب نظرى) | DG50: 0 | DH50: 0 | DI50: 0 | DJ50: 0 | DL50: 0 | DM50: 0 | DO50: 0 | DP50: 0 | DQ50: 0
B51: راسب | D51: 42 | E51: 545 | F51: طالبة تسويق 45 | I51: مستجد | J51: أنثي | K51: مسلم | L51: 30510131401402 | M51: 2005-10-13 | N51: =IF([1]الشيت!M51="","",CONCATENATE(DATEDIF([1]الشيت!M51,[1]البداية!$M$20,"md")," - ",DATEDIF([1]الشيت!M51,[1]البداية!$M$20,"ym")," - ",DATEDIF([1]الشيت!M51,[1]البداية!$M$20,"y"))) -> 0 - 7 - 12 | O51: 554 | R51: 8 | S51: 9 | T51: 11 | U51: 28 | V51: 9.5 | W51: 6.5 | X51: 14.5 | Y51: 30.5 | Z51: 5.5 | AA51: 4.8 | AB51: 8 | AC51: 18.3 | AD51: 4.5 | AE51: 3 | AF51: 7.5 | AG51: 7 | AH51: 5 | AI51: 12 | AJ51: 9 | AK51: 5 | AL51: 14 | AM51: 20.5 | AN51: 13 | AO51: 33.5 | AP51: 7 | AQ51: غ | AR51: 6 | AS51: 13 | AT51: 9.5 | AU51: 6 | AV51: 14 | AW51: 29.5 | AX51: 9 | AY51: غ | AZ51: 10 | BA51: 19 | BB51: 9 | BC51: 2 | BD51: 9 | BE51: 20 | BF51: 10 | BG51: 17.5 | BH51: 13.5 | BI51: 41 | BJ51: 9 | BK51: 9 | BL51: 11 | BM51: 29 | BN51: 9.5 | BO51: 4 | BP51: 11.5 | BQ51: 25 | BR51: 9 | BS51: 7 | BT51: 14 | BU51: 30 | BV51: 77.8 | BW51: 316.8 | BX51: 4 | BY51: 6 | BZ51: 4.5 | CA51: 14.5 | CB51: 3.5 | CC51: 4.5 | CD51: 4 | CE51: 12 | CG51: راسب | CH51: =IF(F51="","",IF(CJ51=0,RANK($BW51,$BW$10:$BW$599)+COUNTIF(BW$10:BW51,BW51)-1,IF(CJ51>=$CK$8,"جميع المواد",CONCATENATE(DC51,DD51,DE51,DF51,DG51,DH51,DI51,DJ51,DK51,DL51,DM51,DN51,DO51,DP51,DQ51)))) -> 000(حاسب عملي) 00000000000 | CI51: =IF(F51="","",IF(CJ51=0,RANK($BW51,$BW$10:$BW$599)+COUNTIF(BW$10:BW51,BW51)-"1","")) ->  | CJ51: 12 | CK51: 1 | CL51: 1 | CM51: 1 | CN51: 1 | CO51: 1 | CP51: 1 | CQ51: 1 | CR51: 1 | CS51: 1 | CT51: 1 | CU51: 1 | CV51: 1 | CW51: 1 | CX51: 1 | CY51: 1 | DC51: 0 | DD51: 0 | DE51: 0 | DF51: (حاسب عملي) | DG51: 0 | DH51: 0 | DI51: 0 | DJ51: 0 | DK51: 0 | DL51: 0 | DM51: 0 | DN51: 0 | DO51: 0 | DP51: 0 | DQ51: 0
B52: راسب | D52: 43 | E52: 546 | F52: طالبة تسويق 46 | I52: مستجد | J52: أنثي | K52: مسلم | L52: 30506131401987 | M52: 2005-06-13 | N52: =IF([1]الشيت!M52="","",CONCATENATE(DATEDIF([1]الشيت!M52,[1]البداية!$M$20,"md")," - ",DATEDIF([1]الشيت!M52,[1]البداية!$M$20,"ym")," - ",DATEDIF([1]الشيت!M52,[1]البداية!$M$20,"y"))) -> 27 - 0 - 13 | O52: 555 | R52: 8 | S52: 9.5 | T52: 13.5 | U52: 31 | V52: 8.5 | W52: 9.5 | X52: 16.5 | Y52: 34.5 | Z52: 5.5 | AA52: 4 | AB52: 8.8 | AC52: 18.3 | AD52: 4.5 | AE52: 3 | AF52: 7.5 | AG52: 7 | AH52: 3.5 | AI52: 10.5 | AJ52: 9 | AK52: 5 | AL52: 14 | AM52: 20.5 | AN52: 11.5 | AO52: 32 | AP52: 7 | AQ52: 10 | AR52: 11 | AS52: 28 | AT52: 9.5 | AU52: 7 | AV52: 15 | AW52: 31.5 | AX52: 9 | AY52: 13 | AZ52: 11 | BA52: 33 | BB52: 9 | BC52: 4 | BD52: 9.5 | BE52: 22.5 | BF52: 10 | BG52: 15.5 | BH52: 13 | BI52: 38.5 | BJ52: 9 | BK52: 11 | BL52: 13 | BM52: 33 | BN52: 9.5 | BO52: 5 | BP52: 11.5 | BQ52: 26 | BR52: 9 | BS52: 12 | BT52: 15 | BU52: 36 | BV52: 111 | BW52: 364.3 | BX52: 4 | BY52: 4.5 | BZ52: 5.5 | CA52: 14 | CB52: 3.5 | CC52: 4.5 | CD52: 6 | CE52: 14 | CG52: راسب | CH52: =IF(F52="","",IF(CJ52=0,RANK($BW52,$BW$10:$BW$599)+COUNTIF(BW$10:BW52,BW52)-1,IF(CJ52>=$CK$8,"جميع المواد",CONCATENATE(DC52,DD52,DE52,DF52,DG52,DH52,DI52,DJ52,DK52,DL52,DM52,DN52,DO52,DP52,DQ52)))) -> 0000000000000 | CI52: =IF(F52="","",IF(CJ52=0,RANK($BW52,$BW$10:$BW$599)+COUNTIF(BW$10:BW52,BW52)-"1","")) ->  | CJ52: 10 | CK52: 1 | CL52: 1 | CM52: 0 | CN52: 1 | CO52: 1 | CP52: 1 | CQ52: 1 | CR52: 1 | CS52: 1 | CT52: 1 | CU52: 1 | CV52: 0 | CW52: 1 | CX52: 1 | CY52: 1 | DC52: 0 | DD52: 0 | DF52: 0 | DG52: 0 | DH52: 0 | DI52: 0 | DJ52: 0 | DK52: 0 | DL52: 0 | DM52: 0 | DO52: 0 | DP52: 0 | DQ52: 0
B53: راسب | D53: 44 | E53: 547 | F53: طالبة تسويق 47 | I53: مستجد | J53: أنثي | K53: مسلم | L53: 30602191400725 | M53: 2006-02-19 | N53: =IF([1]الشيت!M53="","",CONCATENATE(DATEDIF([1]الشيت!M53,[1]البداية!$M$20,"md")," - ",DATEDIF([1]الشيت!M53,[1]البداية!$M$20,"ym")," - ",DATEDIF([1]الشيت!M53,[1]البداية!$M$20,"y"))) -> 0 - 9 - 13 | O53: 556 | R53: 8 | S53: 14 | T53: 15.5 | U53: 37.5 | V53: 8.5 | W53: 12 | X53: 17 | Y53: 37.5 | Z53: 5.5 | AA53: 4.8 | AB53: 9.2 | AC53: 19.5 | AD53: 4.5 | AE53: 3 | AF53: 7.5 | AG53: 7 | AH53: 4 | AI53: 11 | AJ53: 8 | AK53: 5 | AL53: 13 | AM53: 19.5 | AN53: 12 | AO53: 31.5 | AP53: 7 | AQ53: 9.5 | AR53: 13 | AS53: 29.5 | AT53: 9.5 | AU53: 8 | AV53: 15 | AW53: 32.5 | AX53: 9 | AY53: 12 | AZ53: 11 | BA53: 32 | BB53: 9 | BC53: 14.5 | BD53: 7.5 | BE53: 31 | BF53: 10 | BG53: 16.5 | BH53: 14 | BI53: 40.5 | BJ53: 9 | BK53: 10 | BL53: 13 | BM53: 32 | BN53: 9 | BO53: 12.5 | BP53: 12.5 | BQ53: 34 | BR53: 9 | BS53: 13 | BT53: 13 | BU53: 35 | BV53: 137.8 | BW53: 392.5 | BX53: 4 | BY53: 5 | BZ53: 5.5 | CA53: 14.5 | CB53: 3.5 | CC53: 4.5 | CD53: 6 | CE53: 14 | CG53: راسب | CH53: =IF(F53="","",IF(CJ53=0,RANK($BW53,$BW$10:$BW$599)+COUNTIF(BW$10:BW53,BW53)-1,IF(CJ53>=$CK$8,"جميع المواد",CONCATENATE(DC53,DD53,DE53,DF53,DG53,DH53,DI53,DJ53,DK53,DL53,DM53,DN53,DO53,DP53,DQ53)))) -> 000000000000 | CI53: =IF(F53="","",IF(CJ53=0,RANK($BW53,$BW$10:$BW$599)+COUNTIF(BW$10:BW53,BW53)-"1","")) ->  | CJ53: 9 | CK53: 0 | CL53: 0 | CM53: 0 | CN53: 1 | CO53: 1 | CP53: 1 | CQ53: 1 | CR53: 1 | CS53: 1 | CT53: 1 | CU53: 1 | CV53: 1 | CW53: 1 | CX53: 1 | CY53: 1 | DF53: 0 | DG53: 0 | DH53: 0 | DI53: 0 | DJ53: 0 | DK53: 0 | DL53: 0 | DM53: 0 | DN53: 0 | DO53: 0 | DP53: 0 | DQ53: 0
B54: راسب | D54: 45 | E54: 548 | F54: طالبة تسويق 48 | I54: مستجد | J54: أنثي | K54: مسلم | L54: 30409011409008 | M54: 2004-09-01 | N54: =IF([1]الشيت!M54="","",CONCATENATE(DATEDIF([1]الشيت!M54,[1]البداية!$M$20,"md")," - ",DATEDIF([1]الشيت!M54,[1]البداية!$M$20,"ym")," - ",DATEDIF([1]الشيت!M54,[1]البداية!$M$20,"y"))) -> 18 - 11 - 12 | O54: 557 | R54: 8 | S54: 10 | T54: 14 | U54: 32 | V54: 8.5 | W54: 10 | X54: 14.5 | Y54: 33 | Z54: 5.5 | AA54: 4 | AB54: 8.8 | AC54: 18.3 | AD54: 5 | AE54: 3 | AF54: 8 | AG54: 6 | AH54: 1 | AI54: 7 | AJ54: 7 | AK54: 6 | AL54: 13 | AM54: 18 | AN54: 10 | AO54: 28 | AP54: 9 | AQ54: 8.5 | AR54: 12 | AS54: 29.5 | AT54: 9.5 | AU54: 5 | AV54: 13 | AW54: 27.5 | AX54: 9 | AY54: 13 | AZ54: 10 | BA54: 32 | BB54: 9 | BC54: 3 | BD54: 8 | BE54: 20 | BF54: 9.5 | BG54: 17 | BH54: 15.5 | BI54: 42 | BJ54: 9 | BK54: 7 | BL54: 14 | BM54: 30 | BN54: 9.5 | BO54: 4 | BP54: 13 | BQ54: 26.5 | BR54: 9 | BS54: 13 | BT54: 15 | BU54: 37 | BV54: 101.5 | BW54: 355.8 | BX54: 4 | BY54: 5 | BZ54: 5 | CA54: 14 | CB54: 3.5 | CC54: 4.5 | CD54: 6 | CE54: 14 | CG54: راسب | CH54: =IF(F54="","",IF(CJ54=0,RANK($BW54,$BW$10:$BW$599)+COUNTIF(BW$10:BW54,BW54)-1,IF(CJ54>=$CK$8,"جميع المواد",CONCATENATE(DC54,DD54,DE54,DF54,DG54,DH54,DI54,DJ54,DK54,DL54,DM54,DN54,DO54,DP54,DQ54)))) -> 0000000000000 | CI54: =IF(F54="","",IF(CJ54=0,RANK($BW54,$BW$10:$BW$599)+COUNTIF(BW$10:BW54,BW54)-"1","")) ->  | CJ54: 10 | CK54: 1 | CL54: 1 | CM54: 0 | CN54: 1 | CO54: 1 | CP54: 1 | CQ54: 1 | CR54: 1 | CS54: 1 | CT54: 1 | CU54: 1 | CV54: 0 | CW54: 1 | CX54: 1 | CY54: 1 | DC54: 0 | DD54: 0 | DF54: 0 | DG54: 0 | DH54: 0 | DI54: 0 | DJ54: 0 | DK54: 0 | DL54: 0 | DM54: 0 | DO54: 0 | DP54: 0 | DQ54: 0
B55: راسب | D55: 46 | E55: 549 | F55: طالبة تسويق 49 | I55: مستجد | J55: أنثي | K55: مسلم | L55: 30502131401108 | M55: 2005-02-13 | N55: =IF([1]الشيت!M55="","",CONCATENATE(DATEDIF([1]الشيت!M55,[1]البداية!$M$20,"md")," - ",DATEDIF([1]الشيت!M55,[1]البداية!$M$20,"ym")," - ",DATEDIF([1]الشيت!M55,[1]البداية!$M$20,"y"))) -> 18 - 3 - 13 | O55: 558 | R55: 8 | S55: 14 | T55: 15 | U55: 37 | V55: 8.5 | W55: 11.5 | X55: 15.5 | Y55: 35.5 | Z55: 5.5 | AA55: 4.4 | AB55: 8.8 | AC55: 18.7 | AD55: 4.5 | AE55: 3 | AF55: 7.5 | AG55: 8 | AH55: 4 | AI55: 12 | AJ55: 8 | AK55: 5 | AL55: 13 | AM55: 20.5 | AN55: 12 | AO55: 32.5 | AP55: 7 | AQ55: 11.5 | AR55: 13 | AS55: 31.5 | AT55: 9.5 | AU55: 6 | AV55: 14 | AW55: 29.5 | AX55: 9 | AY55: 14 | AZ55: 13 | BA55: 36 | BB55: 9 | BC55: 8 | BD55: 10 | BE55: 27 | BF55: 10 | BG55: 19 | BH55: 18.5 | BI55: 47.5 | BJ55: 9 | BK55: 12 | BL55: 13 | BM55: 34 | BN55: 9 | BO55: 9 | BP55: 13.5 | BQ55: 31.5 | BR55: 9 | BS55: 15 | BT55: 16 | BU55: 40 | BV55: 136.4 | BW55: 400.7 | BX55: 4 | BY55: 4.5 | BZ55: 6 | CA55: 14.5 | CB55: 3.5 | CC55: 5.5 | CD55: 6 | CE55: 15 | CG55: راسب | CH55: =IF(F55="","",IF(CJ55=0,RANK($BW55,$BW$10:$BW$599)+COUNTIF(BW$10:BW55,BW55)-1,IF(CJ55>=$CK$8,"جميع المواد",CONCATENATE(DC55,DD55,DE55,DF55,DG55,DH55,DI55,DJ55,DK55,DL55,DM55,DN55,DO55,DP55,DQ55)))) -> 00000000000 | CI55: =IF(F55="","",IF(CJ55=0,RANK($BW55,$BW$10:$BW$599)+COUNTIF(BW$10:BW55,BW55)-"1","")) ->  | CJ55: 8 | CK55: 0 | CL55: 1 | CM55: 0 | CN55: 1 | CO55: 1 | CP55: 1 | CQ55: 1 | CR55: 1 | CS55: 0 | CT55: 1 | CU55: 1 | CV55: 0 | CW55: 1 | CX55: 1 | CY55: 1 | DD55: 0 | DF55: 0 | DG55: 0 | DH55: 0 | DI55: 0 | DJ55: 0 | DL55: 0 | DM55: 0 | DO55: 0 | DP55: 0 | DQ55: 0
B56: راسب | D56: 47 | E56: 550 | F56: طالبة تسويق 50 | I56: مستجد | J56: أنثي | K56: مسلم | L56: 30601021400368 | M56: 2006-01-02 | N56: =IF([1]الشيت!M56="","",CONCATENATE(DATEDIF([1]الشيت!M56,[1]البداية!$M$20,"md")," - ",DATEDIF([1]الشيت!M56,[1]البداية!$M$20,"ym")," - ",DATEDIF([1]الشيت!M56,[1]البداية!$M$20,"y"))) -> 12 - 7 - 12 | O56: 559 | R56: 8 | S56: 13 | T56: 15.5 | U56: 36.5 | V56: 8.5 | W56: 12 | X56: 16 | Y56: 36.5 | Z56: 5.5 | AA56: 5.2 | AB56: 8.8 | AC56: 19.5 | AD56: 4.5 | AE56: 3 | AF56: 7.5 | AG56: 8 | AH56: 4 | AI56: 12 | AJ56: 7 | AK56: 5 | AL56: 12 | AM56: 19.5 | AN56: 12 | AO56: 31.5 | AP56: 7 | AQ56: 12 | AR56: 13 | AS56: 32 | AT56: 9 | AU56: 9 | AV56: 13 | AW56: 31 | AX56: 9 | AY56: 13 | AZ56: 13 | BA56: 35 | BB56: 9 | BC56: 9 | BD56: 9 | BE56: 27 | BF56: 9.5 | BG56: 19.5 | BH56: 19.5 | BI56: 48.5 | BJ56: 9 | BK56: 11.5 | BL56: 13 | BM56: 33.5 | BN56: 9 | BO56: 14.5 | BP56: 12.5 | BQ56: 36 | BR56: 9 | BS56: 14 | BT56: 15 | BU56: 38 | BV56: 144.7 | BW56: 405 | BX56: 4 | BY56: 4 | BZ56: 6 | CA56: 14 | CB56: 3.5 | CC56: 4.5 | CD56: 6 | CE56: 14 | CG56: راسب | CH56: =IF(F56="","",IF(CJ56=0,RANK($BW56,$BW$10:$BW$599)+COUNTIF(BW$10:BW56,BW56)-1,IF(CJ56>=$CK$8,"جميع المواد",CONCATENATE(DC56,DD56,DE56,DF56,DG56,DH56,DI56,DJ56,DK56,DL56,DM56,DN56,DO56,DP56,DQ56)))) -> 00000000000 | CI56: =IF(F56="","",IF(CJ56=0,RANK($BW56,$BW$10:$BW$599)+COUNTIF(BW$10:BW56,BW56)-"1","")) ->  | CJ56: 8 | CK56: 0 | CL56: 1 | CM56: 0 | CN56: 1 | CO56: 1 | CP56: 1 | CQ56: 1 | CR56: 1 | CS56: 0 | CT56: 1 | CU56: 1 | CV56: 0 | CW56: 1 | CX56: 1 | CY56: 1 | DD56: 0 | DF56: 0 | DG56: 0 | DH56: 0 | DI56: 0 | DJ56: 0 | DL56: 0 | DM56: 0 | DO56: 0 | DP56: 0 | DQ56: 0
B57: راسب | D57: 48 | E57: 551 | F57: طالبة تسويق 51 | I57: مستجد | J57: أنثي | K57: مسلم | L57: 30405251400622 | M57: 2004-05-25 | N57: =IF([1]الشيت!M57="","",CONCATENATE(DATEDIF([1]الشيت!M57,[1]البداية!$M$20,"md")," - ",DATEDIF([1]الشيت!M57,[1]البداية!$M$20,"ym")," - ",DATEDIF([1]الشيت!M57,[1]البداية!$M$20,"y"))) -> 0 - 1 - 14 | O57: 560 | R57: 8 | S57: 14 | T57: 15.5 | U57: 37.5 | V57: 8.5 | W57: 12.5 | X57: 15 | Y57: 36 | Z57: 5.5 | AA57: 4.8 | AB57: 8.8 | AC57: 19.1 | AD57: 4.5 | AE57: 3 | AF57: 7.5 | AG57: 7 | AH57: 2.5 | AI57: 9.5 | AJ57: 8 | AK57: 5.5 | AL57: 13.5 | AM57: 19.5 | AN57: 11 | AO57: 30.5 | AP57: 7 | AQ57: 11.5 | AR57: 12.5 | AS57: 31 | AT57: 9 | AU57: 7 | AV57: 14 | AW57: 30 | AX57: 9 | AY57: 14 | AZ57: 13 | BA57: 36 | BB57: 9 | BC57: 9 | BD57: 9 | BE57: 27 | BF57: 9.5 | BG57: 17 | BH57: 19.5 | BI57: 46 | BJ57: 9 | BK57: 11 | BL57: 10 | BM57: 30 | BN57: 9 | BO57: 10 | BP57: 13.5 | BQ57: 32.5 | BR57: 9 | BS57: 14 | BT57: 16 | BU57: 39 | BV57: 134.3 | BW57: 394.6 | BX57: 4 | BY57: 4.5 | BZ57: 6 | CA57: 14.5 | CB57: 3.5 | CC57: 5.5 | CD57: 6 | CE57: 15 | CG57: راسب | CH57: =IF(F57="","",IF(CJ57=0,RANK($BW57,$BW$10:$BW$599)+COUNTIF(BW$10:BW57,BW57)-1,IF(CJ57>=$CK$8,"جميع المواد",CONCATENATE(DC57,DD57,DE57,DF57,DG57,DH57,DI57,DJ57,DK57,DL57,DM57,DN57,DO57,DP57,DQ57)))) -> 00000000000 | CI57: =IF(F57="","",IF(CJ57=0,RANK($BW57,$BW$10:$BW$599)+COUNTIF(BW$10:BW57,BW57)-"1","")) ->  | CJ57: 8 | CK57: 0 | CL57: 1 | CM57: 0 | CN57: 1 | CO57: 1 | CP57: 1 | CQ57: 1 | CR57: 1 | CS57: 0 | CT57: 1 | CU57: 1 | CV57: 0 | CW57: 1 | CX57: 1 | CY57: 1 | DD57: 0 | DF57: 0 | DG57: 0 | DH57: 0 | DI57: 0 | DJ57: 0 | DL57: 0 | DM57: 0 | DO57: 0 | DP57: 0 | DQ57: 0
B58: راسب | D58: 49 | E58: 552 | F58: طالبة تسويق 52 | I58: مستجد | J58: أنثي | K58: مسلم | L58: 30502151400981 | M58: 2005-02-15 | N58: =IF([1]الشيت!M58="","",CONCATENATE(DATEDIF([1]الشيت!M58,[1]البداية!$M$20,"md")," - ",DATEDIF([1]الشيت!M58,[1]البداية!$M$20,"ym")," - ",DATEDIF([1]الشيت!M58,[1]البداية!$M$20,"y"))) -> 18 - 7 - 13 | O58: 561 | R58: 8 | S58: 14.5 | T58: 15.5 | U58: 38 | V58: 8.5 | W58: 12.5 | X58: 15 | Y58: 36 | Z58: 5.5 | AA58: 4.8 | AB58: 8.8 | AC58: 19.1 | AD58: 4.5 | AE58: 3 | AF58: 7.5 | AG58: 8 | AH58: 2.5 | AI58: 10.5 | AJ58: 7 | AK58: 5.5 | AL58: 12.5 | AM58: 19.5 | AN58: 11 | AO58: 30.5 | AP58: 7 | AQ58: 8.5 | AR58: 13.5 | AS58: 29 | AT58: 9.5 | AU58: 6.5 | AV58: 14 | AW58: 30 | AX58: 9 | AY58: 14 | AZ58: 13 | BA58: 36 | BB58: 9 | BC58: 13.5 | BD58: 7.5 | BE58: 30 | BF58: 9.5 | BG58: 18.5 | BH58: 17.5 | BI58: 45.5 | BJ58: 9 | BK58: 12 | BL58: 13 | BM58: 34 | BN58: 9 | BO58: 11.5 | BP58: 13.5 | BQ58: 34 | BR58: 9 | BS58: 14 | BT58: 16 | BU58: 39 | BV58: 140.8 | BW58: 401.1 | BX58: 4 | BY58: 5 | BZ58: 5 | CA58: 14 | CB58: 3.5 | CC58: 5.5 | CD58: 6 | CE58: 15 | CG58: راسب | CH58: =IF(F58="","",IF(CJ58=0,RANK($BW58,$BW$10:$BW$599)+COUNTIF(BW$10:BW58,BW58)-1,IF(CJ58>=$CK$8,"جميع المواد",CONCATENATE(DC58,DD58,DE58,DF58,DG58,DH58,DI58,DJ58,DK58,DL58,DM58,DN58,DO58,DP58,DQ58)))) -> 00000000000 | CI58: =IF(F58="","",IF(CJ58=0,RANK($BW58,$BW$10:$BW$599)+COUNTIF(BW$10:BW58,BW58)-"1","")) ->  | CJ58: 8 | CK58: 0 | CL58: 1 | CM58: 0 | CN58: 1 | CO58: 1 | CP58: 1 | CQ58: 1 | CR58: 1 | CS58: 0 | CT58: 1 | CU58: 1 | CV58: 0 | CW58: 1 | CX58: 1 | CY58: 1 | DD58: 0 | DF58: 0 | DG58: 0 | DH58: 0 | DI58: 0 | DJ58: 0 | DL58: 0 | DM58: 0 | DO58: 0 | DP58: 0 | DQ58: 0
B59: راسب | D59: 50 | E59: 553 | F59: طالبة تسويق 53 | I59: مستجد | J59: أنثي | K59: مسلم | L59: 30403071401601 | M59: 2004-03-07 | N59: =IF([1]الشيت!M59="","",CONCATENATE(DATEDIF([1]الشيت!M59,[1]البداية!$M$20,"md")," - ",DATEDIF([1]الشيت!M59,[1]البداية!$M$20,"ym")," - ",DATEDIF([1]الشيت!M59,[1]البداية!$M$20,"y"))) -> 29 - 8 - 12 | O59: 562 | R59: 8 | S59: 7.5 | T59: 10 | U59: 25.5 | V59: 9.5 | W59: 4 | X59: 15 | Y59: 28.5 | Z59: 5.5 | AA59: 4 | AB59: 6.8 | AC59: 16.3 | AD59: 4.5 | AE59: 3 | AF59: 7.5 | AG59: 6 | AH59: 3.5 | AI59: 9.5 | AJ59: 7 | AK59: 5 | AL59: 12 | AM59: 17.5 | AN59: 11.5 | AO59: 29 | AP59: 7 | AQ59: 10 | AR59: 13 | AS59: 30 | AT59: 9.5 | AU59: 5.5 | AV59: 12 | AW59: 27 | AX59: 9 | AY59: 10 | AZ59: 7 | BA59: 26 | BB59: 9 | BC59: 5 | BD59: 8.5 | BE59: 22.5 | BF59: 9.5 | BG59: صفر | BH59: 16.5 | BI59: 26 | BJ59: 9 | BK59: 7 | BL59: 13 | BM59: 29 | BN59: 9.5 | BO59: صفر | BP59: 15.5 | BQ59: 25 | BR59: 9 | BS59: 11.5 | BT59: 11 | BU59: 31.5 | BV59: 74 | BW59: 316.3 | BX59: 4 | BY59: 5.5 | BZ59: 4.5 | CA59: 14 | CB59: 3.5 | CC59: 3.5 | CD59: 6 | CE59: 13 | CG59: راسب | CH59: =IF(F59="","",IF(CJ59=0,RANK($BW59,$BW$10:$BW$599)+COUNTIF(BW$10:BW59,BW59)-1,IF(CJ59>=$CK$8,"جميع المواد",CONCATENATE(DC59,DD59,DE59,DF59,DG59,DH59,DI59,DJ59,DK59,DL59,DM59,DN59,DO59,DP59,DQ59)))) -> 000000000000000 | CI59: =IF(F59="","",IF(CJ59=0,RANK($BW59,$BW$10:$BW$599)+COUNTIF(BW$10:BW59,BW59)-"1","")) ->  | CJ59: 12 | CK59: 1 | CL59: 1 | CM59: 1 | CN59: 1 | CO59: 1 | CP59: 1 | CQ59: 1 | CR59: 1 | CS59: 1 | CT59: 1 | CU59: 1 | CV59: 1 | CW59: 1 | CX59: 1 | CY59: 1 | DC59: 0 | DD59: 0 | DE59: 0 | DF59: 0 | DG59: 0 | DH59: 0 | DI59: 0 | DJ59: 0 | DK59: 0 | DL59: 0 | DM59: 0 | DN59: 0 | DO59: 0 | DP59: 0 | DQ59: 0
B60: راسب | D60: 51 | E60: 554 | F60: طالبة تسويق 54 | I60: مستجد | J60: أنثي | K60: مسلم | L60: 30412041400227 | M60: 2004-12-04 | N60: =IF([1]الشيت!M60="","",CONCATENATE(DATEDIF([1]الشيت!M60,[1]البداية!$M$20,"md")," - ",DATEDIF([1]الشيت!M60,[1]البداية!$M$20,"ym")," - ",DATEDIF([1]الشيت!M60,[1]البداية!$M$20,"y"))) -> 6 - 4 - 14 | O60: 563 | R60: 8 | S60: 13.5 | T60: 14.5 | U60: 36 | V60: 8.5 | W60: 12 | X60: 17 | Y60: 37.5 | Z60: 5.5 | AA60: 4.8 | AB60: 8.8 | AC60: 19.1 | AD60: 4.5 | AE60: 3 | AF60: 7.5 | AG60: 7 | AH60: 3 | AI60: 10 | AJ60: 7 | AK60: 4.5 | AL60: 11.5 | AM60: 18.5 | AN60: 10.5 | AO60: 29 | AP60: 7 | AQ60: 11.5 | AR60: 10 | AS60: 28.5 | AT60: 9.5 | AU60: 8 | AV60: 14 | AW60: 31.5 | AX60: 9 | AY60: 11 | AZ60: 12 | BA60: 32 | BB60: 9 | BC60: 10.5 | BD60: 13.5 | BE60: 33 | BF60: 9.5 | BG60: 19.5 | BH60: 18.5 | BI60: 47.5 | BJ60: 9 | BK60: 10 | BL60: 11 | BM60: 30 | BN60: 9 | BO60: 11 | BP60: 12.5 | BQ60: 32.5 | BR60: 9 | BS60: 16 | BT60: 17 | BU60: 42 | BV60: 137.8 | BW60: 398.6 | BX60: 4 | BY60: 5 | BZ60: 6.5 | CA60: 15.5 | CB60: 3.5 | CC60: 6 | CD60: 6 | CE60: 15.5 | CG60: راسب | CH60: =IF(F60="","",IF(CJ60=0,RANK($BW60,$BW$10:$BW$599)+COUNTIF(BW$10:BW60,BW60)-1,IF(CJ60>=$CK$8,"جميع المواد",CONCATENATE(DC60,DD60,DE60,DF60,DG60,DH60,DI60,DJ60,DK60,DL60,DM60,DN60,DO60,DP60,DQ60)))) -> 0000000000 | CI60: =IF(F60="","",IF(CJ60=0,RANK($BW60,$BW$10:$BW$599)+COUNTIF(BW$10:BW60,BW60)-"1","")) ->  | CJ60: 7 | CK60: 0 | CL60: 0 | CM60: 0 | CN60: 1 | CO60: 1 | CP60: 1 | CQ60: 1 | CR60: 1 | CS60: 0 | CT60: 1 | CU60: 1 | CV60: 0 | CW60: 1 | CX60: 1 | CY60: 1 | DF60: 0 | DG60: 0 | DH60: 0 | DI60: 0 | DJ60: 0 | DL60: 0 | DM60: 0 | DO60: 0 | DP60: 0 | DQ60: 0
B61: راسب | D61: 52 | E61: 555 | F61: طالبة تسويق 55 | I61: مستجد | J61: أنثي | K61: مسلم | L61: 30508281400566 | M61: 2005-08-28 | N61: =IF([1]الشيت!M61="","",CONCATENATE(DATEDIF([1]الشيت!M61,[1]البداية!$M$20,"md")," - ",DATEDIF([1]الشيت!M61,[1]البداية!$M$20,"ym")," - ",DATEDIF([1]الشيت!M61,[1]البداية!$M$20,"y"))) -> 16 - 7 - 13 | O61: 564 | R61: 8 | S61: 14.5 | T61: 14.5 | U61: 37 | V61: 8.5 | W61: 11.5 | X61: 17.5 | Y61: 37.5 | Z61: 5.5 | AA61: 4.4 | AB61: 9.2 | AC61: 19.1 | AD61: 4.5 | AE61: 3 | AF61: 7.5 | AG61: 7 | AH61: 3 | AI61: 10 | AJ61: 9 | AK61: 5.5 | AL61: 14.5 | AM61: 20.5 | AN61: 11.5 | AO61: 32 | AP61: 7 | AQ61: 11 | AR61: 12 | AS61: 30 | AT61: 9.5 | AU61: 8 | AV61: 15 | AW61: 32.5 | AX61: 9 | AY61: 11 | AZ61: 11 | BA61: 31 | BB61: 9 | BC61: 6 | BD61: 15 | BE61: 30 | BF61: 9.5 | BG61: 19 | BH61: 14 | BI61: 42.5 | BJ61: 9 | BK61: 10 | BL61: 11 | BM61: 30 | BN61: 9 | BO61: 8.5 | BP61: 14 | BQ61: 31.5 | BR61: 9 | BS61: 14 | BT61: 16 | BU61: 39 | BV61: 127.9 | BW61: 392.1 | BX61: 4 | BY61: 5.5 | BZ61: 6.5 | CA61: 16 | CB61: 3.5 | CC61: 5.5 | CD61: 6 | CE61: 15 | CG61: راسب | CH61: =IF(F61="","",IF(CJ61=0,RANK($BW61,$BW$10:$BW$599)+COUNTIF(BW$10:BW61,BW61)-1,IF(CJ61>=$CK$8,"جميع المواد",CONCATENATE(DC61,DD61,DE61,DF61,DG61,DH61,DI61,DJ61,DK61,DL61,DM61,DN61,DO61,DP61,DQ61)))) -> 00000000000 | CI61: =IF(F61="","",IF(CJ61=0,RANK($BW61,$BW$10:$BW$599)+COUNTIF(BW$10:BW61,BW61)-"1","")) ->  | CJ61: 8 | CK61: 0 | CL61: 0 | CM61: 0 | CN61: 1 | CO61: 1 | CP61: 1 | CQ61: 1 | CR61: 1 | CS61: 1 | CT61: 1 | CU61: 1 | CV61: 0 | CW61: 1 | CX61: 1 | CY61: 1 | DF61: 0 | DG61: 0 | DH61: 0 | DI61: 0 | DJ61: 0 | DK61: 0 | DL61: 0 | DM61: 0 | DO61: 0 | DP61: 0 | DQ61: 0
B62: راسب | D62: 53 | E62: 556 | F62: طالبة تسويق 56 | I62: مستجد | J62: أنثي | K62: مسلم | L62: 30507041401925 | M62: 2005-07-04 | N62: =IF([1]الشيت!M62="","",CONCATENATE(DATEDIF([1]الشيت!M62,[1]البداية!$M$20,"md")," - ",DATEDIF([1]الشيت!M62,[1]البداية!$M$20,"ym")," - ",DATEDIF([1]الشيت!M62,[1]البداية!$M$20,"y"))) -> 24 - 6 - 14 | O62: 565 | R62: 8 | S62: 12.5 | T62: 14.5 | U62: 35 | V62: 8.5 | W62: 12 | X62: 16.5 | Y62: 37 | Z62: 5.5 | AA62: 4.4 | AB62: 9.2 | AC62: 19.1 | AD62: 4.5 | AE62: 3 | AF62: 7.5 | AG62: 7 | AH62: 3 | AI62: 10 | AJ62: 8 | AK62: 5.5 | AL62: 13.5 | AM62: 19.5 | AN62: 11.5 | AO62: 31 | AP62: 7 | AQ62: 11 | AR62: 12 | AS62: 30 | AT62: 9.5 | AU62: 7.5 | AV62: 16 | AW62: 33 | AX62: 9 | AY62: 13 | AZ62: 10 | BA62: 32 | BB62: 9 | BC62: 12 | BD62: 14.5 | BE62: 35.5 | BF62: 9.5 | BG62: 19.5 | BH62: 19.5 | BI62: 48.5 | BJ62: 9 | BK62: 10 | BL62: 11 | BM62: 30 | BN62: 9 | BO62: 15.5 | BP62: 16.5 | BQ62: 41 | BR62: 9 | BS62: 15 | BT62: 14 | BU62: 38 | BV62: 142.4 | BW62: 410.1 | BX62: 4 | BY62: 4.5 | BZ62: 6.5 | CA62: 15 | CB62: 3.5 | CC62: 5.5 | CD62: 6 | CE62: 15 | CG62: راسب | CH62: =IF(F62="","",IF(CJ62=0,RANK($BW62,$BW$10:$BW$599)+COUNTIF(BW$10:BW62,BW62)-1,IF(CJ62>=$CK$8,"جميع المواد",CONCATENATE(DC62,DD62,DE62,DF62,DG62,DH62,DI62,DJ62,DK62,DL62,DM62,DN62,DO62,DP62,DQ62)))) -> 00000000 | CI62: =IF(F62="","",IF(CJ62=0,RANK($BW62,$BW$10:$BW$599)+COUNTIF(BW$10:BW62,BW62)-"1","")) ->  | CJ62: 5 | CK62: 0 | CL62: 0 | CM62: 0 | CN62: 1 | CO62: 1 | CP62: 1 | CQ62: 1 | CR62: 0 | CS62: 0 | CT62: 1 | CU62: 0 | CV62: 0 | CW62: 1 | CX62: 1 | CY62: 1 | DF62: 0 | DG62: 0 | DH62: 0 | DI62: 0 | DL62: 0 | DO62: 0 | DP62: 0 | DQ62: 0
B63: راسب | D63: 54 | E63: 557 | F63: طالبة تسويق 57 | I63: مستجد | J63: أنثي | K63: مسلم | L63: 30602271400769 | M63: 2006-02-27 | N63: =IF([1]الشيت!M63="","",CONCATENATE(DATEDIF([1]الشيت!M63,[1]البداية!$M$20,"md")," - ",DATEDIF([1]الشيت!M63,[1]البداية!$M$20,"ym")," - ",DATEDIF([1]الشيت!M63,[1]البداية!$M$20,"y"))) -> 27 - 9 - 13 | O63: 510 | R63: 8 | S63: 10 | T63: 16.5 | U63: 34.5 | V63: 8.5 | W63: 13.5 | X63: 15.5 | Y63: 37.5 | Z63: 5.5 | AA63: 4 | AB63: 8.8 | AC63: 18.3 | AD63: 4.5 | AE63: 3 | AF63: 7.5 | AG63: 8 | AH63: 3.5 | AI63: 11.5 | AJ63: 7 | AK63: 5 | AL63: 12 | AM63: 19.5 | AN63: 11.5 | AO63: 31 | AP63: 7 | AQ63: 13 | AR63: 13 | AS63: 33 | AT63: 9 | AU63: 10.5 | AV63: 16 | AW63: 35.5 | AX63: 9 | AY63: 10 | AZ63: 13 | BA63: 32 | BB63: 9 | BC63: 10 | BD63: 12.5 | BE63: 31.5 | BF63: 9.5 | BG63: 18 | BH63: 18.5 | BI63: 46 | BJ63: 9 | BK63: 12 | BL63: 14 | BM63: 35 | BN63: 9 | BO63: 12.5 | BP63: 13.5 | BQ63: 35 | BR63: 9 | BS63: 15 | BT63: 12 | BU63: 36 | BV63: 140 | BW63: 405.3 | BX63: 3 | BY63: 5 | BZ63: 7.5 | CA63: 15.5 | CB63: 3.5 | CC63: 6 | CD63: 6 | CE63: 15.5 | CG63: راسب | CH63: =IF(F63="","",IF(CJ63=0,RANK($BW63,$BW$10:$BW$599)+COUNTIF(BW$10:BW63,BW63)-1,IF(CJ63>=$CK$8,"جميع المواد",CONCATENATE(DC63,DD63,DE63,DF63,DG63,DH63,DI63,DJ63,DK63,DL63,DM63,DN63,DO63,DP63,DQ63)))) -> 000000000 | CI63: =IF(F63="","",IF(CJ63=0,RANK($BW63,$BW$10:$BW$599)+COUNTIF(BW$10:BW63,BW63)-"1","")) ->  | CJ63: 7 | CK63: 0 | CL63: 0 | CM63: 0 | CN63: 1 | CO63: 0 | CP63: 1 | CQ63: 1 | CR63: 1 | CS63: 0 | CT63: 1 | CU63: 1 | CV63: 1 | CW63: 1 | CX63: 0 | CY63: 1 | DF63: 0 | DH63: 0 | DI63: 0 | DJ63: 0 | DL63: 0 | DM63: 0 | DN63: 0 | DO63: 0 | DQ63: 0
B64: راسب | D64: 55 | E64: 558 | F64: طالبة تسويق 58 | I64: مستجد | J64: أنثي | K64: مسلم | L64: 30507161400264 | M64: 2005-07-16 | N64: =IF([1]الشيت!M64="","",CONCATENATE(DATEDIF([1]الشيت!M64,[1]البداية!$M$20,"md")," - ",DATEDIF([1]الشيت!M64,[1]البداية!$M$20,"ym")," - ",DATEDIF([1]الشيت!M64,[1]البداية!$M$20,"y"))) -> 3 - 1 - 13 | O64: 511 | R64: 8 | S64: 8.5 | T64: 13.5 | U64: 30 | V64: 9.5 | W64: 6 | X64: 14.5 | Y64: 30 | Z64: 5.5 | AA64: 2.8 | AB64: 4 | AC64: 12.3 | AD64: 4.5 | AE64: 3 | AF64: 7.5 | AG64: 8 | AH64: 4.5 | AI64: 12.5 | AJ64: 8 | AK64: 4 | AL64: 12 | AM64: 20.5 | AN64: 11.5 | AO64: 32 | AP64: 7 | AQ64: 10 | AR64: 13 | AS64: 30 | AT64: 9 | AU64: 12 | AV64: 12 | AW64: 33 | AX64: 9 | AY64: 5 | AZ64: 11 | BA64: 25 | BB64: 9 | BC64: صفر | BD64: 11 | BE64: 20 | BF64: 9.5 | BG64: 9.5 | BH64: 17 | BI64: 36 | BJ64: 9 | BK64: 4 | BL64: 14 | BM64: 27 | BN64: 9 | BO64: 8.5 | BP64: 13 | BQ64: 30.5 | BR64: 9 | BS64: 10.5 | BT64: 10.5 | BU64: 30 | BV64: 89.3 | BW64: 335.8 | BX64: 3 | BY64: 4.5 | BZ64: 6.5 | CA64: 14 | CB64: 3.5 | CC64: 3 | CD64: 5 | CE64: 11.5 | CG64: راسب | CH64: =IF(F64="","",IF(CJ64=0,RANK($BW64,$BW$10:$BW$599)+COUNTIF(BW$10:BW64,BW64)-1,IF(CJ64>=$CK$8,"جميع المواد",CONCATENATE(DC64,DD64,DE64,DF64,DG64,DH64,DI64,DJ64,DK64,DL64,DM64,DN64,DO64,DP64,DQ64)))) -> 000000000000000 | CI64: =IF(F64="","",IF(CJ64=0,RANK($BW64,$BW$10:$BW$599)+COUNTIF(BW$10:BW64,BW64)-"1","")) ->  | CJ64: 12 | CK64: 1 | CL64: 1 | CM64: 1 | CN64: 1 | CO64: 1 | CP64: 1 | CQ64: 1 | CR64: 1 | CS64: 1 | CT64: 1 | CU64: 1 | CV64: 1 | CW64: 1 | CX64: 1 | CY64: 1 | DC64: 0 | DD64: 0 | DE64: 0 | DF64: 0 | DG64: 0 | DH64: 0 | DI64: 0 | DJ64: 0 | DK64: 0 | DL64: 0 | DM64: 0 | DN64: 0 | DO64: 0 | DP64: 0 | DQ64: 0
B65: راسب | D65: 56 | E65: 559 | F65: طالبة تسويق 59 | I65: مستجد | J65: أنثي | K65: مسلم | L65: 30503231401764 | M65: 2005-03-23 | N65: =IF([1]الشيت!M65="","",CONCATENATE(DATEDIF([1]الشيت!M65,[1]البداية!$M$20,"md")," - ",DATEDIF([1]الشيت!M65,[1]البداية!$M$20,"ym")," - ",DATEDIF([1]الشيت!M65,[1]البداية!$M$20,"y"))) -> 27 - 2 - 13 | O65: 512 | R65: 8 | S65: 11 | T65: 15 | U65: 34 | V65: 8.5 | W65: 9 | X65: 15.5 | Y65: 33 | Z65: 5.5 | AA65: 3.2 | AB65: 5.2 | AC65: 13.9 | AD65: 4.5 | AE65: 3 | AF65: 7.5 | AG65: 7 | AH65: 4.5 | AI65: 11.5 | AJ65: 8 | AK65: 5 | AL65: 13 | AM65: 19.5 | AN65: 12.5 | AO65: 32 | AP65: 7 | AQ65: 10 | AR65: 13 | AS65: 30 | AT65: 9 | AU65: 8.5 | AV65: 13 | AW65: 30.5 | AX65: 9 | AY65: 5 | AZ65: 11 | BA65: 25 | BB65: 9 | BC65: 4 | BD65: 11 | BE65: 24 | BF65: 9.5 | BG65: 9.5 | BH65: 15.5 | BI65: 34.5 | BJ65: 9 | BK65: 5 | BL65: 13 | BM65: 27 | BN65: 9 | BO65: 9.5 | BP65: 14 | BQ65: 32.5 | BR65: 9 | BS65: 10.5 | BT65: 12.5 | BU65: 32 | BV65: 96.7 | BW65: 348.4 | BX65: 3 | BY65: 4.5 | BZ65: 5.5 | CA65: 13 | CB65: 3.5 | CC65: 3 | CD65: 5 | CE65: 11.5 | CG65: راسب | CH65: =IF(F65="","",IF(CJ65=0,RANK($BW65,$BW$10:$BW$599)+COUNTIF(BW$10:BW65,BW65)-1,IF(CJ65>=$CK$8,"جميع المواد",CONCATENATE(DC65,DD65,DE65,DF65,DG65,DH65,DI65,DJ65,DK65,DL65,DM65,DN65,DO65,DP65,DQ65)))) -> 00000000000000 | CI65: =IF(F65="","",IF(CJ65=0,RANK($BW65,$BW$10:$BW$599)+COUNTIF(BW$10:BW65,BW65)-"1","")) ->  | CJ65: 11 | CK65: 0 | CL65: 1 | CM65: 1 | CN65: 1 | CO65: 1 | CP65: 1 | CQ65: 1 | CR65: 1 | CS65: 1 | CT65: 1 | CU65: 1 | CV65: 1 | CW65: 1 | CX65: 1 | CY65: 1 | DD65: 0 | DE65: 0 | DF65: 0 | DG65: 0 | DH65: 0 | DI65: 0 | DJ65: 0 | DK65: 0 | DL65: 0 | DM65: 0 | DN65: 0 | DO65: 0 | DP65: 0 | DQ65: 0
B66: راسب | D66: 57 | E66: 560 | F66: طالبة تسويق 60 | I66: مستجد | J66: أنثي | K66: مسلم | L66: 30601181400186 | M66: 2006-01-18 | N66: =IF([1]الشيت!M66="","",CONCATENATE(DATEDIF([1]الشيت!M66,[1]البداية!$M$20,"md")," - ",DATEDIF([1]الشيت!M66,[1]البداية!$M$20,"ym")," - ",DATEDIF([1]الشيت!M66,[1]البداية!$M$20,"y"))) -> 4 - 7 - 12 | O66: 513 | R66: 8 | S66: 12 | T66: 15 | U66: 35 | V66: 8.5 | W66: 10.5 | X66: 15.5 | Y66: 34.5 | Z66: 5.5 | AA66: 4.4 | AB66: 4.8 | AC66: 14.7 | AD66: 4.5 | AE66: 3 | AF66: 7.5 | AG66: 9 | AH66: 5 | AI66: 14 | AJ66: 8 | AK66: 5 | AL66: 13 | AM66: 21.5 | AN66: 13 | AO66: 34.5 | AP66: 7 | AQ66: 10 | AR66: 13 | AS66: 30 | AT66: 9 | AU66: 7.5 | AV66: 13 | AW66: 29.5 | AX66: 9 | AY66: 11 | AZ66: 9 | BA66: 29 | BB66: 9 | BC66: 11 | BD66: 12 | BE66: 32 | BF66: 9.5 | BG66: 13.5 | BH66: 18 | BI66: 41 | BJ66: 9 | BK66: 3 | BL66: 13 | BM66: 25 | BN66: 9 | BO66: 11.5 | BP66: 14 | BQ66: 34.5 | BR66: 9 | BS66: 13 | BT66: 11 | BU66: 33 | BV66: 121.4 | BW66: 372.7 | BX66: 3 | BY66: 5 | BZ66: 6.5 | CA66: 14.5 | CB66: 3.5 | CC66: 5.5 | CD66: 6 | CE66: 15 | CG66: راسب | CH66: =IF(F66="","",IF(CJ66=0,RANK($BW66,$BW$10:$BW$599)+COUNTIF(BW$10:BW66,BW66)-1,IF(CJ66>=$CK$8,"جميع المواد",CONCATENATE(DC66,DD66,DE66,DF66,DG66,DH66,DI66,DJ66,DK66,DL66,DM66,DN66,DO66,DP66,DQ66)))) -> 00(حاسب عملي) 00000000000 | CI66: =IF(F66="","",IF(CJ66=0,RANK($BW66,$BW$10:$BW$599)+COUNTIF(BW$10:BW66,BW66)-"1","")) ->  | CJ66: 11 | CK66: 0 | CL66: 1 | CM66: 1 | CN66: 1 | CO66: 1 | CP66: 1 | CQ66: 1 | CR66: 1 | CS66: 1 | CT66: 1 | CU66: 1 | CV66: 1 | CW66: 1 | CX66: 1 | CY66: 1 | DD66: 0 | DE66: 0 | DF66: (حاسب عملي) | DG66: 0 | DH66: 0 | DI66: 0 | DJ66: 0 | DK66: 0 | DL66: 0 | DM66: 0 | DN66: 0 | DO66: 0 | DP66: 0 | DQ66: 0
B67: راسب | D67: 58 | E67: 561 | F67: طالبة تسويق 61 | I67: مستجد | J67: أنثي | K67: مسلم | L67: 30504061400926 | M67: 2005-04-06 | N67: =IF([1]الشيت!M67="","",CONCATENATE(DATEDIF([1]الشيت!M67,[1]البداية!$M$20,"md")," - ",DATEDIF([1]الشيت!M67,[1]البداية!$M$20,"ym")," - ",DATEDIF([1]الشيت!M67,[1]البداية!$M$20,"y"))) -> 15 - 2 - 13 | O67: 514 | R67: 8 | S67: 12 | T67: 14 | U67: 34 | V67: 8.5 | W67: 11.5 | X67: 16 | Y67: 36 | Z67: 5.5 | AA67: 4.8 | AB67: 6 | AC67: 16.3 | AD67: 4.5 | AE67: 3 | AF67: 7.5 | AG67: 7 | AH67: 5 | AI67: 12 | AJ67: 9 | AK67: 5 | AL67: 14 | AM67: 20.5 | AN67: 13 | AO67: 33.5 | AP67: 7 | AQ67: 12 | AR67: 13 | AS67: 32 | AT67: 9.5 | AU67: 7 | AV67: 13 | AW67: 29.5 | AX67: 9 | AY67: 11 | AZ67: 9 | BA67: 29 | BB67: 9 | BC67: 6 | BD67: 11.5 | BE67: 26.5 | BF67: 9.5 | BG67: 5.5 | BH67: 18 | BI67: 33 | BJ67: 9 | BK67: 3 | BL67: 13 | BM67: 25 | BN67: 9 | BO67: 7 | BP67: 13.5 | BQ67: 29.5 | BR67: 9 | BS67: 9 | BT67: 13 | BU67: 31 | BV67: 100.8 | BW67: 355.3 | BX67: 3 | BY67: 5 | BZ67: 5 | CA67: 13 | CB67: 3.5 | CC67: 5.5 | CD67: 6 | CE67: 15 | CG67: راسب | CH67: =IF(F67="","",IF(CJ67=0,RANK($BW67,$BW$10:$BW$599)+COUNTIF(BW$10:BW67,BW67)-1,IF(CJ67>=$CK$8,"جميع المواد",CONCATENATE(DC67,DD67,DE67,DF67,DG67,DH67,DI67,DJ67,DK67,DL67,DM67,DN67,DO67,DP67,DQ67)))) -> 00(حاسب عملي) 00000000000 | CI67: =IF(F67="","",IF(CJ67=0,RANK($BW67,$BW$10:$BW$599)+COUNTIF(BW$10:BW67,BW67)-"1","")) ->  | CJ67: 11 | CK67: 0 | CL67: 1 | CM67: 1 | CN67: 1 | CO67: 1 | CP67: 1 | CQ67: 1 | CR67: 1 | CS67: 1 | CT67: 1 | CU67: 1 | CV67: 1 | CW67: 1 | CX67: 1 | CY67: 1 | DD67: 0 | DE67: 0 | DF67: (حاسب عملي) | DG67: 0 | DH67: 0 | DI67: 0 | DJ67: 0 | DK67: 0 | DL67: 0 | DM67: 0 | DN67: 0 | DO67: 0 | DP67: 0 | DQ67: 0
B68: راسب | D68: 59 | E68: 562 | F68: طالبة تسويق 62 | I68: مستجد | J68: أنثي | K68: مسلم | L68: 30411061400464 | M68: 2004-11-06 | N68: =IF([1]الشيت!M68="","",CONCATENATE(DATEDIF([1]الشيت!M68,[1]البداية!$M$20,"md")," - ",DATEDIF([1]الشيت!M68,[1]البداية!$M$20,"ym")," - ",DATEDIF([1]الشيت!M68,[1]البداية!$M$20,"y"))) -> 8 - 6 - 13 | O68: 515 | R68: 8 | S68: 10.5 | T68: 14.5 | U68: 33 | V68: 8.5 | W68: 10 | X68: 15 | Y68: 33.5 | Z68: 5.5 | AA68: 4 | AB68: 5.6 | AC68: 15.1 | AD68: 4.5 | AE68: 3 | AF68: 7.5 | AG68: 7 | AH68: 5 | AI68: 12 | AJ68: 9 | AK68: 4.5 | AL68: 13.5 | AM68: 20.5 | AN68: 12.5 | AO68: 33 | AP68: 7 | AQ68: 11 | AR68: 14 | AS68: 32 | AT68: 9.5 | AU68: 7.5 | AV68: 13 | AW68: 30 | AX68: 9 | AY68: 11 | AZ68: 6 | BA68: 26 | BB68: 9 | BC68: 7 | BD68: 12 | BE68: 28 | BF68: 9.5 | BG68: 10.5 | BH68: 17 | BI68: 37 | BJ68: 9 | BK68: 7 | BL68: 13 | BM68: 29 | BN68: 9 | BO68: 9.5 | BP68: 14.5 | BQ68: 33 | BR68: 9 | BS68: 12 | BT68: 8 | BU68: 29 | BV68: 112 | BW68: 358.6 | BX68: 3 | BY68: 5 | BZ68: 6 | CA68: 14 | CB68: 3.5 | CC68: 4 | CD68: 5 | CE68: 12.5 | CG68: راسب | CH68: =IF(F68="","",IF(CJ68=0,RANK($BW68,$BW$10:$BW$599)+COUNTIF(BW$10:BW68,BW68)-1,IF(CJ68>=$CK$8,"جميع المواد",CONCATENATE(DC68,DD68,DE68,DF68,DG68,DH68,DI68,DJ68,DK68,DL68,DM68,DN68,DO68,DP68,DQ68)))) -> 000000000000000 | CI68: =IF(F68="","",IF(CJ68=0,RANK($BW68,$BW$10:$BW$599)+COUNTIF(BW$10:BW68,BW68)-"1","")) ->  | CJ68: 12 | CK68: 1 | CL68: 1 | CM68: 1 | CN68: 1 | CO68: 1 | CP68: 1 | CQ68: 1 | CR68: 1 | CS68: 1 | CT68: 1 | CU68: 1 | CV68: 1 | CW68: 1 | CX68: 1 | CY68: 1 | DC68: 0 | DD68: 0 | DE68: 0 | DF68: 0 | DG68: 0 | DH68: 0 | DI68: 0 | DJ68: 0 | DK68: 0 | DL68: 0 | DM68: 0 | DN68: 0 | DO68: 0 | DP68: 0 | DQ68: 0
B69: راسب | D69: 60 | E69: 563 | F69: طالبة تسويق 63 | I69: مستجد | J69: أنثي | K69: مسلم | L69: 30511161400229 | M69: 2005-11-16 | N69: =IF([1]الشيت!M69="","",CONCATENATE(DATEDIF([1]الشيت!M69,[1]البداية!$M$20,"md")," - ",DATEDIF([1]الشيت!M69,[1]البداية!$M$20,"ym")," - ",DATEDIF([1]الشيت!M69,[1]البداية!$M$20,"y"))) -> 13 - 8 - 12 | O69: 516 | R69: 8 | S69: 14 | T69: 15.5 | U69: 37.5 | V69: 8.5 | W69: 11.5 | X69: 15.5 | Y69: 35.5 | Z69: 5.5 | AA69: 4.4 | AB69: 6.8 | AC69: 16.7 | AD69: 4.5 | AE69: 3 | AF69: 7.5 | AG69: 9 | AH69: 5 | AI69: 14 | AJ69: 9 | AK69: 6 | AL69: 15 | AM69: 22.5 | AN69: 14 | AO69: 36.5 | AP69: 7 | AQ69: 11 | AR69: 13 | AS69: 31 | AT69: 9 | AU69: 12 | AV69: 13.5 | AW69: 34.5 | AX69: 9 | AY69: 11 | AZ69: 9 | BA69: 29 | BB69: 9 | BC69: 16 | BD69: 12 | BE69: 37 | BF69: 9.5 | BG69: 18.5 | BH69: 16.5 | BI69: 44.5 | BJ69: 9 | BK69: 7 | BL69: 13 | BM69: 29 | BN69: 9 | BO69: 10.5 | BP69: 15 | BQ69: 34.5 | BR69: 9 | BS69: 13 | BT69: 13 | BU69: 35 | BV69: 142.9 | BW69: 400.7 | BX69: 3 | BY69: 5.5 | BZ69: 6 | CA69: 14.5 | CB69: 3.5 | CC69: 6 | CD69: 6 | CE69: 15.5 | CG69: راسب | CH69: =IF(F69="","",IF(CJ69=0,RANK($BW69,$BW$10:$BW$599)+COUNTIF(BW$10:BW69,BW69)-1,IF(CJ69>=$CK$8,"جميع المواد",CONCATENATE(DC69,DD69,DE69,DF69,DG69,DH69,DI69,DJ69,DK69,DL69,DM69,DN69,DO69,DP69,DQ69)))) -> 0000000000000 | CI69: =IF(F69="","",IF(CJ69=0,RANK($BW69,$BW$10:$BW$599)+COUNTIF(BW$10:BW69,BW69)-"1","")) ->  | CJ69: 10 | CK69: 0 | CL69: 1 | CM69: 1 | CN69: 0 | CO69: 1 | CP69: 1 | CQ69: 1 | CR69: 1 | CS69: 1 | CT69: 1 | CU69: 1 | CV69: 1 | CW69: 1 | CX69: 1 | CY69: 1 | DD69: 0 | DE69: 0 | DG69: 0 | DH69: 0 | DI69: 0 | DJ69: 0 | DK69: 0 | DL69: 0 | DM69: 0 | DN69: 0 | DO69: 0 | DP69: 0 | DQ69: 0
B70: راسب | D70: 61 | E70: 564 | F70: طالبة تسويق 64 | I70: مستجد | J70: أنثي | K70: مسلم | L70: 30511108800827 | M70: 2005-11-10 | N70: =IF([1]الشيت!M70="","",CONCATENATE(DATEDIF([1]الشيت!M70,[1]البداية!$M$20,"md")," - ",DATEDIF([1]الشيت!M70,[1]البداية!$M$20,"ym")," - ",DATEDIF([1]الشيت!M70,[1]البداية!$M$20,"y"))) -> 25 - 5 - 13 | O70: 517 | R70: 8 | S70: 15 | T70: 15.5 | U70: 38.5 | V70: 8.5 | W70: 9.5 | X70: 15 | Y70: 33 | Z70: 5.5 | AA70: 5.2 | AB70: 6 | AC70: 16.7 | AD70: 4.5 | AE70: 3 | AF70: 7.5 | AG70: 7 | AH70: 4.5 | AI70: 11.5 | AJ70: 9 | AK70: 5 | AL70: 14 | AM70: 20.5 | AN70: 12.5 | AO70: 33 | AP70: 7 | AQ70: 10 | AR70: 13 | AS70: 30 | AT70: 9 | AU70: 9 | AV70: 12.5 | AW70: 30.5 | AX70: 9 | AY70: 12 | AZ70: 7 | BA70: 28 | BB70: 9 | BC70: 3 | BD70: 12.5 | BE70: 24.5 | BF70: 9.5 | BG70: 10.5 | BH70: 15.5 | BI70: 35.5 | BJ70: 9 | BK70: 3 | BL70: 13 | BM70: 25 | BN70: 9 | BO70: 9.5 | BP70: 13.5 | BQ70: 32 | BR70: 9 | BS70: 11 | BT70: 9 | BU70: 29 | BV70: 109.2 | BW70: 355.7 | BX70: 3 | BY70: 5.5 | BZ70: 6 | CA70: 14.5 | CB70: 3.5 | CC70: 6 | CD70: 5 | CE70: 14.5 | CG70: راسب | CH70: =IF(F70="","",IF(CJ70=0,RANK($BW70,$BW$10:$BW$599)+COUNTIF(BW$10:BW70,BW70)-1,IF(CJ70>=$CK$8,"جميع المواد",CONCATENATE(DC70,DD70,DE70,DF70,DG70,DH70,DI70,DJ70,DK70,DL70,DM70,DN70,DO70,DP70,DQ70)))) -> 00000000000000 | CI70: =IF(F70="","",IF(CJ70=0,RANK($BW70,$BW$10:$BW$599)+COUNTIF(BW$10:BW70,BW70)-"1","")) ->  | CJ70: 11 | CK70: 0 | CL70: 1 | CM70: 1 | CN70: 1 | CO70: 1 | CP70: 1 | CQ70: 1 | CR70: 1 | CS70: 1 | CT70: 1 | CU70: 1 | CV70: 1 | CW70: 1 | CX70: 1 | CY70: 1 | DD70: 0 | DE70: 0 | DF70: 0 | DG70: 0 | DH70: 0 | DI70: 0 | DJ70: 0 | DK70: 0 | DL70: 0 | DM70: 0 | DN70: 0 | DO70: 0 | DP70: 0 | DQ70: 0
B71: =CG71 -> راسب | C71: =CI71 ->  | D71: =IF(E71="","",ROW()-9) -> 62 | E71: 565 | F71: طالبة تسويق 65 | I71: مستجد | J71: أنثي | K71: مسلم | L71: 30509181403165 | M71: =IF(L71="","",DATE(LEFT(L71,1)+17&MID(L71,2,2),MID(L71,4,2),MID(L71,6,2))) -> 2005-09-18 | N71: =IF([1]الشيت!M71="","",CONCATENATE(DATEDIF([1]الشيت!M71,[1]البداية!$M$20,"md")," - ",DATEDIF([1]الشيت!M71,[1]البداية!$M$20,"ym")," - ",DATEDIF([1]الشيت!M71,[1]البداية!$M$20,"y"))) -> 25 - 10 - 13 | O71: 518 | R71: 8 | S71: 8 | T71: 11 | U71: =IF(AND($B$1="",R71="غ",S71="غ",T71="غ"),"غائب",SUM(T71,S71,R71)) -> 27 | V71: 8.5 | W71: 10.5 | X71: 16 | Y71: =IF(AND($B$1="",V71="غ",W71="غ",X71="غ"),"غائب",SUM(X71,W71,V71)) -> 35 | Z71: 5.5 | AA71: 4 | AB71: 7.6 | AC71: =IF(AND($B$1="",Z71="غ",AA71="غ",AB71="غ"),"غائب",SUM(AB71,AA71,Z71)) -> 17.1 | AD71: 4.5 | AE71: 3 | AF71: =IF(AND($B$1="",AD71="غ",AE71="غ"),"غائب",SUM(AD71:AE71)) -> 7.5 | AG71: 8 | AH71: 4 | AI71: =IF(AND($B$1="",AG71="غ",AH71="غ"),"غائب",SUM(AG71:AH71)) -> 12 | AJ71: 9 | AK71: 5 | AL71: =IF(AND($B$1="",AJ71="غ",AK71="غ"),"غائب",SUM(AJ71:AK71)) -> 14 | AM71: =IF(AND($B$1="",AJ71="غ",AG71="غ",AD71="غ"),"غائب",SUM(AJ71,AG71,AD71)) -> 21.5 | AN71: =IF(AND($B$1="",AK71="غ",AH71="غ",AE71="غ"),"غائب",SUM(AE71,AH71,AK71)) -> 12 | AO71: 33.5 | AP71: 7 | AQ71: 10 | AR71: 13 | AS71: =IF(AND($B$1="",AP71="غ",AQ71="غ",AR71="غ"),"غائب",SUM(AR71,AQ71,AP71)) -> 30 | AT71: 9.5 | AU71: 4 | AV71: 13.5 | AW71: =IF(AND($B$1="",AT71="غ",AU71="غ",AV71="غ"),"غائب",SUM(AV71,AU71,AT71)) -> 27 | AX71: 9 | AY71: 12 | AZ71: 9 | BA71: =IF(AND($B$1="",AX71="غ",AY71="غ",AZ71="غ"),"غائب",SUM(AZ71,AY71,AX71)) -> 30 | BB71: 9 | BC71: 5 | BD71: 11.5 | BE71: =IF(AND($B$1="",BB71="غ",BC71="غ",BD71="غ"),"غائب",SUM(BD71,BC71,BB71)) -> 25.5 | BF71: 9.5 | BG71: 6.5 | BH71: 15.5 | BI71: =IF(AND($B$1="",BF71="غ",BG71="غ",BH71="غ"),"غائب",SUM(BH71,BG71,BF71)) -> 31.5 | BJ71: 9 | BK71: 4 | BL71: 14 | BM71: =IF(AND($B$1="",BJ71="غ",BK71="غ",BL71="غ"),"غائب",SUM(BL71,BK71,BJ71)) -> 27 | BN71: 9 | BO71: 7 | BP71: 14 | BQ71: =IF(AND($B$1="",BN71="غ",BO71="غ",BP71="غ"),"غائب",SUM(BP71,BO71,BN71)) -> 30 | BR71: 9 | BS71: 11 | BT71: 10 | BU71: =IF(AND($B$1="",BR71="غ",BS71="غ",BT71="غ"),"غائب",SUM(BT71,BS71,BR71)) -> 30 | BV71: =IF(AND($B$1="",S71="غ",W71="غ",AA71="غ",AG71="غ",AH71="غ",AQ71="غ",AU71="غ",AY71="غ",BC71="غ",BG71="غ",BK71="غ",BO71="غ",BS71="غ",BY71="غ",CC71="غ"),"غائب",SUM(S71,W71,AA71,AG71,AH71,AQ71,AU71,AY71,BC71,BG71,BK71,BO71,BS71)) -> 94 | BW71: =IF(AND($B$1="",U71="غائب",Y71="غائب",AC71="غائب",AO71="غائب",AS71="غائب",AW71="غائب",BA71="غائب",BE71="غائب",BI71="غائب",BM71="غائب",BQ71="غائب",BU71="غائب",CA71="غائب",CE71="غائب"),"غائب",SUM(BU71,BQ71,BM71,BI71,BE71,BA71,AW71,AS71,AO71,AC71,Y71,U71)) -> 343.6 | BX71: 3 | BY71: 5.5 | BZ71: 6.5 | CA71: =IF(AND($B$1="",BX71="غ",BY71="غ",BZ71="غ"),"غائب",SUM(BZ71,BY71,BX71)) -> 15 | CB71: 3.5 | CC71: 4.5 | CD71: 5 | CE71: =IF(AND($B$1="",CB71="غ",CC71="غ",CD71="غ"),"غائب",SUM(CD71,CC71,CB71)) -> 13 | CF71: =IF(OR($F71="",BV$4=""),"",IF(BV71="غائب","غائب",IF(BV71/BV$8>=0.9,"ممتاز",IF(BV71/BV$8>=0.8,"جيد جدا",IF(BV71/BV$8>=0.6,"جيد ",IF(BV71/BV$8>=0.5,"مقبول ",IF(BV71<BV$8,"ضعيف"))))))) ->  | CG71: =IF($F71="","",IF(AND(CJ71>=3,I71="معيد"),"مفصول",IF(OR(CJ71=1,CJ71=2),"دور ثان",IF(CJ71>=3,"راسب",IF(CJ71=0,"ناجح"))))) -> راسب | CH71: =IF(F71="","",IF(CJ71=0,RANK($BW71,$BW$10:$BW$599)+COUNTIF(BW$10:BW71,BW71)-1,IF(CJ71>=$CK$8,"جميع المواد",CONCATENATE(DC71,DD71,DE71,DF71,DG71,DH71,DI71,DJ71,DK71,DL71,DM71,DN71,DO71,DP71,DQ71)))) -> 000(حاسب نظرى) 00000000000 | CI71: =IF(F71="","",IF(CJ71=0,RANK($BW71,$BW$10:$BW$599)+COUNTIF(BW$10:BW71,BW71)-"1","")) ->  | CJ71: =IF($F71="","",IF(AND(COUNTBLANK(DC71:DN71)=12,COUNTBLANK(DP71:DQ71)<2),1,IF(AND(COUNTBLANK(DC71:DN71)<12,COUNTBLANK(DP71:DQ71)<2),12-COUNTBLANK(DC71:DN71),IF(AND(COUNTBLANK(DC71:DN71)<12,COUNTBLANK(DP71:DQ71)>0),12-COUNTBLANK(DC71:DN71),0)))) -> 12 | CK71: =IF($F71="","",IF(OR(U71<$U$9,U71="غائب",T71<$T$9,T71="غ"),"1","0")) -> 1 | CL71: =IF($F71="","",IF(OR(Y71<$Y$9,Y71="غائب",X71<$X$9,X71="غ"),"1","0")) -> 1 | CM71: =IF($F71="","",IF(OR(AC71<$AC$9,AC71="غائب",AB71<$AB$9,AB71="غ"),"1","0")) -> 1 | CN71: =IF($F71="","",IF(OR(AN71<$AN$9,AN71="غائب",AM71<$AM$9,AM71="غ",AK71<$AK$9,AK71="غ",AJ71<$AJ$9,AJ71="غ",),"1","0")) -> 1 | CO71: =IF($F71="","",IF(OR(AS71<$AS$9,AS71="غائب",AR71<$AR$9,AR71="غ"),"1","0")) -> 1 | CP71: =IF($F71="","",IF(OR(AW71<$AW$9,AW71="غائب",AV71<$AV$9,AV71="غ"),"1","0")) -> 1 | CQ71: =IF($F71="","",IF(OR(BA71<$BA$9,BA71="غائب",AZ71<$AZ$9,AZ71="غ"),"1","0")) -> 1 | CR71: =IF($F71="","",IF(OR(BE71<$BE$9,BE71="غائب",BD71<$BD$9,BD71="غ"),"1","0")) -> 1 | CS71: =IF($F71="","",IF(OR(BI71<$BI$9,BI71="غائب",BH71<$BH$9,BH71="غ"),"1","0")) -> 1 | CT71: =IF($F71="","",IF(OR(BM71<$BM$9,BM71="غائب",BL71<$BL$9,BL71="غ"),"1","0")) -> 1 | CU71: =IF($F71="","",IF(OR(BQ71<$BQ$9,BQ71="غائب",BP71<$BP$9,BP71="غ"),"1","0")) -> 1 | CV71: =IF($F71="","",IF(OR(BU71<$BU$9,BU71="غائب",BT71<$BT$9,BT71="غ"),"1","0")) -> 1 | CW71: =IF($F71="","",IF(OR(BW71<$BW$9,BW71="غائب"),"1","0")) -> 1 | CX71: =IF($F71="","",IF(OR(CA71<$CA$9,CA71="غائب",BZ71<$BZ$9,BZ71="غ"),"1","0")) -> 1 | CY71: =IF($F71="","",IF(OR(CE71<$CE$9,CE71="غائب",CD71<$CD$9,CD71="غ"),"1","0")) -> 1 | DC71: =IF($F71="","",IF(OR(U71<$U$9,U71="غائب",T71<$T$9,T71="غ"),$CK$9,"")) -> 0 | DD71: =IF($F71="","",IF(OR(Y71<$Y$9,Y71="غائب",X71<$X$9,X71="غ"),$CL$9,"")) -> 0 | DE71: =IF($F71="","",IF(OR(AC71<$AC$9,AC71="غائب",AB71<$AB$9,AB71="غ"),$CM$9,"")) -> 0 | DF71: =IF($F71="","",IF(AND(OR(AN71="غائب",AN71<$AN$9),OR(AM71="غائب",AM71<$AM$9)),$CN$9,IF(OR(AM71="غائب",AM71<$AM$9,AJ71="غ",AJ71<$AJ$9),"(حاسب عملي) ",IF(OR(AN71="غائب",AN71<$AN$9,AK71="غ",AK71<$AK$9),"(حاسب نظرى) ","")))) -> (حاسب نظرى) | DG71: =IF($F71="","",IF(OR(AS71<$AS$9,AS71="غائب",AR71<$AR$9,AR71="غ"),$CO$9,"")) -> 0 | DH71: =IF($F71="","",IF(OR(AW71<$AW$9,AW71="غائب",AV71<$AV$9,AV71="غ"),$CP$9,"")) -> 0 | DI71: =IF($F71="","",IF(OR(BA71<$BA$9,BA71="غائب",AZ71<$AZ$9,AZ71="غ"),$CQ$9,"")) -> 0 | DJ71: =IF($F71="","",IF(OR(BE71<$BE$9,BE71="غائب",BD71<$BD$9,BD71="غ"),$CR$9,"")) -> 0 | DK71: =IF($F71="","",IF(OR(BI71<$BI$9,BI71="غائب",BH71<$BH$9,BH71="غ"),$CS$9,"")) -> 0 | DL71: =IF($F71="","",IF(OR(BM71<$BM$9,BM71="غائب",BL71<$BL$9,BL71="غ"),$CT$9,"")) -> 0 | DM71: =IF($F71="","",IF(OR(BQ71<$BQ$9,BQ71="غائب",BP71<$BP$9,BP71="غ"),$CU$9,"")) -> 0 | DN71: =IF($F71="","",IF(OR(BU71<$BU$9,BU71="غائب",BT71<$BT$9,BT71="غ"),$CV$9,"")) -> 0 | DO71: =IF($F71="","",IF(OR(BW71<$BW$9,BW71="غائب"),$CW$9,"")) -> 0 | DP71: =IF($F71="","",IF(OR(CA71<$CA$9,CA71="غائب",BZ71<$BZ$9,BZ71="غ"),$CX$9,"")) -> 0 | DQ71: =IF($F71="","",IF(OR(CE71<$CE$9,CE71="غائب",CD71<$CD$9,CD71="غ"),$CY$9,"")) -> 0
B72: راسب | D72: 63 | E72: 566 | F72: طالبة تسويق 66 | I72: مستجد | J72: أنثي | K72: مسلم | L72: 30406161401448 | M72: 2004-06-16 | N72: =IF([1]الشيت!M72="","",CONCATENATE(DATEDIF([1]الشيت!M72,[1]البداية!$M$20,"md")," - ",DATEDIF([1]الشيت!M72,[1]البداية!$M$20,"ym")," - ",DATEDIF([1]الشيت!M72,[1]البداية!$M$20,"y"))) -> 15 - 10 - 12 | O72: 519 | R72: 8 | S72: 11.5 | T72: 13.5 | U72: 33 | V72: 8.5 | W72: 11 | X72: 16 | Y72: 35.5 | Z72: 5.5 | AA72: 4.4 | AB72: 6.4 | AC72: 16.3 | AD72: 4.5 | AE72: 3 | AF72: 7.5 | AG72: 8 | AH72: 4 | AI72: 12 | AJ72: 8 | AK72: 6 | AL72: 14 | AM72: 20.5 | AN72: 13 | AO72: =IF(AND($A$1="",AM72="غائب",AN72="غائب"),"غائب",SUM(AM72:AN72)) -> 33.5 | AP72: 7 | AQ72: 12 | AR72: 14 | AS72: 33 | AT72: 9.5 | AU72: 7 | AV72: 13.5 | AW72: 30 | AX72: 9 | AY72: 15 | AZ72: 10 | BA72: 34 | BB72: 9 | BC72: صفر | BD72: 12 | BE72: 21 | BF72: 9.5 | BG72: 3.5 | BH72: 15.5 | BI72: 28.5 | BJ72: 9 | BK72: 2 | BL72: 14 | BM72: 25 | BN72: 9 | BO72: 6.5 | BP72: 14.5 | BQ72: 30 | BR72: 9 | BS72: 11 | BT72: 11 | BU72: 31 | BV72: 95.9 | BW72: 350.8 | BX72: 3 | BY72: 6.5 | BZ72: 7 | CA72: 16.5 | CB72: 3.5 | CC72: 5 | CD72: 5 | CE72: 13.5 | CG72: راسب | CH72: =IF(F72="","",IF(CJ72=0,RANK($BW72,$BW$10:$BW$599)+COUNTIF(BW$10:BW72,BW72)-1,IF(CJ72>=$CK$8,"جميع المواد",CONCATENATE(DC72,DD72,DE72,DF72,DG72,DH72,DI72,DJ72,DK72,DL72,DM72,DN72,DO72,DP72,DQ72)))) -> 000(حاسب عملي) 000000000 | CI72: =IF(F72="","",IF(CJ72=0,RANK($BW72,$BW$10:$BW$599)+COUNTIF(BW$10:BW72,BW72)-"1","")) ->  | CJ72: 11 | CK72: 1 | CL72: 1 | CM72: 1 | CN72: 1 | CO72: 0 | CP72: 1 | CQ72: 1 | CR72: 1 | CS72: 1 | CT72: 1 | CU72: 1 | CV72: 1 | CW72: 1 | CX72: 0 | CY72: 1 | DC72: 0 | DD72: 0 | DE72: 0 | DF72: (حاسب عملي) | DH72: 0 | DI72: 0 | DJ72: 0 | DK72: 0 | DL72: 0 | DM72: 0 | DN72: 0 | DO72: 0 | DQ72: 0 | DS72: =IF(CG72="دور ثان",IF(OR(T72<$T$9,T72="غ"),$R$4&" ","")&IF(OR(X72<$X$9,X72="غ"),$V$4&" ","")&IF(OR(AB72<$AB$9, AB72="غ"),$Z$4&" ","")&IF(OR(AJ72<$AJ$9, AJ72="غ"),$CZ$9&" ","")&IF(OR(AK72<$AK$9, AK72="غ"),$DA$9&" ","")&IF(OR(AR72<$AR$9, AR72="غ"),$AP$4&" ","")&IF(OR(AV72<$AV$9, AV72="غ"),$AT$4&" ","")&IF(OR(AZ72<$AZ$9, AZ72="غ"),$AX$4&" ","")&IF(OR(BD72<$BD$9, BD72="غ"),$BB$4&" ","")&IF(OR(BH72<$BH$9, BH72="غ"),$BF$4&" ","")&IF(OR(BL72<$BL$9, BL72="غ"),$BJ$4&" ","")&IF(OR(BP72<$BP$9, BP72="غ"),$BN$4&" ","")&IF(OR(BT72<$BT$9, BT72="غ"),$BR$4&" ",""),"") -> 
B73: راسب | D73: 64 | E73: 567 | F73: طالبة تسويق 67 | I73: مستجد | J73: أنثي | K73: مسلم | L73: 30509291404981 | M73: 2005-09-29 | N73: =IF([1]الشيت!M73="","",CONCATENATE(DATEDIF([1]الشيت!M73,[1]البداية!$M$20,"md")," - ",DATEDIF([1]الشيت!M73,[1]البداية!$M$20,"ym")," - ",DATEDIF([1]الشيت!M73,[1]البداية!$M$20,"y"))) -> 21 - 10 - 12 | O73: 520 | R73: 8 | S73: 16.5 | T73: 14 | U73: 38.5 | V73: 8.5 | W73: 9 | X73: 16 | Y73: 33.5 | Z73: 5.5 | AA73: 4 | AB73: 5.2 | AC73: 14.7 | AD73: 4.5 | AE73: 3 | AF73: 7.5 | AG73: 8 | AH73: 5 | AI73: 13 | AJ73: 9 | AK73: 6 | AL73: 15 | AM73: 21.5 | AN73: 14 | AO73: 35.5 | AP73: 7 | AQ73: 10 | AR73: 13 | AS73: 30 | AT73: 9 | AU73: 17 | AV73: 13.5 | AW73: 39.5 | AX73: 9 | AY73: 16 | AZ73: 8 | BA73: 33 | BB73: 9 | BC73: 12 | BD73: 14 | BE73: 35 | BF73: 9.5 | BG73: 8.5 | BH73: 14.5 | BI73: 32.5 | BJ73: 9 | BK73: 8 | BL73: 14 | BM73: 31 | BN73: 9 | BO73: 9 | BP73: 14 | BQ73: 32 | BR73: 9 | BS73: 13 | BT73: 12 | BU73: 34 | BV73: 136 | BW73: 389.2 | BX73: 3 | BY73: 5.5 | BZ73: 7.5 | CA73: 16 | CB73: 3.5 | CC73: 6 | CD73: 6 | CE73: 15.5 | CG73: راسب | CH73: =IF(F73="","",IF(CJ73=0,RANK($BW73,$BW$10:$BW$599)+COUNTIF(BW$10:BW73,BW73)-1,IF(CJ73>=$CK$8,"جميع المواد",CONCATENATE(DC73,DD73,DE73,DF73,DG73,DH73,DI73,DJ73,DK73,DL73,DM73,DN73,DO73,DP73,DQ73)))) -> 00000000000 | CI73: =IF(F73="","",IF(CJ73=0,RANK($BW73,$BW$10:$BW$599)+COUNTIF(BW$10:BW73,BW73)-"1","")) ->  | CJ73: 9 | CK73: 0 | CL73: 1 | CM73: 1 | CN73: 0 | CO73: 1 | CP73: 1 | CQ73: 1 | CR73: 0 | CS73: 1 | CT73: 1 | CU73: 1 | CV73: 1 | CW73: 1 | CX73: 0 | CY73: 1 | DD73: 0 | DE73: 0 | DG73: 0 | DH73: 0 | DI73: 0 | DK73: 0 | DL73: 0 | DM73: 0 | DN73: 0 | DO73: 0 | DQ73: 0
B74: راسب | D74: 65 | E74: 568 | F74: طالبة تسويق 68 | I74: مستجد | J74: أنثي | K74: مسلم | L74: 30507111400522 | M74: 2005-07-11 | N74: =IF([1]الشيت!M74="","",CONCATENATE(DATEDIF([1]الشيت!M74,[1]البداية!$M$20,"md")," - ",DATEDIF([1]الشيت!M74,[1]البداية!$M$20,"ym")," - ",DATEDIF([1]الشيت!M74,[1]البداية!$M$20,"y"))) -> 13 - 0 - 13 | O74: 521 | R74: 8 | S74: 13 | T74: 15 | U74: 36 | V74: 8.5 | W74: 11 | X74: 17.5 | Y74: 37 | Z74: 5.5 | AA74: 4.8 | AB74: 5.6 | AC74: 15.9 | AD74: 4.5 | AE74: 3 | AF74: 7.5 | AG74: 9 | AH74: 5 | AI74: 14 | AJ74: 8 | AK74: 6 | AL74: 14 | AM74: 21.5 | AN74: 14 | AO74: 35.5 | AP74: 7 | AQ74: 9 | AR74: 14 | AS74: 30 | AT74: 9 | AU74: 13 | AV74: 12.5 | AW74: 34.5 | AX74: 9 | AY74: 14 | AZ74: 6 | BA74: 29 | BB74: 9 | BC74: 6 | BD74: 11.5 | BE74: 26.5 | BF74: 9.5 | BG74: 9 | BH74: 18 | BI74: 36.5 | BJ74: 9 | BK74: 6 | BL74: 15 | BM74: 30 | BN74: 9 | BO74: 7.5 | BP74: 14.5 | BQ74: 31 | BR74: 9 | BS74: 10.5 | BT74: 12 | BU74: 31.5 | BV74: 117.8 | BW74: 373.4 | BX74: 3 | BY74: 6 | BZ74: 6 | CA74: 15 | CB74: 3.5 | CC74: 6 | CD74: 6 | CE74: 15.5 | CG74: راسب | CH74: =IF(F74="","",IF(CJ74=0,RANK($BW74,$BW$10:$BW$599)+COUNTIF(BW$10:BW74,BW74)-1,IF(CJ74>=$CK$8,"جميع المواد",CONCATENATE(DC74,DD74,DE74,DF74,DG74,DH74,DI74,DJ74,DK74,DL74,DM74,DN74,DO74,DP74,DQ74)))) -> 0(حاسب عملي) 00000000000 | CI74: =IF(F74="","",IF(CJ74=0,RANK($BW74,$BW$10:$BW$599)+COUNTIF(BW$10:BW74,BW74)-"1","")) ->  | CJ74: 10 | CK74: 0 | CL74: 0 | CM74: 1 | CN74: 1 | CO74: 1 | CP74: 1 | CQ74: 1 | CR74: 1 | CS74: 1 | CT74: 1 | CU74: 1 | CV74: 1 | CW74: 1 | CX74: 1 | CY74: 1 | DE74: 0 | DF74: (حاسب عملي) | DG74: 0 | DH74: 0 | DI74: 0 | DJ74: 0 | DK74: 0 | DL74: 0 | DM74: 0 | DN74: 0 | DO74: 0 | DP74: 0 | DQ74: 0
B75: راسب | D75: 66 | E75: 569 | F75: طالبة تسويق 69 | I75: مستجد | J75: أنثي | K75: مسلم | L75: 30411061400502 | M75: 2004-11-06 | N75: =IF([1]الشيت!M75="","",CONCATENATE(DATEDIF([1]الشيت!M75,[1]البداية!$M$20,"md")," - ",DATEDIF([1]الشيت!M75,[1]البداية!$M$20,"ym")," - ",DATEDIF([1]الشيت!M75,[1]البداية!$M$20,"y"))) -> 15 - 3 - 14 | O75: 522 | R75: 8 | S75: 11 | T75: 15 | U75: 34 | V75: 8.5 | W75: 11.5 | X75: 18.5 | Y75: 38.5 | Z75: 5.5 | AA75: 4.4 | AB75: 6.8 | AC75: 16.7 | AD75: 4.5 | AE75: 3 | AF75: 7.5 | AG75: 7 | AH75: 5 | AI75: 12 | AJ75: 10 | AK75: 6 | AL75: 16 | AM75: 21.5 | AN75: 14 | AO75: 35.5 | AP75: 7 | AQ75: 10 | AR75: 12 | AS75: 29 | AT75: 9 | AU75: 13 | AV75: 13.5 | AW75: 35.5 | AX75: 9 | AY75: 10 | AZ75: 6 | BA75: 25 | BB75: 9 | BC75: 8 | BD75: 11.5 | BE75: 28.5 | BF75: 9.5 | BG75: 7 | BH75: 18 | BI75: 34.5 | BJ75: 9 | BK75: 4 | BL75: 15 | BM75: 28 | BN75: 9 | BO75: 11 | BP75: 15 | BQ75: 35 | BR75: 9 | BS75: 13 | BT75: 11 | BU75: 33 | BV75: 114.9 | BW75: 373.2 | BX75: 3 | BY75: 6 | BZ75: 7 | CA75: 16 | CB75: 3.5 | CC75: 6 | CD75: 6 | CE75: 15.5 | CG75: راسب | CH75: =IF(F75="","",IF(CJ75=0,RANK($BW75,$BW$10:$BW$599)+COUNTIF(BW$10:BW75,BW75)-1,IF(CJ75>=$CK$8,"جميع المواد",CONCATENATE(DC75,DD75,DE75,DF75,DG75,DH75,DI75,DJ75,DK75,DL75,DM75,DN75,DO75,DP75,DQ75)))) -> 00000000000 | CI75: =IF(F75="","",IF(CJ75=0,RANK($BW75,$BW$10:$BW$599)+COUNTIF(BW$10:BW75,BW75)-"1","")) ->  | CJ75: 9 | CK75: 0 | CL75: 0 | CM75: 1 | CN75: 0 | CO75: 1 | CP75: 1 | CQ75: 1 | CR75: 1 | CS75: 1 | CT75: 1 | CU75: 1 | CV75: 1 | CW75: 1 | CX75: 0 | CY75: 1 | DE75: 0 | DG75: 0 | DH75: 0 | DI75: 0 | DJ75: 0 | DK75: 0 | DL75: 0 | DM75: 0 | DN75: 0 | DO75: 0 | DQ75: 0
B76: راسب | D76: 67 | E76: 570 | F76: طالبة تسويق 70 | I76: مستجد | J76: أنثي | K76: مسلم | L76: 30506231400147 | M76: 2005-06-23 | N76: =IF([1]الشيت!M76="","",CONCATENATE(DATEDIF([1]الشيت!M76,[1]البداية!$M$20,"md")," - ",DATEDIF([1]الشيت!M76,[1]البداية!$M$20,"ym")," - ",DATEDIF([1]الشيت!M76,[1]البداية!$M$20,"y"))) -> 2 - 0 - 13 | O76: 523 | R76: 8 | S76: 11 | T76: 13.5 | U76: 32.5 | V76: 8.5 | W76: 11 | X76: 14.5 | Y76: 34 | Z76: 5.5 | AA76: 4 | AB76: 4.8 | AC76: 14.3 | AD76: 4.5 | AE76: 3 | AF76: 7.5 | AG76: 7 | AH76: 5 | AI76: 12 | AJ76: 9 | AK76: 5 | AL76: 14 | AM76: 20.5 | AN76: 13 | AO76: 33.5 | AP76: 7 | AQ76: 10.5 | AR76: 14 | AS76: 31.5 | AT76: 9.5 | AU76: 6.5 | AV76: 13.5 | AW76: 29.5 | AX76: 9 | AY76: 4 | AZ76: 12 | BA76: 25 | BB76: 9 | BC76: 6 | BD76: 12 | BE76: 27 | BF76: 9.5 | BG76: 7.5 | BH76: 16 | BI76: 33 | BJ76: 9 | BK76: 5 | BL76: 15 | BM76: 29 | BN76: 9 | BO76: 9 | BP76: 14.5 | BQ76: 32.5 | BR76: 9 | BS76: 10.5 | BT76: 12 | BU76: 31.5 | BV76: 97 | BW76: 353.3 | BX76: 3 | BY76: 5 | BZ76: 6 | CA76: 14 | CB76: 3.5 | CC76: 6 | CD76: 6 | CE76: 15.5 | CG76: راسب | CH76: =IF(F76="","",IF(CJ76=0,RANK($BW76,$BW$10:$BW$599)+COUNTIF(BW$10:BW76,BW76)-1,IF(CJ76>=$CK$8,"جميع المواد",CONCATENATE(DC76,DD76,DE76,DF76,DG76,DH76,DI76,DJ76,DK76,DL76,DM76,DN76,DO76,DP76,DQ76)))) -> 000(حاسب عملي) 00000000000 | CI76: =IF(F76="","",IF(CJ76=0,RANK($BW76,$BW$10:$BW$599)+COUNTIF(BW$10:BW76,BW76)-"1","")) ->  | CJ76: 12 | CK76: 1 | CL76: 1 | CM76: 1 | CN76: 1 | CO76: 1 | CP76: 1 | CQ76: 1 | CR76: 1 | CS76: 1 | CT76: 1 | CU76: 1 | CV76: 1 | CW76: 1 | CX76: 1 | CY76: 1 | DC76: 0 | DD76: 0 | DE76: 0 | DF76: (حاسب عملي) | DG76: 0 | DH76: 0 | DI76: 0 | DJ76: 0 | DK76: 0 | DL76: 0 | DM76: 0 | DN76: 0 | DO76: 0 | DP76: 0 | DQ76: 0
B77: راسب | D77: 68 | E77: 571 | F77: طالبة تسويق 71 | I77: مستجد | J77: أنثي | K77: مسلم | L77: 30407011403082 | M77: 2004-07-01 | N77: =IF([1]الشيت!M77="","",CONCATENATE(DATEDIF([1]الشيت!M77,[1]البداية!$M$20,"md")," - ",DATEDIF([1]الشيت!M77,[1]البداية!$M$20,"ym")," - ",DATEDIF([1]الشيت!M77,[1]البداية!$M$20,"y"))) -> 20 - 2 - 13 | O77: 524 | R77: 8 | S77: 6.5 | T77: 10.5 | U77: 25 | V77: 9.5 | W77: 8.5 | X77: 15.5 | Y77: 33.5 | Z77: 5.5 | AA77: 4.4 | AB77: 6.4 | AC77: 16.3 | AD77: 5 | AE77: 3 | AF77: 8 | AG77: 7 | AH77: 5 | AI77: 12 | AJ77: 8 | AK77: 5 | AL77: 13 | AM77: 20 | AN77: 13 | AO77: 33 | AP77: 7 | AQ77: 5 | AR77: 13 | AS77: 25 | AT77: 9 | AU77: 11 | AV77: 12.5 | AW77: 32.5 | AX77: 9 | AY77: 6 | AZ77: 10 | BA77: 25 | BB77: 9 | BC77: 8 | BD77: 12.5 | BE77: 29.5 | BF77: 9.5 | BG77: 1.5 | BH77: 17.5 | BI77: 28.5 | BJ77: 9 | BK77: 4 | BL77: 15 | BM77: 28 | BN77: 9 | BO77: 6.5 | BP77: 13 | BQ77: 28.5 | BR77: 9 | BS77: 10 | BT77: 15 | BU77: 34 | BV77: 83.4 | BW77: 338.8 | BX77: 3 | BY77: 4.5 | BZ77: 4 | CA77: 11.5 | CB77: 3.5 | CC77: 4.5 | CD77: 5 | CE77: 13 | CG77: راسب | CH77: =IF(F77="","",IF(CJ77=0,RANK($BW77,$BW$10:$BW$599)+COUNTIF(BW$10:BW77,BW77)-1,IF(CJ77>=$CK$8,"جميع المواد",CONCATENATE(DC77,DD77,DE77,DF77,DG77,DH77,DI77,DJ77,DK77,DL77,DM77,DN77,DO77,DP77,DQ77)))) -> 000(حاسب عملي) 00000000000 | CI77: =IF(F77="","",IF(CJ77=0,RANK($BW77,$BW$10:$BW$599)+COUNTIF(BW$10:BW77,BW77)-"1","")) ->  | CJ77: 12 | CK77: 1 | CL77: 1 | CM77: 1 | CN77: 1 | CO77: 1 | CP77: 1 | CQ77: 1 | CR77: 1 | CS77: 1 | CT77: 1 | CU77: 1 | CV77: 1 | CW77: 1 | CX77: 1 | CY77: 1 | DC77: 0 | DD77: 0 | DE77: 0 | DF77: (حاسب عملي) | DG77: 0 | DH77: 0 | DI77: 0 | DJ77: 0 | DK77: 0 | DL77: 0 | DM77: 0 | DN77: 0 | DO77: 0 | DP77: 0 | DQ77: 0
B78: راسب | D78: 69 | E78: 572 | F78: طالبة تسويق 72 | I78: مستجد | J78: أنثي | K78: مسلم | L78: 30505011403505 | M78: 2005-05-01 | N78: =IF([1]الشيت!M78="","",CONCATENATE(DATEDIF([1]الشيت!M78,[1]البداية!$M$20,"md")," - ",DATEDIF([1]الشيت!M78,[1]البداية!$M$20,"ym")," - ",DATEDIF([1]الشيت!M78,[1]البداية!$M$20,"y"))) -> 25 - 10 - 13 | O78: 525 | R78: 8 | S78: 10.5 | T78: 14 | U78: 32.5 | V78: 8.5 | W78: 11.5 | X78: 17.5 | Y78: 37.5 | Z78: 5.5 | AA78: 4 | AB78: 7.2 | AC78: 16.7 | AD78: 4.5 | AE78: 3 | AF78: 7.5 | AG78: 7 | AH78: 5 | AI78: 12 | AJ78: 7 | AK78: 6 | AL78: 13 | AM78: 18.5 | AN78: 14 | AO78: 32.5 | AP78: 7 | AQ78: 8 | AR78: 14 | AS78: 29 | AT78: 9.5 | AU78: 7.5 | AV78: 13.5 | AW78: 30.5 | AX78: 9 | AY78: 8 | AZ78: 8 | BA78: 25 | BB78: 9 | BC78: 6 | BD78: 11.5 | BE78: 26.5 | BF78: 9.5 | BG78: 8.5 | BH78: 15.5 | BI78: 33.5 | BJ78: 9 | BK78: 6 | BL78: 15 | BM78: 30 | BN78: 9 | BO78: 8.5 | BP78: 14 | BQ78: 31.5 | BR78: 9 | BS78: 11 | BT78: 14 | BU78: 34 | BV78: 101.5 | BW78: 359.2 | BX78: 3 | BY78: 5 | BZ78: 6.5 | CA78: 14.5 | CB78: 3.5 | CC78: 4.5 | CD78: 6 | CE78: 14 | CG78: راسب | CH78: =IF(F78="","",IF(CJ78=0,RANK($BW78,$BW$10:$BW$599)+COUNTIF(BW$10:BW78,BW78)-1,IF(CJ78>=$CK$8,"جميع المواد",CONCATENATE(DC78,DD78,DE78,DF78,DG78,DH78,DI78,DJ78,DK78,DL78,DM78,DN78,DO78,DP78,DQ78)))) -> 00(حاسب عملي) 00000000000 | CI78: =IF(F78="","",IF(CJ78=0,RANK($BW78,$BW$10:$BW$599)+COUNTIF(BW$10:BW78,BW78)-"1","")) ->  | CJ78: 11 | CK78: 1 | CL78: 0 | CM78: 1 | CN78: 1 | CO78: 1 | CP78: 1 | CQ78: 1 | CR78: 1 | CS78: 1 | CT78: 1 | CU78: 1 | CV78: 1 | CW78: 1 | CX78: 1 | CY78: 1 | DC78: 0 | DE78: 0 | DF78: (حاسب عملي) | DG78: 0 | DH78: 0 | DI78: 0 | DJ78: 0 | DK78: 0 | DL78: 0 | DM78: 0 | DN78: 0 | DO78: 0 | DP78: 0 | DQ78: 0
B79: راسب | D79: 70 | E79: 573 | F79: طالبة تسويق 73 | I79: مستجد | J79: أنثي | K79: مسلم | L79: 30506141401764 | M79: 2005-06-14 | N79: =IF([1]الشيت!M79="","",CONCATENATE(DATEDIF([1]الشيت!M79,[1]البداية!$M$20,"md")," - ",DATEDIF([1]الشيت!M79,[1]البداية!$M$20,"ym")," - ",DATEDIF([1]الشيت!M79,[1]البداية!$M$20,"y"))) -> 8 - 3 - 13 | O79: 526 | R79: 8 | S79: 11.5 | T79: 14.5 | U79: 34 | V79: 8.5 | W79: 11 | X79: 16 | Y79: 35.5 | Z79: 5.5 | AA79: 4.4 | AB79: 9.2 | AC79: 19.1 | AD79: 4.5 | AE79: 3 | AF79: 7.5 | AG79: 7 | AH79: 5 | AI79: 12 | AJ79: 8 | AK79: 6 | AL79: 14 | AM79: 19.5 | AN79: 14 | AO79: 33.5 | AP79: 7 | AQ79: 9 | AR79: 13 | AS79: 29 | AT79: 9 | AU79: 9 | AV79: 13.5 | AW79: 31.5 | AX79: 9 | AY79: 15 | AZ79: 6 | BA79: 30 | BB79: 9 | BC79: 4 | BD79: 12 | BE79: 25 | BF79: 9.5 | BG79: 10.5 | BH79: 13.5 | BI79: 33.5 | BJ79: 9 | BK79: 7 | BL79: 15 | BM79: 31 | BN79: 9 | BO79: 7.5 | BP79: 13 | BQ79: 29.5 | BR79: 9 | BS79: 11 | BT79: 13 | BU79: 33 | BV79: 111.9 | BW79: 364.6 | BX79: 3 | BY79: 5 | BZ79: 7 | CA79: 15 | CB79: 3.5 | CC79: 4.5 | CD79: 6 | CE79: 14 | CG79: راسب | CH79: =IF(F79="","",IF(CJ79=0,RANK($BW79,$BW$10:$BW$599)+COUNTIF(BW$10:BW79,BW79)-1,IF(CJ79>=$CK$8,"جميع المواد",CONCATENATE(DC79,DD79,DE79,DF79,DG79,DH79,DI79,DJ79,DK79,DL79,DM79,DN79,DO79,DP79,DQ79)))) -> 0(حاسب عملي) 00000000000 | CI79: =IF(F79="","",IF(CJ79=0,RANK($BW79,$BW$10:$BW$599)+COUNTIF(BW$10:BW79,BW79)-"1","")) ->  | CJ79: 10 | CK79: 0 | CL79: 1 | CM79: 0 | CN79: 1 | CO79: 1 | CP79: 1 | CQ79: 1 | CR79: 1 | CS79: 1 | CT79: 1 | CU79: 1 | CV79: 1 | CW79: 1 | CX79: 1 | CY79: 1 | DD79: 0 | DF79: (حاسب عملي) | DG79: 0 | DH79: 0 | DI79: 0 | DJ79: 0 | DK79: 0 | DL79: 0 | DM79: 0 | DN79: 0 | DO79: 0 | DP79: 0 | DQ79: 0
B80: راسب | D80: 71 | E80: 574 | F80: طالبة تسويق 74 | I80: مستجد | J80: أنثي | K80: مسلم | L80: 30304211401447 | M80: 2003-04-21 | N80: =IF([1]الشيت!M80="","",CONCATENATE(DATEDIF([1]الشيت!M80,[1]البداية!$M$20,"md")," - ",DATEDIF([1]الشيت!M80,[1]البداية!$M$20,"ym")," - ",DATEDIF([1]الشيت!M80,[1]البداية!$M$20,"y"))) -> 0 - 3 - 14 | O80: 527 | R80: 8 | S80: 11.5 | T80: 14.5 | U80: 34 | V80: 8.5 | W80: 10.5 | X80: 17.5 | Y80: 36.5 | Z80: 5.5 | AA80: 4.4 | AB80: 8.8 | AC80: 18.7 | AD80: 4.5 | AE80: 3 | AF80: 7.5 | AG80: 9 | AH80: 5 | AI80: 14 | AJ80: 9 | AK80: 6 | AL80: 15 | AM80: 22.5 | AN80: 14 | AO80: 36.5 | AP80: 7 | AQ80: 7 | AR80: 14 | AS80: 28 | AT80: 9.5 | AU80: 6.5 | AV80: 13.5 | AW80: 29.5 | AX80: 9 | AY80: 14 | AZ80: 6 | BA80: 29 | BB80: 9 | BC80: 7 | BD80: 13.5 | BE80: 29.5 | BF80: 9.5 | BG80: 3.5 | BH80: 17 | BI80: 30 | BJ80: 9 | BK80: 2 | BL80: 15 | BM80: 26 | BN80: 9 | BO80: 6.5 | BP80: 13 | BQ80: 28.5 | BR80: 9 | BS80: 14 | BT80: 12.5 | BU80: 35.5 | BV80: 100.9 | BW80: 361.7 | BX80: 3 | BY80: 4.5 | BZ80: 6 | CA80: 13.5 | CB80: 3.5 | CC80: 4.5 | CD80: 6 | CE80: 14 | CG80: راسب | CH80: =IF(F80="","",IF(CJ80=0,RANK($BW80,$BW$10:$BW$599)+COUNTIF(BW$10:BW80,BW80)-1,IF(CJ80>=$CK$8,"جميع المواد",CONCATENATE(DC80,DD80,DE80,DF80,DG80,DH80,DI80,DJ80,DK80,DL80,DM80,DN80,DO80,DP80,DQ80)))) -> 000000000000 | CI80: =IF(F80="","",IF(CJ80=0,RANK($BW80,$BW$10:$BW$599)+COUNTIF(BW$10:BW80,BW80)-"1","")) ->  | CJ80: 9 | CK80: 0 | CL80: 1 | CM80: 0 | CN80: 0 | CO80: 1 | CP80: 1 | CQ80: 1 | CR80: 1 | CS80: 1 | CT80: 1 | CU80: 1 | CV80: 1 | CW80: 1 | CX80: 1 | CY80: 1 | DD80: 0 | DG80: 0 | DH80: 0 | DI80: 0 | DJ80: 0 | DK80: 0 | DL80: 0 | DM80: 0 | DN80: 0 | DO80: 0 | DP80: 0 | DQ80: 0
B81: راسب | D81: 72 | E81: 575 | F81: طالبة تسويق 75 | I81: مستجد | J81: أنثي | K81: مسلم | L81: 30206121402523 | M81: 2002-06-12 | N81: =IF([1]الشيت!M81="","",CONCATENATE(DATEDIF([1]الشيت!M81,[1]البداية!$M$20,"md")," - ",DATEDIF([1]الشيت!M81,[1]البداية!$M$20,"ym")," - ",DATEDIF([1]الشيت!M81,[1]البداية!$M$20,"y"))) -> 0 - 5 - 13 | O81: 528 | R81: 8 | S81: 7 | T81: 13.5 | U81: 28.5 | V81: 9.5 | W81: 7 | X81: 18.5 | Y81: 35 | Z81: 5.5 | AA81: 4.8 | AB81: 8.8 | AC81: 19.1 | AD81: 4.5 | AE81: 3 | AF81: 7.5 | AG81: 8 | AH81: 4 | AI81: 12 | AJ81: 7 | AK81: 4 | AL81: 11 | AM81: 19.5 | AN81: 11 | AO81: 30.5 | AP81: 7 | AQ81: 4 | AR81: 14 | AS81: 25 | AT81: 9.5 | AU81: 8 | AV81: 14 | AW81: 31.5 | AX81: 9 | AY81: 10 | AZ81: 6 | BA81: 25 | BB81: 9 | BC81: 4 | BD81: 13 | BE81: 26 | BF81: 9.5 | BG81: 3 | BH81: 15.5 | BI81: 28 | BJ81: 9 | BK81: 5 | BL81: 14 | BM81: 28 | BN81: 9 | BO81: 5.5 | BP81: 14.5 | BQ81: 29 | BR81: 9 | BS81: 12 | BT81: 12 | BU81: 33 | BV81: 82.3 | BW81: 338.6 | BX81: 3 | BY81: 4.5 | BZ81: 6 | CA81: 13.5 | CB81: 3.5 | CC81: 4 | CD81: 6 | CE81: 13.5 | CG81: راسب | CH81: =IF(F81="","",IF(CJ81=0,RANK($BW81,$BW$10:$BW$599)+COUNTIF(BW$10:BW81,BW81)-1,IF(CJ81>=$CK$8,"جميع المواد",CONCATENATE(DC81,DD81,DE81,DF81,DG81,DH81,DI81,DJ81,DK81,DL81,DM81,DN81,DO81,DP81,DQ81)))) -> 00000000000000 | CI81: =IF(F81="","",IF(CJ81=0,RANK($BW81,$BW$10:$BW$599)+COUNTIF(BW$10:BW81,BW81)-"1","")) ->  | CJ81: 11 | CK81: 1 | CL81: 1 | CM81: 0 | CN81: 1 | CO81: 1 | CP81: 1 | CQ81: 1 | CR81: 1 | CS81: 1 | CT81: 1 | CU81: 1 | CV81: 1 | CW81: 1 | CX81: 1 | CY81: 1 | DC81: 0 | DD81: 0 | DF81: 0 | DG81: 0 | DH81: 0 | DI81: 0 | DJ81: 0 | DK81: 0 | DL81: 0 | DM81: 0 | DN81: 0 | DO81: 0 | DP81: 0 | DQ81: 0
B82: راسب | D82: 73 | E82: 576 | F82: طالبة تسويق 76 | I82: مستجد | J82: أنثي | K82: مسلم | L82: 30412071401228 | M82: 2004-12-07 | N82: =IF([1]الشيت!M82="","",CONCATENATE(DATEDIF([1]الشيت!M82,[1]البداية!$M$20,"md")," - ",DATEDIF([1]الشيت!M82,[1]البداية!$M$20,"ym")," - ",DATEDIF([1]الشيت!M82,[1]البداية!$M$20,"y"))) -> 17 - 3 - 13 | O82: 529 | R82: 8 | S82: 14 | T82: 16 | U82: 38 | V82: 9.5 | W82: 5.5 | X82: 15.5 | Y82: 30.5 | Z82: 5.5 | AA82: 5.2 | AB82: 8.4 | AC82: 19.1 | AD82: 4.5 | AE82: 3 | AF82: 7.5 | AG82: 8 | AH82: 4 | AI82: 12 | AJ82: 8 | AK82: 6 | AL82: 14 | AM82: 20.5 | AN82: 13 | AO82: 33.5 | AP82: 7 | AQ82: 9 | AR82: 12 | AS82: 28 | AT82: 9 | AU82: 10.5 | AV82: 18 | AW82: 37.5 | AX82: 9 | AY82: 13 | AZ82: 16 | BA82: 38 | BB82: 9 | BC82: 8 | BD82: 10.5 | BE82: 27.5 | BF82: 9.5 | BG82: 2.5 | BH82: 15 | BI82: 27 | BJ82: 9 | BK82: 10 | BL82: 18 | BM82: 37 | BN82: 9.5 | BO82: 1 | BP82: 14.5 | BQ82: 25 | BR82: 9 | BS82: 17 | BT82: 17 | BU82: 43 | BV82: 107.7 | BW82: 384.1 | BX82: 3 | BY82: 5 | BZ82: 7 | CA82: 15 | CB82: 3.5 | CC82: 5 | CD82: 6 | CE82: 14.5 | CG82: راسب | CH82: =IF(F82="","",IF(CJ82=0,RANK($BW82,$BW$10:$BW$599)+COUNTIF(BW$10:BW82,BW82)-1,IF(CJ82>=$CK$8,"جميع المواد",CONCATENATE(DC82,DD82,DE82,DF82,DG82,DH82,DI82,DJ82,DK82,DL82,DM82,DN82,DO82,DP82,DQ82)))) -> 0(حاسب عملي) 00000000 | CI82: =IF(F82="","",IF(CJ82=0,RANK($BW82,$BW$10:$BW$599)+COUNTIF(BW$10:BW82,BW82)-"1","")) ->  | CJ82: 7 | CK82: 0 | CL82: 1 | CM82: 0 | CN82: 1 | CO82: 1 | CP82: 1 | CQ82: 0 | CR82: 1 | CS82: 1 | CT82: 0 | CU82: 1 | CV82: 0 | CW82: 1 | CX82: 1 | CY82: 1 | DD82: 0 | DF82: (حاسب عملي) | DG82: 0 | DH82: 0 | DJ82: 0 | DK82: 0 | DM82: 0 | DO82: 0 | DP82: 0 | DQ82: 0
B83: راسب | D83: 74 | E83: 577 | F83: طالبة تسويق 77 | I83: مستجد | J83: أنثي | K83: مسلم | L83: 30503131401287 | M83: 2005-03-13 | N83: =IF([1]الشيت!M83="","",CONCATENATE(DATEDIF([1]الشيت!M83,[1]البداية!$M$20,"md")," - ",DATEDIF([1]الشيت!M83,[1]البداية!$M$20,"ym")," - ",DATEDIF([1]الشيت!M83,[1]البداية!$M$20,"y"))) -> 10 - 5 - 15 | O83: 530 | R83: 8 | S83: 13 | T83: 13 | U83: 34 | V83: 9.5 | W83: 5 | X83: 15 | Y83: 29.5 | Z83: 5.5 | AA83: 4.8 | AB83: 8 | AC83: 18.3 | AD83: 4.5 | AE83: 3 | AF83: 7.5 | AG83: 7 | AH83: 2 | AI83: 9 | AJ83: 8 | AK83: 6 | AL83: 14 | AM83: 19.5 | AN83: 11 | AO83: 30.5 | AP83: 7 | AQ83: 7 | AR83: 11 | AS83: 25 | AT83: 9 | AU83: 9.5 | AV83: 16 | AW83: 34.5 | AX83: 9 | AY83: 11 | AZ83: 13 | BA83: 33 | BB83: 9 | BC83: 7 | BD83: 10 | BE83: 26 | BF83: 9.5 | BG83: 5 | BH83: 15 | BI83: 29.5 | BJ83: 9 | BK83: 9 | BL83: 16 | BM83: 34 | BN83: 9.5 | BO83: صفر | BP83: 15.5 | BQ83: 25 | BR83: 9 | BS83: 12 | BT83: 16 | BU83: 37 | BV83: 92.3 | BW83: 356.3 | BX83: 3 | BY83: 5 | BZ83: 4.5 | CA83: 12.5 | CB83: 3.5 | CC83: 5 | CD83: 7 | CE83: 15.5 | CG83: راسب | CH83: =IF(F83="","",IF(CJ83=0,RANK($BW83,$BW$10:$BW$599)+COUNTIF(BW$10:BW83,BW83)-1,IF(CJ83>=$CK$8,"جميع المواد",CONCATENATE(DC83,DD83,DE83,DF83,DG83,DH83,DI83,DJ83,DK83,DL83,DM83,DN83,DO83,DP83,DQ83)))) -> 000000000000 | CI83: =IF(F83="","",IF(CJ83=0,RANK($BW83,$BW$10:$BW$599)+COUNTIF(BW$10:BW83,BW83)-"1","")) ->  | CJ83: 10 | CK83: 0 | CL83: 1 | CM83: 1 | CN83: 1 | CO83: 1 | CP83: 1 | CQ83: 1 | CR83: 1 | CS83: 1 | CT83: 1 | CU83: 1 | CV83: 0 | CW83: 1 | CX83: 1 | CY83: 0 | DD83: 0 | DE83: 0 | DF83: 0 | DG83: 0 | DH83: 0 | DI83: 0 | DJ83: 0 | DK83: 0 | DL83: 0 | DM83: 0 | DO83: 0 | DP83: 0
B84: راسب | D84: 75 | E84: 578 | F84: طالبة تسويق 78 | I84: مستجد | J84: أنثي | K84: مسلم | L84: 30602251400142 | M84: 2006-02-25 | N84: =IF([1]الشيت!M84="","",CONCATENATE(DATEDIF([1]الشيت!M84,[1]البداية!$M$20,"md")," - ",DATEDIF([1]الشيت!M84,[1]البداية!$M$20,"ym")," - ",DATEDIF([1]الشيت!M84,[1]البداية!$M$20,"y"))) -> 19 - 3 - 16 | O84: 531 | R84: 8 | S84: 10.5 | T84: 12 | U84: 30.5 | V84: 9.5 | W84: 6 | X84: 17.5 | Y84: 33 | Z84: 5.5 | AA84: 4.4 | AB84: 8.4 | AC84: 18.3 | AD84: 5 | AE84: 3 | AF84: 8 | AG84: 9 | AH84: 3 | AI84: 12 | AJ84: 9 | AK84: 5 | AL84: 14 | AM84: 23 | AN84: 11 | AO84: 34 | AP84: 8 | AQ84: 9 | AR84: 11 | AS84: 28 | AT84: 9.5 | AU84: 7 | AV84: 15 | AW84: 31.5 | AX84: 9 | AY84: 14 | AZ84: 14 | BA84: 37 | BB84: 9 | BC84: 11 | BD84: 11 | BE84: 31 | BF84: 9.5 | BG84: 14.5 | BH84: 16 | BI84: 40 | BJ84: 9 | BK84: 7 | BL84: 18 | BM84: 34 | BN84: 9 | BO84: 13.5 | BP84: 13.5 | BQ84: 36 | BR84: 9 | BS84: 10 | BT84: 14 | BU84: 33 | BV84: 118.9 | BW84: 386.3 | BX84: 3 | BY84: 4.5 | BZ84: 6.5 | CA84: 14 | CB84: 3.5 | CC84: 3 | CD84: 7 | CE84: 13.5 | CG84: راسب | CH84: =IF(F84="","",IF(CJ84=0,RANK($BW84,$BW$10:$BW$599)+COUNTIF(BW$10:BW84,BW84)-1,IF(CJ84>=$CK$8,"جميع المواد",CONCATENATE(DC84,DD84,DE84,DF84,DG84,DH84,DI84,DJ84,DK84,DL84,DM84,DN84,DO84,DP84,DQ84)))) -> 00(حاسب نظرى) 00000000000 | CI84: =IF(F84="","",IF(CJ84=0,RANK($BW84,$BW$10:$BW$599)+COUNTIF(BW$10:BW84,BW84)-"1","")) ->  | CJ84: 11 | CK84: 1 | CL84: 1 | CM84: 0 | CN84: 1 | CO84: 1 | CP84: 1 | CQ84: 1 | CR84: 1 | CS84: 1 | CT84: 1 | CU84: 1 | CV84: 1 | CW84: 1 | CX84: 1 | CY84: 1 | DC84: 0 | DD84: 0 | DF84: (حاسب نظرى) | DG84: 0 | DH84: 0 | DI84: 0 | DJ84: 0 | DK84: 0 | DL84: 0 | DM84: 0 | DN84: 0 | DO84: 0 | DP84: 0 | DQ84: 0
B85: راسب | D85: 76 | E85: 579 | F85: طالبة تسويق 79 | I85: مستجد | J85: أنثي | K85: مسلم | L85: 30507251402347 | M85: 2005-07-25 | N85: =IF([1]الشيت!M85="","",CONCATENATE(DATEDIF([1]الشيت!M85,[1]البداية!$M$20,"md")," - ",DATEDIF([1]الشيت!M85,[1]البداية!$M$20,"ym")," - ",DATEDIF([1]الشيت!M85,[1]البداية!$M$20,"y"))) -> 24 - 9 - 13 | O85: 532 | R85: 8 | S85: 13 | T85: 14.5 | U85: 35.5 | V85: 9.5 | W85: 8 | X85: 17.5 | Y85: 35 | Z85: 5.5 | AA85: 3.2 | AB85: 8 | AC85: 16.7 | AD85: 4.5 | AE85: 3 | AF85: 7.5 | AG85: 9 | AH85: 5 | AI85: 14 | AJ85: 10 | AK85: 6 | AL85: 16 | AM85: 23.5 | AN85: 14 | AO85: 37.5 | AP85: 7 | AQ85: 12 | AR85: 12 | AS85: 31 | AT85: 9 | AU85: 10.5 | AV85: 13 | AW85: 32.5 | AX85: 9 | AY85: 13 | AZ85: 15 | BA85: 37 | BB85: 9 | BC85: 6.5 | BD85: 11 | BE85: 26.5 | BF85: 9.5 | BG85: 1 | BH85: 14.5 | BI85: 25 | BJ85: 9 | BK85: 10 | BL85: 18 | BM85: 37 | BN85: 9.5 | BO85: 2 | BP85: 13.5 | BQ85: 25 | BR85: 9 | BS85: 15 | BT85: 17 | BU85: 41 | BV85: 108.2 | BW85: 379.7 | BX85: 3 | BY85: 7 | BZ85: 7 | CA85: 17 | CB85: 3.5 | CC85: 6 | CD85: 5 | CE85: 14.5 | CG85: راسب | CH85: =IF(F85="","",IF(CJ85=0,RANK($BW85,$BW$10:$BW$599)+COUNTIF(BW$10:BW85,BW85)-1,IF(CJ85>=$CK$8,"جميع المواد",CONCATENATE(DC85,DD85,DE85,DF85,DG85,DH85,DI85,DJ85,DK85,DL85,DM85,DN85,DO85,DP85,DQ85)))) -> 0000000000 | CI85: =IF(F85="","",IF(CJ85=0,RANK($BW85,$BW$10:$BW$599)+COUNTIF(BW$10:BW85,BW85)-"1","")) ->  | CJ85: 8 | CK85: 0 | CL85: 1 | CM85: 1 | CN85: 0 | CO85: 1 | CP85: 1 | CQ85: 1 | CR85: 1 | CS85: 1 | CT85: 0 | CU85: 1 | CV85: 0 | CW85: 1 | CX85: 0 | CY85: 1 | DD85: 0 | DE85: 0 | DG85: 0 | DH85: 0 | DI85: 0 | DJ85: 0 | DK85: 0 | DM85: 0 | DO85: 0 | DQ85: 0
B86: راسب | D86: 77 | E86: 580 | F86: طالبة تسويق 80 | I86: مستجد | J86: أنثي | K86: مسلم | L86: 30405011400544 | M86: 2004-05-01 | N86: =IF([1]الشيت!M86="","",CONCATENATE(DATEDIF([1]الشيت!M86,[1]البداية!$M$20,"md")," - ",DATEDIF([1]الشيت!M86,[1]البداية!$M$20,"ym")," - ",DATEDIF([1]الشيت!M86,[1]البداية!$M$20,"y"))) -> 18 - 6 - 13 | O86: 533 | R86: 8 | S86: 13 | T86: 14 | U86: 35 | V86: 9.5 | W86: 4.5 | X86: 17.5 | Y86: 31.5 | Z86: 5.5 | AA86: 5.6 | AB86: 7.2 | AC86: 18.3 | AD86: 4.5 | AE86: 3 | AF86: 7.5 | AG86: 7 | AH86: 3 | AI86: 10 | AJ86: 9 | AK86: 6 | AL86: 15 | AM86: 20.5 | AN86: 12 | AO86: 32.5 | AP86: 7 | AQ86: 13 | AR86: 11 | AS86: 31 | AT86: 9.5 | AU86: 7 | AV86: 16 | AW86: 32.5 | AX86: 9 | AY86: 13 | AZ86: 13 | BA86: 35 | BB86: 9 | BC86: 7 | BD86: 10 | BE86: 26 | BF86: 9.5 | BG86: 2.5 | BH86: 15 | BI86: 27 | BJ86: 9 | BK86: 10 | BL86: 17 | BM86: 36 | BN86: 9.5 | BO86: صفر | BP86: 15.5 | BQ86: 25 | BR86: 9 | BS86: 8 | BT86: 17 | BU86: 34 | BV86: 93.6 | BW86: 363.8 | BX86: 3 | BY86: 6 | BZ86: 6.5 | CA86: 15.5 | CB86: 3.5 | CC86: 5 | CD86: 7 | CE86: 15.5 | CG86: راسب | CH86: =IF(F86="","",IF(CJ86=0,RANK($BW86,$BW$10:$BW$599)+COUNTIF(BW$10:BW86,BW86)-1,IF(CJ86>=$CK$8,"جميع المواد",CONCATENATE(DC86,DD86,DE86,DF86,DG86,DH86,DI86,DJ86,DK86,DL86,DM86,DN86,DO86,DP86,DQ86)))) -> 000000000000 | CI86: =IF(F86="","",IF(CJ86=0,RANK($BW86,$BW$10:$BW$599)+COUNTIF(BW$10:BW86,BW86)-"1","")) ->  | CJ86: 10 | CK86: 0 | CL86: 1 | CM86: 1 | CN86: 1 | CO86: 1 | CP86: 1 | CQ86: 1 | CR86: 1 | CS86: 1 | CT86: 0 | CU86: 1 | CV86: 1 | CW86: 1 | CX86: 1 | CY86: 0 | DD86: 0 | DE86: 0 | DF86: 0 | DG86: 0 | DH86: 0 | DI86: 0 | DJ86: 0 | DK86: 0 | DM86: 0 | DN86: 0 | DO86: 0 | DP86: 0
B87: راسب | D87: 78 | E87: 581 | F87: طالبة تسويق 81 | I87: مستجد | J87: أنثي | K87: مسلم | L87: 30511241401447 | M87: 2005-11-24 | N87: =IF([1]الشيت!M87="","",CONCATENATE(DATEDIF([1]الشيت!M87,[1]البداية!$M$20,"md")," - ",DATEDIF([1]الشيت!M87,[1]البداية!$M$20,"ym")," - ",DATEDIF([1]الشيت!M87,[1]البداية!$M$20,"y"))) -> 6 - 7 - 12 | O87: 534 | R87: 8 | S87: 13 | T87: 14.5 | U87: 35.5 | V87: 9.5 | W87: 6 | X87: 17.5 | Y87: 33 | Z87: 5.5 | AA87: 4.8 | AB87: 6.8 | AC87: 17.1 | AD87: 5 | AE87: 3 | AF87: 8 | AG87: 7 | AH87: 3 | AI87: 10 | AJ87: 8 | AK87: 7 | AL87: 15 | AM87: 20 | AN87: 13 | AO87: 33 | AP87: 7 | AQ87: 12 | AR87: 12 | AS87: 31 | AT87: 9 | AU87: 9.5 | AV87: 13 | AW87: 31.5 | AX87: 9 | AY87: 13 | AZ87: 14 | BA87: 36 | BB87: 9 | BC87: 6 | BD87: 12 | BE87: 27 | BF87: 9.5 | BG87: 2 | BH87: 16 | BI87: 27.5 | BJ87: 9 | BK87: 9 | BL87: 18 | BM87: 36 | BN87: 9.5 | BO87: 1 | BP87: 14.5 | BQ87: 25 | BR87: 9 | BS87: 13 | BT87: 16 | BU87: 38 | BV87: 99.3 | BW87: 370.6 | BX87: 3 | BY87: 6 | BZ87: 7 | CA87: 16 | CB87: 3.5 | CC87: 5 | CD87: 7 | CE87: 15.5 | CG87: راسب | CH87: =IF(F87="","",IF(CJ87=0,RANK($BW87,$BW$10:$BW$599)+COUNTIF(BW$10:BW87,BW87)-1,IF(CJ87>=$CK$8,"جميع المواد",CONCATENATE(DC87,DD87,DE87,DF87,DG87,DH87,DI87,DJ87,DK87,DL87,DM87,DN87,DO87,DP87,DQ87)))) -> 00(حاسب عملي) 0000000 | CI87: =IF(F87="","",IF(CJ87=0,RANK($BW87,$BW$10:$BW$599)+COUNTIF(BW$10:BW87,BW87)-"1","")) ->  | CJ87: 9 | CK87: 0 | CL87: 1 | CM87: 1 | CN87: 1 | CO87: 1 | CP87: 1 | CQ87: 1 | CR87: 1 | CS87: 1 | CT87: 0 | CU87: 1 | CV87: 0 | CW87: 1 | CX87: 0 | CY87: 0 | DD87: 0 | DE87: 0 | DF87: (حاسب عملي) | DG87: 0 | DH87: 0 | DI87: 0 | DJ87: 0 | DK87: 0 | DM87: 0 | DO87: 0
B88: راسب | D88: 79 | E88: 582 | F88: طالبة تسويق 82 | I88: مستجد | J88: أنثي | K88: مسلم | L88: 30506061402166 | M88: 2005-06-06 | N88: =IF([1]الشيت!M88="","",CONCATENATE(DATEDIF([1]الشيت!M88,[1]البداية!$M$20,"md")," - ",DATEDIF([1]الشيت!M88,[1]البداية!$M$20,"ym")," - ",DATEDIF([1]الشيت!M88,[1]البداية!$M$20,"y"))) -> 6 - 2 - 13 | O88: 535 | R88: 8 | S88: 13.5 | T88: 16.5 | U88: 38 | V88: 9.5 | W88: 7 | X88: 17.5 | Y88: 34 | Z88: 5.5 | AA88: 4.4 | AB88: 8 | AC88: 17.9 | AD88: 5 | AE88: 3 | AF88: 8 | AG88: 8 | AH88: 3 | AI88: 11 | AJ88: 9 | AK88: 7 | AL88: 16 | AM88: 22 | AN88: 13 | AO88: 35 | AP88: 7 | AQ88: 12.5 | AR88: 11 | AS88: 30.5 | AT88: 9 | AU88: 8 | AV88: 15 | AW88: 32 | AX88: 9 | AY88: 13 | AZ88: 14 | BA88: 36 | BB88: 9 | BC88: 5.5 | BD88: 12.5 | BE88: 27 | BF88: 9.5 | BG88: 2.5 | BH88: 15 | BI88: 27 | BJ88: 9 | BK88: 9 | BL88: 17 | BM88: 35 | BN88: 9.5 | BO88: 2.5 | BP88: 13 | BQ88: 25 | BR88: 9 | BS88: 15 | BT88: 16 | BU88: 40 | BV88: 103.9 | BW88: 377.4 | BX88: 3 | BY88: 5.5 | BZ88: 6 | CA88: 14.5 | CB88: 3.5 | CC88: 5 | CD88: 7 | CE88: 15.5 | CG88: راسب | CH88: =IF(F88="","",IF(CJ88=0,RANK($BW88,$BW$10:$BW$599)+COUNTIF(BW$10:BW88,BW88)-1,IF(CJ88>=$CK$8,"جميع المواد",CONCATENATE(DC88,DD88,DE88,DF88,DG88,DH88,DI88,DJ88,DK88,DL88,DM88,DN88,DO88,DP88,DQ88)))) -> 00000000000 | CI88: =IF(F88="","",IF(CJ88=0,RANK($BW88,$BW$10:$BW$599)+COUNTIF(BW$10:BW88,BW88)-"1","")) ->  | CJ88: 9 | CK88: 0 | CL88: 1 | CM88: 1 | CN88: 0 | CO88: 1 | CP88: 1 | CQ88: 1 | CR88: 1 | CS88: 1 | CT88: 1 | CU88: 1 | CV88: 0 | CW88: 1 | CX88: 1 | CY88: 0 | DD88: 0 | DE88: 0 | DG88: 0 | DH88: 0 | DI88: 0 | DJ88: 0 | DK88: 0 | DL88: 0 | DM88: 0 | DO88: 0 | DP88: 0
B89: راسب | D89: 80 | E89: 583 | F89: طالبة تسويق 83 | I89: مستجد | J89: أنثي | K89: مسلم | L89: 30506011405989 | M89: 2005-06-01 | N89: =IF([1]الشيت!M89="","",CONCATENATE(DATEDIF([1]الشيت!M89,[1]البداية!$M$20,"md")," - ",DATEDIF([1]الشيت!M89,[1]البداية!$M$20,"ym")," - ",DATEDIF([1]الشيت!M89,[1]البداية!$M$20,"y"))) -> 0 - 5 - 14 | O89: 536 | R89: 8 | S89: 10.5 | T89: 12 | U89: 30.5 | V89: 9.5 | W89: 6 | X89: 16.5 | Y89: 32 | Z89: 5.5 | AA89: 4 | AB89: 7.2 | AC89: 16.7 | AD89: 4.5 | AE89: 3 | AF89: 7.5 | AG89: 8 | AH89: 3 | AI89: 11 | AJ89: 8 | AK89: 6 | AL89: 14 | AM89: 20.5 | AN89: 12 | AO89: 32.5 | AP89: 7 | AQ89: 10.5 | AR89: 11 | AS89: 28.5 | AT89: 9 | AU89: 8.5 | AV89: 15 | AW89: 32.5 | AX89: 9 | AY89: 13 | AZ89: 12 | BA89: 34 | BB89: 9 | BC89: 6 | BD89: 12.5 | BE89: 27.5 | BF89: 9.5 | BG89: 1 | BH89: 15.5 | BI89: 26 | BJ89: 9 | BK89: 10 | BL89: 17 | BM89: 36 | BN89: 9.5 | BO89: صفر | BP89: 15.5 | BQ89: 25 | BR89: 9 | BS89: 10 | BT89: 16 | BU89: 35 | BV89: 90.5 | BW89: 356.2 | BX89: 3 | BY89: 6 | BZ89: 6.5 | CA89: 15.5 | CB89: 3.5 | CC89: 5 | CD89: 7 | CE89: 15.5 | CG89: راسب | CH89: =IF(F89="","",IF(CJ89=0,RANK($BW89,$BW$10:$BW$599)+COUNTIF(BW$10:BW89,BW89)-1,IF(CJ89>=$CK$8,"جميع المواد",CONCATENATE(DC89,DD89,DE89,DF89,DG89,DH89,DI89,DJ89,DK89,DL89,DM89,DN89,DO89,DP89,DQ89)))) -> 0000000000000 | CI89: =IF(F89="","",IF(CJ89=0,RANK($BW89,$BW$10:$BW$599)+COUNTIF(BW$10:BW89,BW89)-"1","")) ->  | CJ89: 11 | CK89: 1 | CL89: 1 | CM89: 1 | CN89: 1 | CO89: 1 | CP89: 1 | CQ89: 1 | CR89: 1 | CS89: 1 | CT89: 0 | CU89: 1 | CV89: 1 | CW89: 1 | CX89: 1 | CY89: 0 | DC89: 0 | DD89: 0 | DE89: 0 | DF89: 0 | DG89: 0 | DH89: 0 | DI89: 0 | DJ89: 0 | DK89: 0 | DM89: 0 | DN89: 0 | DO89: 0 | DP89: 0
B90: راسب | D90: 81 | E90: 584 | F90: طالبة تسويق 84 | I90: مستجد | J90: أنثي | K90: مسلم | L90: 30507111400182 | M90: 2005-07-11 | N90: =IF([1]الشيت!M90="","",CONCATENATE(DATEDIF([1]الشيت!M90,[1]البداية!$M$20,"md")," - ",DATEDIF([1]الشيت!M90,[1]البداية!$M$20,"ym")," - ",DATEDIF([1]الشيت!M90,[1]البداية!$M$20,"y"))) -> 7 - 10 - 12 | O90: 537 | R90: 8 | S90: 9.5 | T90: 14 | U90: 31.5 | V90: 9.5 | W90: 6 | X90: 17.5 | Y90: 33 | Z90: 5.5 | AA90: 4 | AB90: 7.2 | AC90: 16.7 | AD90: 4.5 | AE90: 3 | AF90: 7.5 | AG90: 8 | AH90: 3 | AI90: 11 | AJ90: 8 | AK90: 6 | AL90: 14 | AM90: 20.5 | AN90: 12 | AO90: 32.5 | AP90: 7 | AQ90: 12.5 | AR90: 11 | AS90: 30.5 | AT90: 9 | AU90: 7 | AV90: 16 | AW90: 32 | AX90: 9 | AY90: 12 | AZ90: 11 | BA90: 32 | BB90: 9 | BC90: 6 | BD90: 10 | BE90: 25 | BF90: 9.5 | BG90: 1 | BH90: 15.5 | BI90: 26 | BJ90: 9 | BK90: 11 | BL90: 17 | BM90: 37 | BN90: 9.5 | BO90: صفر | BP90: 15.5 | BQ90: 25 | BR90: 9 | BS90: 13 | BT90: 16 | BU90: 38 | BV90: 93 | BW90: 359.2 | BX90: 3 | BY90: 7 | BZ90: 6 | CA90: 16 | CB90: 3.5 | CC90: 5 | CD90: 7 | CE90: 15.5 | CG90: راسب | CH90: =IF(F90="","",IF(CJ90=0,RANK($BW90,$BW$10:$BW$599)+COUNTIF(BW$10:BW90,BW90)-1,IF(CJ90>=$CK$8,"جميع المواد",CONCATENATE(DC90,DD90,DE90,DF90,DG90,DH90,DI90,DJ90,DK90,DL90,DM90,DN90,DO90,DP90,DQ90)))) -> 000000000000 | CI90: =IF(F90="","",IF(CJ90=0,RANK($BW90,$BW$10:$BW$599)+COUNTIF(BW$10:BW90,BW90)-"1","")) ->  | CJ90: 10 | CK90: 1 | CL90: 1 | CM90: 1 | CN90: 1 | CO90: 1 | CP90: 1 | CQ90: 1 | CR90: 1 | CS90: 1 | CT90: 0 | CU90: 1 | CV90: 0 | CW90: 1 | CX90: 1 | CY90: 0 | DC90: 0 | DD90: 0 | DE90: 0 | DF90: 0 | DG90: 0 | DH90: 0 | DI90: 0 | DJ90: 0 | DK90: 0 | DM90: 0 | DO90: 0 | DP90: 0
B91: راسب | D91: 82 | E91: 585 | F91: طالبة تسويق 85 | I91: مستجد | J91: أنثي | K91: مسلم | L91: 30510171401642 | M91: 2005-10-17 | N91: =IF([1]الشيت!M91="","",CONCATENATE(DATEDIF([1]الشيت!M91,[1]البداية!$M$20,"md")," - ",DATEDIF([1]الشيت!M91,[1]البداية!$M$20,"ym")," - ",DATEDIF([1]الشيت!M91,[1]البداية!$M$20,"y"))) -> 25 - 3 - 13 | O91: 501 | R91: 8 | S91: 15.5 | T91: 13.5 | U91: 37 | V91: 9.5 | W91: 6 | X91: 17.5 | Y91: 33 | Z91: 5.5 | AA91: 4.4 | AB91: 7.6 | AC91: 17.5 | AD91: 4.5 | AE91: 3 | AF91: 7.5 | AG91: 8 | AH91: 3.5 | AI91: 11.5 | AJ91: 8 | AK91: 6 | AL91: 14 | AM91: 20.5 | AN91: 12.5 | AO91: 33 | AP91: 7 | AQ91: 9.5 | AR91: 11 | AS91: 27.5 | AT91: 9 | AU91: 10.5 | AV91: 16 | AW91: 35.5 | AX91: 9 | AY91: 13 | AZ91: 15 | BA91: 37 | BB91: 9 | BC91: 6.5 | BD91: 15 | BE91: 30.5 | BF91: 9.5 | BG91: 2.5 | BH91: 18 | BI91: 30 | BJ91: 9 | BK91: 11 | BL91: 16 | BM91: 36 | BN91: 9.5 | BO91: صفر | BP91: 15.5 | BQ91: 25 | BR91: 9 | BS91: 15 | BT91: 16 | BU91: 40 | BV91: 105.4 | BW91: 382 | BX91: 3 | BY91: 5.5 | BZ91: 7 | CA91: 15.5 | CB91: 3.5 | CC91: 6.5 | CD91: 7 | CE91: 17 | CG91: راسب | CH91: =IF(F91="","",IF(CJ91=0,RANK($BW91,$BW$10:$BW$599)+COUNTIF(BW$10:BW91,BW91)-1,IF(CJ91>=$CK$8,"جميع المواد",CONCATENATE(DC91,DD91,DE91,DF91,DG91,DH91,DI91,DJ91,DK91,DL91,DM91,DN91,DO91,DP91,DQ91)))) -> 00000000000 | CI91: =IF(F91="","",IF(CJ91=0,RANK($BW91,$BW$10:$BW$599)+COUNTIF(BW$10:BW91,BW91)-"1","")) ->  | CJ91: 10 | CK91: 0 | CL91: 1 | CM91: 1 | CN91: 1 | CO91: 1 | CP91: 1 | CQ91: 1 | CR91: 1 | CS91: 1 | CT91: 1 | CU91: 1 | CV91: 0 | CW91: 1 | CX91: 0 | CY91: 0 | DD91: 0 | DE91: 0 | DF91: 0 | DG91: 0 | DH91: 0 | DI91: 0 | DJ91: 0 | DK91: 0 | DL91: 0 | DM91: 0 | DO91: 0
B92: راسب | D92: 83 | E92: 586 | F92: طالبة تسويق 86 | I92: مستجد | J92: أنثي | K92: مسلم | L92: 30601281400108 | M92: 2006-01-28 | N92: =IF([1]الشيت!M92="","",CONCATENATE(DATEDIF([1]الشيت!M92,[1]البداية!$M$20,"md")," - ",DATEDIF([1]الشيت!M92,[1]البداية!$M$20,"ym")," - ",DATEDIF([1]الشيت!M92,[1]البداية!$M$20,"y"))) -> 0 - 4 - 13 | O92: 502 | R92: 8 | S92: 15.5 | T92: 14.5 | U92: 38 | V92: 9.5 | W92: 10 | X92: 17 | Y92: 36.5 | Z92: 5.5 | AA92: 4 | AB92: 7.6 | AC92: 17.1 | AD92: 4.5 | AE92: 3 | AF92: 7.5 | AG92: 9 | AH92: 3.5 | AI92: 12.5 | AJ92: 9 | AK92: 6 | AL92: 15 | AM92: 22.5 | AN92: 12.5 | AO92: 35 | AP92: 7 | AQ92: 12.5 | AR92: 10 | AS92: 29.5 | AT92: 9 | AU92: 13 | AV92: 17 | AW92: 39 | AX92: 9 | AY92: 13 | AZ92: 13 | BA92: 35 | BB92: 9 | BC92: 7.5 | BD92: 8.5 | BE92: 25 | BF92: 9.5 | BG92: 3 | BH92: 14 | BI92: 26.5 | BJ92: 9 | BK92: 10 | BL92: 18 | BM92: 37 | BN92: 9.5 | BO92: صفر | BP92: 15.5 | BQ92: 25 | BR92: 9 | BS92: 17 | BT92: 18 | BU92: 44 | BV92: 118 | BW92: 387.6 | BX92: 3 | BY92: 5.5 | BZ92: 7.5 | CA92: 16 | CB92: 3.5 | CC92: 7 | CD92: 6 | CE92: 16.5 | CG92: راسب | CH92: =IF(F92="","",IF(CJ92=0,RANK($BW92,$BW$10:$BW$599)+COUNTIF(BW$10:BW92,BW92)-1,IF(CJ92>=$CK$8,"جميع المواد",CONCATENATE(DC92,DD92,DE92,DF92,DG92,DH92,DI92,DJ92,DK92,DL92,DM92,DN92,DO92,DP92,DQ92)))) -> 00(حاسب نظرى) 00000000 | CI92: =IF(F92="","",IF(CJ92=0,RANK($BW92,$BW$10:$BW$599)+COUNTIF(BW$10:BW92,BW92)-"1","")) ->  | CJ92: 9 | CK92: 0 | CL92: 1 | CM92: 1 | CN92: 1 | CO92: 1 | CP92: 1 | CQ92: 1 | CR92: 1 | CS92: 1 | CT92: 0 | CU92: 1 | CV92: 0 | CW92: 1 | CX92: 0 | CY92: 1 | DD92: 0 | DE92: 0 | DF92: (حاسب نظرى) | DG92: 0 | DH92: 0 | DI92: 0 | DJ92: 0 | DK92: 0 | DM92: 0 | DO92: 0 | DQ92: 0
B93: راسب | D93: 84 | E93: 587 | F93: طالبة تسويق 87 | I93: مستجد | J93: أنثي | K93: مسلم | L93: 30410171400404 | M93: 2004-10-17 | N93: =IF([1]الشيت!M93="","",CONCATENATE(DATEDIF([1]الشيت!M93,[1]البداية!$M$20,"md")," - ",DATEDIF([1]الشيت!M93,[1]البداية!$M$20,"ym")," - ",DATEDIF([1]الشيت!M93,[1]البداية!$M$20,"y"))) -> 20 - 2 - 13 | O93: 503 | R93: 8 | S93: 12.5 | T93: 15 | U93: 35.5 | V93: 9.5 | W93: 6.5 | X93: 17.5 | Y93: 33.5 | Z93: 5.5 | AA93: 4 | AB93: 7.6 | AC93: 17.1 | AD93: 4.5 | AE93: 3 | AF93: 7.5 | AG93: 8 | AH93: 3 | AI93: 11 | AJ93: 7 | AK93: 6 | AL93: 13 | AM93: 19.5 | AN93: 12 | AO93: 31.5 | AP93: 7 | AQ93: 11.5 | AR93: 11 | AS93: 29.5 | AT93: 9.5 | AU93: 6 | AV93: 15.5 | AW93: 31 | AX93: 9 | AY93: 16 | AZ93: 13 | BA93: 38 | BB93: 9 | BC93: 5 | BD93: 12.5 | BE93: 26.5 | BF93: 9.5 | BG93: 4 | BH93: 16 | BI93: 29.5 | BJ93: 9 | BK93: 10 | BL93: 17 | BM93: 36 | BN93: 9.5 | BO93: صفر | BP93: 16 | BQ93: 25.5 | BR93: 9 | BS93: 9 | BT93: 16 | BU93: 34 | BV93: 95.5 | BW93: 367.6 | BX93: 3 | BY93: 4.5 | BZ93: 6.5 | CA93: 14 | CB93: 3.5 | CC93: 5 | CD93: 6 | CE93: 14.5 | CG93: راسب | CH93: =IF(F93="","",IF(CJ93=0,RANK($BW93,$BW$10:$BW$599)+COUNTIF(BW$10:BW93,BW93)-1,IF(CJ93>=$CK$8,"جميع المواد",CONCATENATE(DC93,DD93,DE93,DF93,DG93,DH93,DI93,DJ93,DK93,DL93,DM93,DN93,DO93,DP93,DQ93)))) -> 0000000000000 | CI93: =IF(F93="","",IF(CJ93=0,RANK($BW93,$BW$10:$BW$599)+COUNTIF(BW$10:BW93,BW93)-"1","")) ->  | CJ93: 10 | CK93: 0 | CL93: 1 | CM93: 1 | CN93: 1 | CO93: 1 | CP93: 1 | CQ93: 1 | CR93: 1 | CS93: 1 | CT93: 0 | CU93: 1 | CV93: 1 | CW93: 1 | CX93: 1 | CY93: 1 | DD93: 0 | DE93: 0 | DF93: 0 | DG93: 0 | DH93: 0 | DI93: 0 | DJ93: 0 | DK93: 0 | DM93: 0 | DN93: 0 | DO93: 0 | DP93: 0 | DQ93: 0
B94: راسب | D94: 85 | E94: 588 | F94: طالبة تسويق 88 | I94: مستجد | J94: أنثي | K94: مسلم | L94: 30412211400227 | M94: 2004-12-21 | N94: =IF([1]الشيت!M94="","",CONCATENATE(DATEDIF([1]الشيت!M94,[1]البداية!$M$20,"md")," - ",DATEDIF([1]الشيت!M94,[1]البداية!$M$20,"ym")," - ",DATEDIF([1]الشيت!M94,[1]البداية!$M$20,"y"))) -> 14 - 11 - 12 | O94: 504 | R94: 8 | S94: 12.5 | T94: 14 | U94: 34.5 | V94: 9.5 | W94: 13 | X94: 12 | Y94: 34.5 | Z94: 5.5 | AA94: 6.4 | AB94: 11.2 | AC94: 23.1 | AD94: 5 | AE94: 3 | AF94: 8 | AG94: 7 | AH94: 5 | AI94: 12 | AJ94: 8 | AK94: 6 | AL94: 14 | AM94: 20 | AN94: 14 | AO94: 34 | AP94: 7 | AQ94: 10 | AR94: 18 | AS94: 35 | AT94: 9 | AU94: 12 | AV94: 18 | AW94: 39 | AX94: 9 | AY94: 16 | AZ94: 16 | BA94: 41 | BB94: 9 | BC94: 10 | BD94: 15 | BE94: 34 | BF94: 9.5 | BG94: 14 | BH94: 16 | BI94: 39.5 | BJ94: 9 | BK94: 10 | BL94: 14 | BM94: 33 | BN94: 9 | BO94: 10 | BP94: 18 | BQ94: 37 | BR94: 9 | BS94: 14 | BT94: 16 | BU94: 39 | BV94: 139.9 | BW94: 423.6 | BX94: 3 | BY94: 6 | BZ94: 6.5 | CA94: 15.5 | CB94: 3.5 | CC94: 7 | CD94: 3 | CE94: 13.5 | CG94: راسب | CH94: =IF(F94="","",IF(CJ94=0,RANK($BW94,$BW$10:$BW$599)+COUNTIF(BW$10:BW94,BW94)-1,IF(CJ94>=$CK$8,"جميع المواد",CONCATENATE(DC94,DD94,DE94,DF94,DG94,DH94,DI94,DJ94,DK94,DL94,DM94,DN94,DO94,DP94,DQ94)))) -> 0(حاسب عملي) 00000000 | CI94: =IF(F94="","",IF(CJ94=0,RANK($BW94,$BW$10:$BW$599)+COUNTIF(BW$10:BW94,BW94)-"1","")) ->  | CJ94: 7 | CK94: 0 | CL94: 1 | CM94: 0 | CN94: 1 | CO94: 0 | CP94: 1 | CQ94: 0 | CR94: 1 | CS94: 1 | CT94: 1 | CU94: 1 | CV94: 0 | CW94: 1 | CX94: 1 | CY94: 1 | DD94: 0 | DF94: (حاسب عملي) | DH94: 0 | DJ94: 0 | DK94: 0 | DL94: 0 | DM94: 0 | DO94: 0 | DP94: 0 | DQ94: 0
B95: راسب | D95: 86 | E95: 589 | F95: طالبة تسويق 89 | I95: مستجد | J95: أنثي | K95: مسلم | L95: 30506101402326 | M95: 2005-06-10 | N95: =IF([1]الشيت!M95="","",CONCATENATE(DATEDIF([1]الشيت!M95,[1]البداية!$M$20,"md")," - ",DATEDIF([1]الشيت!M95,[1]البداية!$M$20,"ym")," - ",DATEDIF([1]الشيت!M95,[1]البداية!$M$20,"y"))) -> 3 - 8 - 12 | O95: 505 | R95: 8 | S95: 13 | T95: 14 | U95: 35 | V95: 9.5 | W95: 13 | X95: 11.5 | Y95: 34 | Z95: 5.5 | AA95: 5.6 | AB95: 11.2 | AC95: 22.3 | AD95: 5 | AE95: 3 | AF95: 8 | AG95: 8 | AH95: 5 | AI95: 13 | AJ95: 8 | AK95: 6 | AL95: 14 | AM95: 21 | AN95: 14 | AO95: 35 | AP95: 7 | AQ95: 18 | AR95: 18 | AS95: 43 | AT95: 9 | AU95: 8 | AV95: 16 | AW95: 33 | AX95: 9 | AY95: 16 | AZ95: 16 | BA95: 41 | BB95: 9 | BC95: 13 | BD95: 15 | BE95: 37 | BF95: 9.5 | BG95: 14 | BH95: 15 | BI95: 38.5 | BJ95: 8.5 | BK95: 10 | BL95: 14 | BM95: 32.5 | BN95: 9 | BO95: 9 | BP95: 19 | BQ95: 37 | BR95: 9 | BS95: 14 | BT95: 16 | BU95: 39 | BV95: 146.6 | BW95: 427.3 | BX95: 3 | BY95: 5.5 | BZ95: 6.5 | CA95: 15 | CB95: 3.5 | CC95: 7 | CD95: 4 | CE95: 14.5 | CG95: راسب | CH95: =IF(F95="","",IF(CJ95=0,RANK($BW95,$BW$10:$BW$599)+COUNTIF(BW$10:BW95,BW95)-1,IF(CJ95>=$CK$8,"جميع المواد",CONCATENATE(DC95,DD95,DE95,DF95,DG95,DH95,DI95,DJ95,DK95,DL95,DM95,DN95,DO95,DP95,DQ95)))) -> 0(حاسب عملي) 0000000 | CI95: =IF(F95="","",IF(CJ95=0,RANK($BW95,$BW$10:$BW$599)+COUNTIF(BW$10:BW95,BW95)-"1","")) ->  | CJ95: 6 | CK95: 0 | CL95: 1 | CM95: 0 | CN95: 1 | CO95: 0 | CP95: 1 | CQ95: 0 | CR95: 0 | CS95: 1 | CT95: 1 | CU95: 1 | CV95: 0 | CW95: 1 | CX95: 1 | CY95: 1 | DD95: 0 | DF95: (حاسب عملي) | DH95: 0 | DK95: 0 | DL95: 0 | DM95: 0 | DO95: 0 | DP95: 0 | DQ95: 0
B96: راسب | D96: 87 | E96: 590 | F96: طالبة تسويق 90 | I96: مستجد | J96: أنثي | K96: مسلم | L96: 30412161401162 | M96: 2004-12-16 | N96: =IF([1]الشيت!M96="","",CONCATENATE(DATEDIF([1]الشيت!M96,[1]البداية!$M$20,"md")," - ",DATEDIF([1]الشيت!M96,[1]البداية!$M$20,"ym")," - ",DATEDIF([1]الشيت!M96,[1]البداية!$M$20,"y"))) -> 14 - 11 - 13 | O96: 506 | R96: 8 | S96: 13 | T96: 14 | U96: 35 | V96: 9.5 | W96: 14.5 | X96: 12 | Y96: 36 | Z96: 5.5 | AA96: 5.6 | AB96: 11.2 | AC96: 22.3 | AD96: 5 | AE96: 3 | AF96: 8 | AG96: 8 | AH96: 5 | AI96: 13 | AJ96: 8 | AK96: 6 | AL96: 14 | AM96: 21 | AN96: 14 | AO96: 35 | AP96: 7 | AQ96: 18 | AR96: 18 | AS96: 43 | AT96: 9 | AU96: 8 | AV96: 16 | AW96: 33 | AX96: 9 | AY96: 18 | AZ96: 16 | BA96: 43 | BB96: 9 | BC96: 13 | BD96: 15 | BE96: 37 | BF96: 9.5 | BG96: 14 | BH96: 16 | BI96: 39.5 | BJ96: 9 | BK96: 10 | BL96: 14 | BM96: 33 | BN96: 9 | BO96: 10 | BP96: 18 | BQ96: 37 | BR96: 9 | BS96: 14 | BT96: 16 | BU96: 39 | BV96: 151.1 | BW96: 432.8 | BX96: 3 | BY96: 6 | BZ96: 6.5 | CA96: 15.5 | CB96: 3.5 | CC96: 7 | CD96: 4 | CE96: 14.5 | CG96: راسب | CH96: =IF(F96="","",IF(CJ96=0,RANK($BW96,$BW$10:$BW$599)+COUNTIF(BW$10:BW96,BW96)-1,IF(CJ96>=$CK$8,"جميع المواد",CONCATENATE(DC96,DD96,DE96,DF96,DG96,DH96,DI96,DJ96,DK96,DL96,DM96,DN96,DO96,DP96,DQ96)))) -> 0(حاسب عملي) 0000000 | CI96: =IF(F96="","",IF(CJ96=0,RANK($BW96,$BW$10:$BW$599)+COUNTIF(BW$10:BW96,BW96)-"1","")) ->  | CJ96: 6 | CK96: 0 | CL96: 1 | CM96: 0 | CN96: 1 | CO96: 0 | CP96: 1 | CQ96: 0 | CR96: 0 | CS96: 1 | CT96: 1 | CU96: 1 | CV96: 0 | CW96: 1 | CX96: 1 | CY96: 1 | DD96: 0 | DF96: (حاسب عملي) | DH96: 0 | DK96: 0 | DL96: 0 | DM96: 0 | DO96: 0 | DP96: 0 | DQ96: 0
B97: راسب | D97: 88 | E97: 591 | F97: طالبة تسويق 91 | I97: مستجد | J97: أنثي | K97: مسلم | L97: 30309051401609 | M97: 2003-09-05 | N97: =IF([1]الشيت!M97="","",CONCATENATE(DATEDIF([1]الشيت!M97,[1]البداية!$M$20,"md")," - ",DATEDIF([1]الشيت!M97,[1]البداية!$M$20,"ym")," - ",DATEDIF([1]الشيت!M97,[1]البداية!$M$20,"y"))) -> 10 - 9 - 13 | O97: 507 | R97: 8 | S97: 12 | T97: 14 | U97: 34 | V97: 9.5 | W97: 13.5 | X97: 9.5 | Y97: 32.5 | Z97: 5.5 | AA97: 6.4 | AB97: 10.4 | AC97: 22.3 | AD97: 5 | AE97: 3 | AF97: 8 | AG97: 8 | AH97: 4 | AI97: 12 | AJ97: 9 | AK97: 6 | AL97: 15 | AM97: 22 | AN97: 13 | AO97: 35 | AP97: 7 | AQ97: 16 | AR97: 18 | AS97: 41 | AT97: 9 | AU97: 10 | AV97: 18 | AW97: 37 | AX97: 9 | AY97: 14 | AZ97: 16 | BA97: 39 | BB97: 9 | BC97: 12 | BD97: 14 | BE97: 35 | BF97: 9.5 | BG97: 12 | BH97: 18 | BI97: 39.5 | BJ97: 9 | BK97: 10 | BL97: 14 | BM97: 33 | BN97: 9 | BO97: 11 | BP97: 14 | BQ97: 34 | BR97: 9 | BS97: 14 | BT97: 18 | BU97: 41 | BV97: 142.9 | BW97: 423.3 | BX97: 3 | BY97: 6 | BZ97: 6.5 | CA97: 15.5 | CB97: 3.5 | CC97: 5 | CD97: 3 | CE97: 11.5 | CG97: راسب | CH97: =IF(F97="","",IF(CJ97=0,RANK($BW97,$BW$10:$BW$599)+COUNTIF(BW$10:BW97,BW97)-1,IF(CJ97>=$CK$8,"جميع المواد",CONCATENATE(DC97,DD97,DE97,DF97,DG97,DH97,DI97,DJ97,DK97,DL97,DM97,DN97,DO97,DP97,DQ97)))) -> 00000000 | CI97: =IF(F97="","",IF(CJ97=0,RANK($BW97,$BW$10:$BW$599)+COUNTIF(BW$10:BW97,BW97)-"1","")) ->  | CJ97: 5 | CK97: 0 | CL97: 1 | CM97: 0 | CN97: 0 | CO97: 0 | CP97: 1 | CQ97: 0 | CR97: 0 | CS97: 1 | CT97: 1 | CU97: 1 | CV97: 0 | CW97: 1 | CX97: 1 | CY97: 1 | DD97: 0 | DH97: 0 | DK97: 0 | DL97: 0 | DM97: 0 | DO97: 0 | DP97: 0 | DQ97: 0
B98: راسب | D98: 89 | E98: 592 | F98: طالبة تسويق 92 | I98: مستجد | J98: أنثي | K98: مسلم | L98: 30501101401662 | M98: 2005-01-10 | N98: =IF([1]الشيت!M98="","",CONCATENATE(DATEDIF([1]الشيت!M98,[1]البداية!$M$20,"md")," - ",DATEDIF([1]الشيت!M98,[1]البداية!$M$20,"ym")," - ",DATEDIF([1]الشيت!M98,[1]البداية!$M$20,"y"))) -> 21 - 3 - 13 | O98: 508 | R98: 8 | S98: 12.5 | T98: 14 | U98: 34.5 | V98: 9.5 | W98: 13.5 | X98: 12 | Y98: 35 | Z98: 5.5 | AA98: 5.6 | AB98: 11.2 | AC98: 22.3 | AD98: 5 | AE98: 3 | AF98: 8 | AG98: 8 | AH98: 5 | AI98: 13 | AJ98: 8 | AK98: 6 | AL98: 14 | AM98: 21 | AN98: 14 | AO98: 35 | AP98: 7 | AQ98: 18 | AR98: 18 | AS98: 43 | AT98: 9 | AU98: 12 | AV98: 18 | AW98: 39 | AX98: 9 | AY98: 16 | AZ98: 16 | BA98: 41 | BB98: 9 | BC98: 13 | BD98: 15 | BE98: 37 | BF98: 9.5 | BG98: 16 | BH98: 16 | BI98: 41.5 | BJ98: 9 | BK98: 10 | BL98: 11 | BM98: 30 | BN98: 9 | BO98: 12 | BP98: 18 | BQ98: 39 | BR98: 9 | BS98: 14 | BT98: 16 | BU98: 39 | BV98: 155.6 | BW98: 436.3 | BX98: 3 | BY98: 6 | BZ98: 6.5 | CA98: 15.5 | CB98: 3.5 | CC98: 6.5 | CD98: 4 | CE98: 14 | CG98: راسب | CH98: =IF(F98="","",IF(CJ98=0,RANK($BW98,$BW$10:$BW$599)+COUNTIF(BW$10:BW98,BW98)-1,IF(CJ98>=$CK$8,"جميع المواد",CONCATENATE(DC98,DD98,DE98,DF98,DG98,DH98,DI98,DJ98,DK98,DL98,DM98,DN98,DO98,DP98,DQ98)))) -> 0(حاسب عملي) 000000 | CI98: =IF(F98="","",IF(CJ98=0,RANK($BW98,$BW$10:$BW$599)+COUNTIF(BW$10:BW98,BW98)-"1","")) ->  | CJ98: 6 | CK98: 0 | CL98: 1 | CM98: 0 | CN98: 1 | CO98: 0 | CP98: 1 | CQ98: 0 | CR98: 0 | CS98: 1 | CT98: 1 | CU98: 1 | CV98: 0 | CW98: 0 | CX98: 1 | CY98: 1 | DD98: 0 | DF98: (حاسب عملي) | DH98: 0 | DK98: 0 | DL98: 0 | DM98: 0 | DP98: 0 | DQ98: 0
B99: راسب | D99: 90 | E99: 593 | F99: طالبة تسويق 93 | I99: مستجد | J99: أنثي | K99: مسلم | L99: 30502061401903 | M99: 2005-02-06 | N99: =IF([1]الشيت!M99="","",CONCATENATE(DATEDIF([1]الشيت!M99,[1]البداية!$M$20,"md")," - ",DATEDIF([1]الشيت!M99,[1]البداية!$M$20,"ym")," - ",DATEDIF([1]الشيت!M99,[1]البداية!$M$20,"y"))) -> 15 - 9 - 13 | O99: 509 | R99: 8 | S99: 12.5 | T99: 14 | U99: 34.5 | V99: 9.5 | W99: 11.5 | X99: 11.5 | Y99: 32.5 | Z99: 5.5 | AA99: 4 | AB99: 11.2 | AC99: 20.7 | AD99: 4.5 | AE99: 3 | AF99: 7.5 | AG99: 7 | AH99: 6 | AI99: 13 | AJ99: 8 | AK99: 6 | AL99: 14 | AM99: 19.5 | AN99: 15 | AO99: 34.5 | AP99: 7 | AQ99: 18 | AR99: 17 | AS99: 42 | AT99: 9 | AU99: 12 | AV99: 18 | AW99: 39 | AX99: 9 | AY99: 18 | AZ99: 16 | BA99: 43 | BB99: 9 | BC99: 15 | BD99: 15 | BE99: 39 | BF99: 9.5 | BG99: 16 | BH99: 16 | BI99: 41.5 | BJ99: 9 | BK99: 10 | BL99: 11 | BM99: 30 | BN99: 9 | BO99: 8 | BP99: 12 | BQ99: 29 | BR99: 9 | BS99: 14 | BT99: 16 | BU99: 39 | BV99: 152 | BW99: 424.7 | BX99: 3 | BY99: 6 | BZ99: 6.5 | CA99: 15.5 | CB99: 3.5 | CC99: 7 | CD99: 4 | CE99: 14.5 | CG99: راسب | CH99: =IF(F99="","",IF(CJ99=0,RANK($BW99,$BW$10:$BW$599)+COUNTIF(BW$10:BW99,BW99)-1,IF(CJ99>=$CK$8,"جميع المواد",CONCATENATE(DC99,DD99,DE99,DF99,DG99,DH99,DI99,DJ99,DK99,DL99,DM99,DN99,DO99,DP99,DQ99)))) -> 0(حاسب عملي) 0000000 | CI99: =IF(F99="","",IF(CJ99=0,RANK($BW99,$BW$10:$BW$599)+COUNTIF(BW$10:BW99,BW99)-"1","")) ->  | CJ99: 6 | CK99: 0 | CL99: 1 | CM99: 0 | CN99: 1 | CO99: 0 | CP99: 1 | CQ99: 0 | CR99: 0 | CS99: 1 | CT99: 1 | CU99: 1 | CV99: 0 | CW99: 1 | CX99: 1 | CY99: 1 | DD99: 0 | DF99: (حاسب عملي) | DH99: 0 | DK99: 0 | DL99: 0 | DM99: 0 | DO99: 0 | DP99: 0 | DQ99: 0

Sheet الاوائل
B2: إدارة | C2: =[1]البداية!$E$16 -> شرق طنطا التعليمية
B3: مدرسة | C3: =[1]البداية!$E$18 -> طنطا التجارية المشتركة بدفرة
D4: اسماء الطلبة الأوائل للصف | F4: =[1]البداية!$E$22 -> 2019/2018
B5: م | C5: الترتيــب | D5: رقم الجلوس | E5: إســـم الطـــالب/الطـــالبة | F5: المجموع الكلي | G5: ملاحظات
B6: 1 | C6: الأول | D6: 536 | E6: طالبة تسويق 36 | F6: 477
B7: 2 | C7: الثــاني | D7: 518 | E7: طالبة تسويق 18 | F7: 452.1
B8: 3 | C8: الثالث | D8: 520 | E8: طالبة تسويق 20 | F8: 445.5
B9: 4 | C9: الرابــع | D9: 504 | E9: طالبة تسويق 4 | F9: 442.6
B10: 5 | C10: الخامس | D10: 514 | E10: طالبة تسويق 14 | F10: 436.5
B11: 6 | C11: السـادس | D11: 592 | E11: طالبة تسويق 92 | F11: 436.3
B12: 7 | C12: السـابع | D12: 539 | E12: طالبة تسويق 39 | F12: 435.4
B13: 8 | C13: الثامن | D13: 521 | E13: طالبة تسويق 21 | F13: 433.7
B14: 9 | C14: التاسع | D14: 503 | E14: طالبة تسويق 3 | F14: 433.4
B15: 10 | C15: العـاشر | D15: 590 | E15: طالبة تسويق 90 | F15: 432.8
B17: رئيس الصف | E17: رئيس الكنترول
B18: =[1]البداية!$M$16 -> 0 | E18: =[1]البداية!$M$18 -> 0
